Workbook

Sheet Tiedote
B2: Mette 2016 Metsätalouden kirjanpito-ohjelma | D2: Rajoitettu maksuton testiversio
B3: Mette 2016 versio 16.10 | D3: Tiedostoa saa kopioida
B4: Version päiväys 22.9.2016 | E4: © Forwood
B7: Mette 2016 ohjelman saat ladattua verkkokaupastamme www.metsavero.fi
B8: Maksettuasi käyttömaksun verkkokaupassa, saat latauslinkin, josta voit ladata ohjelman.
B9: Saat sähköpostiisi lataustunnuksen, jolla voit ladata mahdolliset tulevat ohjelman päivitysversiot.
B10: Yksi maksu oikeuttaa käyttämään ohjelmaa yhden verovuoden maksajan metsätiloilla ja kattaa kaikki päivitykset verovuoden ajalta.
B12: Mette metsätalouden kirjanpito-ohjelma on saatavilla osoitteesta www.metsavero.fi tai www.mette.fi
B14: Tämän kirjanpitotaulukon käyttäjä käyttää kirjanpitotaulukkoa omalla vastuullaan.
B15: Forwood ei vastaa tämän Mette metsätalouden kirjanpito-ohjelman mahdollisista virheistä ja puutteista aiheutuvista vahingoista.
B17: Kehittämisehdotuksia ja palautetta voi lähettää sähköpostitse osoitteeseen
B19: Yhdellä käyttömaksulla ohjelmaa voi käyttää verovuoden ajan seuraavasti:
B20: - puolisoiden kaikilla tiloilla, joista tehdään yksi veroilmoitus vaikka puolisot omistaisivat tilat erikseen.
B21: - kaikilla tiloilla, joissa käyttömaksun maksajalla on omistusosuuksia
B23: Mette-ohjelma on tekijänoikeuksien alainen, eikä ole muutettavissa ilman lupaa.
B24: Kaikissa artikkelissa, jossa tätä työkirjaa esitetään tai lainataan, on mainittava alkuperäinen tiedoston lähde: www.metsavero.fi
B25: Internet -linkityksessä on käytettävä hyperlinkin kohteena verkko-osoitetta metsavero.fi
B27: Ohjelmaan on lisätty ohjeita, jotka on merkitty pienellä punaisella kolmiolla
B28: Ohje tulee näkyville viemällä hiiri merkityn solun päälle.
B30: Muutokset edellisistä versioista:
B31: 16.10
B32: Verolomake 2C on muutettu vastaamaan verottajan vahvistamaa 2016 vuoden lomakketta.
B34: 16.00
B35: Verovuoden 2016 ensiversio. Tässä versiossa on vielä verovuoden 2015 2C-lomake.
B36: Syksyllä verottajan julkaistua uuden 2C lomakkeen, Mettestä julkaistaan päivitys.
B38: 15.12
B39: Hankintatyö 2 osiosta korjattu kaavavirhe solusta E9. Kaava laski virheellisesti maatilalle 2 maatilan 1 hakkuumäärän.
B40: Sähköiestä ilmoittamisesta poistettu rivit joilla saattoi ilmoittaa asianhoitajan ja ulkomaan nimen. Ko tietokohdat eivät ole enää 2015 käytössä.
B42: 15.11
B43: Hankintatyön arvot 2015, matkakustannusten arvot, Maataloudessa käytetyn puun arvot.
B44: Työhuonevähennyksen arvon tarkistus.
B46: 15.10
B47: Tässä versiossa on uusi 2C verolomake verovuodelle 2015
B48: Alv-kausiveroilmoitukseen lisätty sähköisen siirtotiedoston tekemisen mahdollisuus.
B50: 15.00
B51: Verovuoden 2015 ensiversio. Tässä versiossa on vielä verovuoden 2014 2C-lomake.
B52: Syksyllä verottajan julkaistua uuden 2C lomakkeen, Mettestä lulkaistaan päivitys.
B54: 14.21
B55: Metsävähennyksen laskentaan lisätty kohta, jossa käyttäjä voi määritellä käytettävän metsävähennyksen maksimivähennystä pienemmäksi.
B56: Pieniä kauneusvirheitä korjattu.
B58: 14.20
B59: Sisältää 9.1.2015 verottajan julkaiseman yhtenäistämisohjeen sisältämät hankintatyön arvon, kilometrikorvaukset, maatalouden käyttöön otetun puun arvostuksen
B61: 14.10
B62: Sisältää 2014 vuoden 2C-lomakkeen
B63: Päivämäärien automaattinen kelpoisuuden tarkastaminen poistettu.
B66: 14.00
B67: Verovuoden ensiversio. Sisältää vielä vanhan 2C-lomakkeen
B68: Uinumaan jätetyn hankintatyön arvon laskentaa tarkennettu ja lisätty oma laskenta-alue.
B69: Ajopäiväkirjaan on lisätty traktorin tuntihinta
B70: 13.16
B71: Hankintatyön uinumaan jäävän ja uinumassa olleen arvon laskenta korjattu. Lisätty sitä varten uusia taulukoita hankintatyön laskentojen välilehdille.
B73: 13.15
B74: Menovarauksen laskennassa ilmennyt virhe korjattu. Koskee vain Pohjois-Suomen osaa, jos tuloutettavaa vuodelta 2007 sekä 2008.
B76: 13.14
B77: Sähköisen ilmoittamisen taulukkoon lisätty puuttuvat kaavat soluihin O67-O76.
B79: 13.13
B80: Menot tauluun lisätty alv-% sarakkeeseen pudotusvalikko 24%, 10% ja 0% verokannoille.
B81: Käytetyn metsävähennyksen laskentaa korjattu, tilanteessa, jossa osa metsävähennystiloista luovutettu verovuoden aikana.
B83: 13.12
B84: Lisätty hankintatyön ja konekustannusarvot.
B86: 13.11
B87: Tuhovarauksen siirtyminen oikein 2C-lomakkeelle korjattu.
B89: 13.10
B90: Sisältää verottajan julkaiseman uuden 2C -verolomakkeen 2013.
B92: 13.00
B93: Verovuoden ensiversio. Sisältää vielä vanhan 2C-lomakkeen
B94: Meno- ja tuhovaraustaulukkoa muutettu selkeämmäksi ja automaattisemmaksi
B95: Metsävähennystaulukossa tiloittainen erittely otetty uudelleen näkyville
B98: 12.11
B99: Hankintatyön arvot muutettu 2012 arvoiksi ja laskentaan tehty korjaus, joka voi vaikuttaa yli 125 m3 hankintatyötä tehneillä.
B100: Metsävähennyksen osalta muutettu lomaketta selkeämmäksi. Vaikuttaa, jos metsävähennystila luovutettu ja metsävähennysmetsää jää vielä omistukseen.
B101: Kilometrikorvaukset 2012 verottajan yhtenäistämisohjeista (julkaistu 10.1.2013)
B103: 12.10
B104: Verovuoden 2012 2C-lomake
B105: Tulot lomakkeelle lisätty poltto-ja joulupuiden hankintakaupan erottelu
B106: Lisätty "Hankintatyö 2" -lomake poltto-ja joulupuiden hankintatyön erottelua varten
B107: Muotoilumuutoksia
B109: 12.01
B110: Ajopäiväkirjassa ollut kaavavirhe korjattu.
B112: 12.00
B113: Verovuoden ensiversio. Sisältää vieä vanhan 2C-lomakkeen
B114: Kemera välilehti poistettu.
B115: Hankintatyön laskentaan lisätty maatilakohtainen laskentamahdollisuus 5:lle maatilalle.
B116: Lisätty uinumaan jätetyn hankintatyön kirjausmahdollisuus.
B118: 11.12
B119: Lisätty Yhtenäisätmisohjeen mukaiset hankintatyön hinnat ja km-korvausarvot.
B121: 11.11
B122: Metsätalouden tuloslaskelmasta korjattu kaava solusta C21 ja tarkennettu kaavaa solussa C9
B124: 11.10
B125: Lisätty 2011 verolomake
B127: 11.00
B128: Verovuoden ensiversio, ei sisällä vielä 2011 verolomakkeita
B130: 10.31
B131: Korjattu kemera-oja- ja tiehankkeiden kohdalla ollut alv:n kirjautumisen virhe.
B133: 10.30
B134: Alv-lomake muutettu alv-kausiverolomakkeeksi
B136: 10.20
B137: - Vuoden 2010 verolomake 2C ja sen vaatimat muutokset ohjelmaan
B139: 10.10
B140: - Arvonlisäveromuutoksen 1.7. edellyttämät kaavamuutokset
B142: 10.00
B143: - Vuoden 2010 ohjelman ensiversio. Ohjelmaan tulee päivitys verottajan julkaistessa syksyllä uuden 2C-lomakkeen
B144: - Ohjelman sisältämä verolomake 2C on vielä 2009 mallia
B145: - Ajopäiväkirjaan on lisätty kirjausrivejä
B146: - Kaikilla ohjelma-alustoilla käytetään samaa Mette versiota (Microsoft Excel ja Openoffice Calc Windows ja Mac käyttöjärjestelmät)
B147: 9.11
B148: - Tulokirjausrivejä lisätty
B149: - Konepoistoihin lisätty rivejä
B150: - Hankintatyön- ja kuljetuksen arvot 2009 täyttöohjeesta
B151: - Matkakulujen ja päivärahojen arvot 2009 täyttöohjeesta ja yhtenäistämisohjeesta
B152: - Kemerarahotteisten tie ja ojahankkeiden poistokirjausmenettelyä uudistettu metsänomistajan kannalta edullisemmaksi
B153: - Kemera-lomakkeelle muutoksia aiemmin verotuksessa vähennettyjen menojen kirjautumisessa
B155: 9.10
B156: - Lisätty uusi 2C-lomake
B157: - Metsävähennysmenettelyn muutoksien vuoksi metsävähennyslomaketta on muutettu
B158: - Hankintatyö-lomakkeelle on lisätty puutavaralajeja
B159: - Lisätty de minimis tukien laskentataulukko
B160: - Kaavoja sisältävät solut suojattu lukitsemalla ne. Lukituksen voi tarvittaessa purkaa poistamalla taulukon suojauksen. (Excel 2007 Tarkista - Poista taulukon suojaus, Ei salasanaa)
B161: - Arvonlisäverovelvollisuus ilmoitetaan Etusivun tiedoissa, josta ohjelma tulkitsee sen tarvittaviin paikkoihin
B163: 9.00
B164: - Vuoden 2009 ohjelman ensiversio. Ohjelmaan tulee päivitys verottajan julkaistessa syksyllä uuden 2C-lomakkeen
B165: - Ohjelman sisältämä verolomake 2C on vielä 2008 mallia
B166: - Lisätty tilojen erittely 18 tilaa varten
B168: 8.23
B169: - Hankintatyön määrän ja arvon siirtyminen 2C-lomakkeelle korjattu
B170: - Korjattu virhe 2C-lomakkeella kohdassa käytetty metsävähennys yhteensä ja sähköisessä ilmoittamisessa.
B172: 8.22
B173: - Metsätalouden tukien kirjautuminen muutettu 2C-lomakkeella, sekä tulot välilehdellä
B174: - Ajopäiväkirjaan päivitetty yhtenäistämisohjeiden mukaiset matkakustannukset
B176: 8.21
B177: - Pieni muutos 2C-lomakkeella ja Menot välilehdellä
B179: 8.20
B180: - Verolain muutoksen vaatimat mittavat muutokset lähes koko ohjelmassa
B182: 8.11
B183: - Korjattu alv virhe arvionvaraiset lomakkeella
B185: 8.10
B186: - Korjattu Kemera-lomakkeella käsiteltävien monojen ja tukien kirjauksia. Kemera-hankkeiden menokirjaukset eivät summautunet oikein menoiksi. Tämä puute on korjattu. Lisäksi poistomenettelynä seurattavien kemera-hankkeiden osalta on muutettu toimintoa siten, että poistoihin tulee vain hankkeen menojen ja tuen erotus. Tukea ei kirjata enää ollenkaan tältä osin 2C-lomakkeelle.
B187: - Tulot välilehdelle on lisätty omasta metsästä otetun puutavaran määrän ja arvon laskenta.
B188: - Menoihin on lisätty kirjausrivejä
B189: - Kirjanpitoon sisältyvien muun toiminnan menojen erittely lisätty menot ja poistot tauluun
B190: - Ajopäiväkirjaa on uudistettu siten, että kilometrikorvaukset voidaan helposti laskea myös muille kuin autolle.
B191: - Arvionvaraiset välilehti on palautettu käyttäjien toivomuksesta takaisin käyttöön
B192: - Etelä- ja Pohjois-Suomen versiot yhdistetty
B194: 8.00
B195: - Vuoden 2008 ensiversio. Päivityksiä julkaistaan todennäköisesti ainakin syksyllä, kun verottaja ilmoittaa muutokset verotukseen.
B196: - Hankintatyönarvon laskenta on eriytetty omaksi välilehdekseen.
B197: 7.24
B198: - Kaavavirhe poistot taulussa korjattu
B200: 7.23
B201: - Metsätalouden menoihin sisältyvät muun tulonlähteen menot muutettu manuaaliseksi virheellisen käytön riskin välttämiseksi
B203: 7.22
B204: - Ohjelma nimetty Mette metsätalouden kirjanpito-ohjelmaksi
B205: - 2C lomakkeen sähköinen tiedonsiirto verohallinnolle
B206: - kk alv
B207: - arvionvaraiset välilehti poistettu
B208: - menot tauluun ja kemera-tauluun on lisätty menorivejä
B209: - Lapin ja Oulun Lapin lääniläisille tehty oma versio, jossa varaukset 6 vuodeksi
B212: 7.01
B213: - 2C-lomakkeen kaavavirhe korjattu, joka koskee lapinläänissä asuvien meno- ja tuhovarauksien siirtymistä lomakkeelle.
B215: 7.00
B216: - Verovuoden muutos
B217: - lisätty arvionvaraisiin menoihin sähkökulut
B219: 6.20
B220: - 2-lomake tehty uudelleen verottajan tekemien muutosten mukaiseksi
B221: - tulot-lomakkeelle tehty värikoodauksia selventämään taulukkoa
B222: 6.12.
B223: - Kameraosasta korjattu kaavavirheitä ja lisätty ohjetekstejä.
B224: - Menot taulukon solusta D77 on muutettu kommenttitekstiä
B225: 6.11.
B226: - Poistoina seurattavien kemera-hankkeiden seuranta automatisoitu.
B227: - Poistettu alv-kaava kemera-hankkeen koostetuontiriviltä tulot taulukosta.
B228: - Yksi kaavavirhe korjattu kemera-taulukosta solu (D36).
B229: 6.10
B230: - Lisätty poistojen automatisoitu hyödykekohtainen seuranta.
B231: - Muutettu muotoiluja omistan nimen ja tilan nimen osalta taulukoissa.
B232: - Lisätty Kemera-hankkeiden seuranta. Jos menot kemera-avustuksia isommat, tulee avustukset ja menot näkyviin.
B233: - Lisätty menokirjanpitoon Muut menot sarakkeita. Ovat piilossa voi ottaa tarvittaessa esiin näytä toiminnalla, ja nimetä haluamakseen.
B234: - Luovutuksen kohteita on lisätty kahdesta neljään.
B235: - Metsävähennys automatisoitu. Seurattavia tiloja valmiina 6 kpl.
B236: 6.00
B237: - Lisätty Velat taulukko
B238: - Vuoden 2006 versio, joka päivitetään tarvittaessa syksyllä uuden tiedoston ja makron avulla. Käyttömaksu kattaa verovuoden 2006 päivitykset.
B239: 5.00
B240: - Lisätty tulostuskelpoinen ALV-lomake, 2C lomake on muutettu vastaamaan vuoden 2005 muotoilua (vuosiluvut) (ver 5.00)
B241: - Käyttömaksu lisätty.
B242: - Työkirjanoikeudet omistaa Forwood. Muutoksia vain tiedotesivulla (ver 4.02)
B243: - Pieniä kaavakorjauksia esim. arvionvaraiset taulussa kaava ei ollut huomioinut %-määrän muutosta (ver 4.01)
B244: - 2C lomake on muutettu vastaamaan vuoden 2004 muotoilua (vuosiluvut) (ver 4.00)
B245: - Ajopäiväkirjaan on lisätty päivärahan kirjauspaikka (ver 3.57)
B246: - 2C lomake on muutettu vastaamaan uutta muotoilua ja se voidaan tulostaa veroilmoitukseksi
B247: - Lomakkeen muuttumisesta johtuen tulot taulukkoon on tehty vastaavat muutokset em. kohtien erittelyä varten
B248: - Metsävähennyksen laskentataulukossa korjattu kaavavirhe kohdasta 28. (ver.3.51)
B249: - Varaukset taulun solussa C13 olevan kaavan virhe korjattu (ver.3.52)
B250: - 2C-lomakkeen eräitä soluja on yhdistetty, jotta pitkät luvut mahtuvat niihin. (ver.3.53)
B251: - 2c-Lomakkeen solujen muotoilua on korjattu. Eräisiin soluihin luvut tallentuivat päivämääränä. (ver. 3.54)
B252: - Ajopäiväkirjaan on muutettu kilometrikustannukseksi verottajan suositus 0,21 eur/km oletukseksi (ver. 3.54)
B253: - korjattu virhe 2C-lomakkeen kohdassa 18. Tila 3 koskeva kaavavirhe korjattu (ver 3.55)
B254: - korjattu virhe Metsätalouden tulos taulussa kohta tulot (ver 3.55)
B255: - 2c-Lomakkeen solujen muotoilua on vielä korjattu. Eräisiin soluihin luvut tallentuivat vielä päivämääränä. (ver. 3.56)
B256: - Metsävähennystaulukossa hankintakaupan pääomatuloksi muodostui arvo, josta ei ollut vähennetty hankintatyön arvoa. Virhe on korjattu versiossa 3.57
... 7 more rows

Sheet Etusivu
B3: Mette 2016 | C3: MAKSUTON RAJOITETTU TESTIVERSIO
B4: Mette 16.10 Forwood
B6: METSÄTALOUDEN KIRJANPITO
B7: 2016 | E7: Metsätilat
E8: Nimet päivittyvät metsävähennyksen laskentaan tästä
B9: Verovuosi | C9: 2016
B10: Omistaja | C10: RAJOITETTU TESTIVESIO | D10: 1 | E10: Testitila 1:45 | F10: 10 | I10: Metten taulukot on suojattu vahingossa tapahtuvalta kaavojen muuttamiselta. Tarvittaessa suojauksen saa poistettua. Salasanaa ei tarvita.
B11: Osoite | C11: Osoite | D11: 2 | F11: 11
B12: Postinumero | C12: 38210 | D12: 3 | F12: 11
B13: Postitoimipaikka | C13: Sastamala | D13: 4 | F13: 13 | I13: Suojauksen poistaminen eri ohjelmistoissa: Excel 2016, 365, 2013, 2010 ja 2007 Tarkista - Poista taulukon suojaus. Excel 2000-2003 ja Mac Excel 2008 Työkalut - Suojaus - Poista taulukon suojaus LibreOffice/OpenOffice Calk 5.0, 4.2, 4.1, 3.3, 3.2 ja 3.1 (Windows ja Mac) Työkalut - Suojaa asiakirja - Taulukko .
B14: Henkilö- tai Y-tunnus | C14: 1322222-2 | D14: 5 | F14: 14
D15: 6 | F15: 15
D16: 7 | F16: 16
B17: Täydentäviä tietoja | D17: 8 | F17: 17
B18: Tietoja tarvitaan mm. sähköisessä ilmoittamisessa | D18: 9 | F18: 18
B20: Arvonlisäverovelvollinen | C20: Kyllä | D20: =IF(C20="ei","",IF(C20="kyllä","","<- tarkista")) ->  | E20: Jos tarvitset apua ohjelman käytössä, voimme auttaa sinua myös TeamViewer etähallintaohjelmalla. Otamme yhteyden koneeseesi ja autamme ongelman löytämisessä ja korjaamisessa. Soita meille ja kerro ongelmasta. Otamme sinun koneellesi etäyhteyden heti tai jos emme ole juuri silloin koneella, sovimme ajan jolloin etäyhteys otetaan. Voit asentaa TeamViewerin Metteyhteyden vieressä olevasta linkistä, jos sinulla ei ole ennestään TeamViewer etäyhteysohjelmaa. Jos sinulla on jo ohjelma, voit kyttää omaa ohjelmaasi. Yhteydenotot: 050-5051969 tai info@metsavero.fi.
B21: Kausi-ilmoituksen jaksot | C21: kerran vuodessa | D21: =IF(C21="kerran vuodessa","",IF(C21="4 kertaa vuodessa","",IF(C21="kuukausittain","","<- tarkista"))) ->  | H21: =IF(C21="kerran vuodessa","V",IF(C21="4 kertaa vuodessa","Q",IF(C21="kuukausittain","K",""))) -> V
B22: Kotikunta 31.12.2015 | C22: Kunta
B23: Verotusyhtymä | C23: ei | D23: =IF(C23="ei","",IF(C23="kyllä","","<- tarkista")) -> 
B24: Tilan omistus: Verovelvollinen, % | C24: 1 | D24: =IF(C23="kyllä","",IF(C24+C25<1,"<- tarkista",IF(C24+C25>1,"<- tarkista",IF(C24+C25=1,"",IF(C23="kyllä","-",))))) -> 
B25: Puoliso, %
I26: Etätuki
B27: Veroilmoituksen viimeinen jättöpäivä | C27: 28022017
B28: Veroilmoituksen allekirjoituspäivä muodossa PPKKVVVV | C28: 28022017
B29: Veroilmoitusta täydentäviä tietoja antavan nimi | C29: Nimi
B30: Veroilmoitusta täydentävien tietojen antajan sähköpostiosoite | C30: Sähköpostiosoite
B31: Veroilmoitusta täydentäviä tietoja antavan puhelinnumero | C31: Puhelinnumero
B32: Ilmoituksen allekirjoittajan nimi | C32: Allekirjoittaja
C34: © Forwood
C35: www.metsavero.fi

Sheet Tulot
A1: Mette 2016
A2: Metsätalouden kirjanpito | F2: =Etusivu!C10 -> RAJOITETTU TESTIVESIO
A3: Tulot ja omasta metsästä otettu puutavara alla | D3: Y-tunnus | E3: =Etusivu!C14 -> 1322222-2 | F3: =Etusivu!E10 -> Testitila 1:45 | K3: =IF(Etusivu!$C$20="kyllä","Arvonlisäverovelvollinen","Ei arvonlisäverovelvollinen") -> Arvonlisäverovelvollinen
A4: Kuitti | B4: päiväys | F4: Puunmyyntitulot, alv 0% | I4: Hankintatyö | J4: Metsävähen- | K4: ALV | M4: Ennakon- | N4: Vakuutus | O4: Hirvi- | P4: Metsä- tal. tuet (verolliset) | Q4: Kemera- | R4: Muut | AA4: Aputaulukko hankintatyötulon siirtämiseksi hankintatyön (1) laskentaan. Normaali hankintatyö 1.2. | AL4: Aputaulukko hankintatyötulon siirtämiseksi hankintatyön (2) laskentaan. Poltto- ja joulupuiden hankintatyö 1.3.
F5: Pystykaupat | G5: Hankinta- | H5: Poltto- ja | I5: maatila | J5: nys oikeus | M5: pidätykset | N5: korvaukset | O5: vahinko | Q5: tukien | R5: tulot (alv 0%)
A6: N:o | B6: pv | C6: kk | D6: Selite ja kaupanteko päivä ja vuosi | G6: kaupat | H6: joulupuukaupat | I6: numero (1-5) | J6: on (1) / ei (0) | K6: % | L6: eur | O6: korvaukset | Q6: tuloutus | V6: Valikoiden arvoja | AA6: T1M0 | AB6: T1M1 | AC6: T2M0 | AD6: T2M1 | AE6: T3M0 | AF6: T3M1 | AG6: T4M0 | AH6: T4M1 | AI6: T5M0 | AJ6: T5M1 | AL6: T1M0 | AM6: T1M1 | AN6: T2M0 | AO6: T2M1 | AP6: T3M0 | AQ6: T3M1 | AR6: T4M0 | AS6: T4M1 | AT6: T5M0 | AU6: T5M1
A7: YHTEENSÄ | F7: =SUM(F9:F163) -> 56600 | G7: =SUM(G9:G163) -> 3450 | H7: =SUM(H9:H163) -> 0 | L7: =SUM(L9:L164) -> 14412 | M7: 11803 | N7: 1230 | O7: 0 | P7: 440 | R7: 0 | AA7: =SUM(AA9:AA164) -> 0 | AB7: 3450 | AC7: 0 | AD7: 0 | AE7: 0 | AF7: 0 | AG7: 0 | AH7: 0 | AI7: 0 | AJ7: 0 | AL7: =SUM(AL9:AL164) -> 0 | AM7: 0 | AN7: 0 | AO7: 0 | AP7: 0 | AQ7: 0 | AR7: 0 | AS7: 0 | AT7: 0 | AU7: 0
A8: OHJE | F8: Puunmyyntitulot yhteensä | H8: =SUM(F7:H7) -> 60050
A9: 100 | B9: 1 | C9: 6 | D9: Puukauppa PUUFIRMA oy | F9: 56600 | I9: 1 | J9: 1 | K9: =IF(Etusivu!$C$20="kyllä",24%,0%) -> 0.24 | L9: =IF(R9>0,R9*K9,F9*K9+G9*K9+H9*K9) -> 13584 | M9: 11320 | T9: Apulaskuri: alv:t pois | V9: 1 | W9: 0 | X9: 1 | Y9: 1 | AA9: =IF($I9=1,IF($J9=0,$G9,0),0) -> 0 | AB9: =IF($I9=1,IF($J9=1,$G9,0),0) -> 0 | AC9: =IF($I9=2,IF($J9=0,$G9,0),0) -> 0 | AD9: =IF($I9=2,IF($J9=1,$G9,0),0) -> 0 | AE9: =IF($I9=3,IF($J9=0,$G9,0),0) -> 0 | AF9: =IF($I9=3,IF($J9=1,$G9,0),0) -> 0 | AG9: =IF($I9=4,IF($J9=0,$G9,0),0) -> 0 | AH9: =IF($I9=4,IF($J9=1,$G9,0),0) -> 0 | AI9: =IF($I9=5,IF($J9=0,$G9,0),0) -> 0 | AJ9: =IF($I9=5,IF($J9=1,$G9,0),0) -> 0 | AL9: =IF($I9=1,IF($J9=0,$H9,0),0) -> 0 | AM9: =IF($I9=1,IF($J9=1,$H9,0),0) -> 0 | AN9: =IF($I9=2,IF($J9=0,$H9,0),0) -> 0 | AO9: =IF($I9=2,IF($J9=1,$H9,0),0) -> 0 | AP9: =IF($I9=3,IF($J9=0,$H9,0),0) -> 0 | AQ9: =IF($I9=3,IF($J9=1,$H9,0),0) -> 0 | AR9: =IF($I9=4,IF($J9=0,$H9,0),0) -> 0 | AS9: =IF($I9=4,IF($J9=1,$H9,0),0) -> 0 | AT9: =IF($I9=5,IF($J9=0,$H9,0),0) -> 0 | AU9: =IF($I9=5,IF($J9=1,$H9,0),0) -> 0
A10: =A9+1 -> 101 | D10: Ylin rivi on auki testailua varten | I10: 1 | J10: 0 | K10: =IF(Etusivu!$C$20="kyllä",24%,0%) -> 0.24 | L10: 0 | T10: ALV % | U10: 0.24 | V10: 2 | W10: 1 | X10: 2 | Y10: 2 | AA10: 0 | AB10: 0 | AC10: 0 | AD10: 0 | AE10: 0 | AF10: 0 | AG10: 0 | AH10: 0 | AI10: 0 | AJ10: 0 | AL10: =IF($I10=1,IF($J10=0,$H10,0),0) -> 0 | AM10: =IF($I10=1,IF($J10=1,$H10,0),0) -> 0 | AN10: =IF($I10=2,IF($J10=0,$H10,0),0) -> 0 | AO10: =IF($I10=2,IF($J10=1,$H10,0),0) -> 0 | AP10: =IF($I10=3,IF($J10=0,$H10,0),0) -> 0 | AQ10: =IF($I10=3,IF($J10=1,$H10,0),0) -> 0 | AR10: =IF($I10=4,IF($J10=0,$H10,0),0) -> 0 | AS10: =IF($I10=4,IF($J10=1,$H10,0),0) -> 0 | AT10: =IF($I10=5,IF($J10=0,$H10,0),0) -> 0 | AU10: =IF($I10=5,IF($J10=1,$H10,0),0) -> 0
A11: 102 | I11: 1 | J11: 0 | K11: =IF(Etusivu!$C$20="kyllä",24%,0%) -> 0.24 | L11: 0 | T11: Summa | U11: Summa | V11: 3 | X11: 3 | Y11: 3 | AA11: 0 | AB11: 0 | AC11: 0 | AD11: 0 | AE11: 0 | AF11: 0 | AG11: 0 | AH11: 0 | AI11: 0 | AJ11: 0 | AL11: 0 | AM11: 0 | AN11: 0 | AO11: 0 | AP11: 0 | AQ11: 0 | AR11: 0 | AS11: 0 | AT11: 0 | AU11: 0
A12: 103 | B12: 2 | C12: 7 | D12: Kemeratuki | I12: 1 | J12: 0 | K12: =IF(Etusivu!$C$20="kyllä",24%,0%) -> 0.24 | L12: 0 | P12: 440 | T12: =CONCATENATE("Alv ",(U10*100)," %") -> Alv 24 % | U12: alv 0% | V12: 4 | X12: 4 | Y12: 4 | AA12: 0 | AB12: 0 | AC12: 0 | AD12: 0 | AE12: 0 | AF12: 0 | AG12: 0 | AH12: 0 | AI12: 0 | AJ12: 0 | AL12: 0 | AM12: 0 | AN12: 0 | AO12: 0 | AP12: 0 | AQ12: 0 | AR12: 0 | AS12: 0 | AT12: 0 | AU12: 0
A13: 104 | B13: 3 | C13: 8 | D13: Vakuutuskorvaus myrskytuhosta, Pohjola | I13: 1 | J13: 0 | K13: =IF(Etusivu!$C$20="kyllä",24%,0%) -> 0.24 | L13: 0 | N13: 1230 | T13: 100 | U13: =T13/(1+U10) -> 80.65 | V13: 5 | X13: 5 | Y13: 5 | AA13: 0 | AB13: 0 | AC13: 0 | AD13: 0 | AE13: 0 | AF13: 0 | AG13: 0 | AH13: 0 | AI13: 0 | AJ13: 0 | AL13: 0 | AM13: 0 | AN13: 0 | AO13: 0 | AP13: 0 | AQ13: 0 | AR13: 0 | AS13: 0 | AT13: 0 | AU13: 0
A14: 105 | B14: 6 | C14: 11 | D14: Hankintakauppa, Puufirma oy | G14: 3450 | I14: 1 | J14: 1 | K14: =IF(Etusivu!$C$20="kyllä",24%,0%) -> 0.24 | L14: 828 | M14: 483 | X14: 6 | Y14: 6 | AA14: 0 | AB14: 3450 | AC14: 0 | AD14: 0 | AE14: 0 | AF14: 0 | AG14: 0 | AH14: 0 | AI14: 0 | AJ14: 0 | AL14: 0 | AM14: 0 | AN14: 0 | AO14: 0 | AP14: 0 | AQ14: 0 | AR14: 0 | AS14: 0 | AT14: 0 | AU14: 0
A15: 106 | I15: 1 | J15: 0 | K15: =IF(Etusivu!$C$20="kyllä",24%,0%) -> 0.24 | L15: 0 | X15: 7 | Y15: 7 | AA15: 0 | AB15: 0 | AC15: 0 | AD15: 0 | AE15: 0 | AF15: 0 | AG15: 0 | AH15: 0 | AI15: 0 | AJ15: 0 | AL15: 0 | AM15: 0 | AN15: 0 | AO15: 0 | AP15: 0 | AQ15: 0 | AR15: 0 | AS15: 0 | AT15: 0 | AU15: 0
A16: 107 | I16: 1 | J16: 0 | K16: =IF(Etusivu!$C$20="kyllä",24%,0%) -> 0.24 | L16: 0 | X16: 8 | Y16: 8 | AA16: 0 | AB16: 0 | AC16: 0 | AD16: 0 | AE16: 0 | AF16: 0 | AG16: 0 | AH16: 0 | AI16: 0 | AJ16: 0 | AL16: 0 | AM16: 0 | AN16: 0 | AO16: 0 | AP16: 0 | AQ16: 0 | AR16: 0 | AS16: 0 | AT16: 0 | AU16: 0
A17: =A16+1 -> 108 | I17: 1 | J17: 0 | K17: =IF(Etusivu!$C$20="kyllä",24%,0%) -> 0.24 | L17: 0 | X17: 9 | Y17: 9 | AA17: 0 | AB17: 0 | AC17: 0 | AD17: 0 | AE17: 0 | AF17: 0 | AG17: 0 | AH17: 0 | AI17: 0 | AJ17: 0 | AL17: 0 | AM17: 0 | AN17: 0 | AO17: 0 | AP17: 0 | AQ17: 0 | AR17: 0 | AS17: 0 | AT17: 0 | AU17: 0
A18: 109 | I18: 1 | J18: 0 | K18: =IF(Etusivu!$C$20="kyllä",24%,0%) -> 0.24 | L18: 0 | X18: 10 | Y18: 10 | AA18: 0 | AB18: 0 | AC18: 0 | AD18: 0 | AE18: 0 | AF18: 0 | AG18: 0 | AH18: 0 | AI18: 0 | AJ18: 0 | AL18: 0 | AM18: 0 | AN18: 0 | AO18: 0 | AP18: 0 | AQ18: 0 | AR18: 0 | AS18: 0 | AT18: 0 | AU18: 0
A19: 110 | I19: 1 | J19: 0 | K19: =IF(Etusivu!$C$20="kyllä",24%,0%) -> 0.24 | L19: 0 | X19: 11 | Y19: 11 | AA19: 0 | AB19: 0 | AC19: 0 | AD19: 0 | AE19: 0 | AF19: 0 | AG19: 0 | AH19: 0 | AI19: 0 | AJ19: 0 | AL19: 0 | AM19: 0 | AN19: 0 | AO19: 0 | AP19: 0 | AQ19: 0 | AR19: 0 | AS19: 0 | AT19: 0 | AU19: 0
A20: 111 | I20: 1 | J20: 0 | K20: =IF(Etusivu!$C$20="kyllä",24%,0%) -> 0.24 | L20: 0 | X20: 12 | Y20: 12 | AA20: 0 | AB20: 0 | AC20: 0 | AD20: 0 | AE20: 0 | AF20: 0 | AG20: 0 | AH20: 0 | AI20: 0 | AJ20: 0 | AL20: 0 | AM20: 0 | AN20: 0 | AO20: 0 | AP20: 0 | AQ20: 0 | AR20: 0 | AS20: 0 | AT20: 0 | AU20: 0
A21: 112 | I21: 1 | J21: 0 | K21: =IF(Etusivu!$C$20="kyllä",24%,0%) -> 0.24 | L21: 0 | X21: 13 | AA21: 0 | AB21: 0 | AC21: 0 | AD21: 0 | AE21: 0 | AF21: 0 | AG21: 0 | AH21: 0 | AI21: 0 | AJ21: 0 | AL21: 0 | AM21: 0 | AN21: 0 | AO21: 0 | AP21: 0 | AQ21: 0 | AR21: 0 | AS21: 0 | AT21: 0 | AU21: 0
A22: 113 | I22: 1 | J22: 0 | K22: =IF(Etusivu!$C$20="kyllä",24%,0%) -> 0.24 | L22: 0 | X22: 14 | AA22: 0 | AB22: 0 | AC22: 0 | AD22: 0 | AE22: 0 | AF22: 0 | AG22: 0 | AH22: 0 | AI22: 0 | AJ22: 0 | AL22: 0 | AM22: 0 | AN22: 0 | AO22: 0 | AP22: 0 | AQ22: 0 | AR22: 0 | AS22: 0 | AT22: 0 | AU22: 0
A23: 114 | I23: 1 | J23: 0 | K23: =IF(Etusivu!$C$20="kyllä",24%,0%) -> 0.24 | L23: 0 | X23: 15 | AA23: 0 | AB23: 0 | AC23: 0 | AD23: 0 | AE23: 0 | AF23: 0 | AG23: 0 | AH23: 0 | AI23: 0 | AJ23: 0 | AL23: 0 | AM23: 0 | AN23: 0 | AO23: 0 | AP23: 0 | AQ23: 0 | AR23: 0 | AS23: 0 | AT23: 0 | AU23: 0
A24: 115 | I24: 1 | J24: 0 | K24: =IF(Etusivu!$C$20="kyllä",24%,0%) -> 0.24 | L24: 0 | X24: 16 | AA24: 0 | AB24: 0 | AC24: 0 | AD24: 0 | AE24: 0 | AF24: 0 | AG24: 0 | AH24: 0 | AI24: 0 | AJ24: 0 | AL24: 0 | AM24: 0 | AN24: 0 | AO24: 0 | AP24: 0 | AQ24: 0 | AR24: 0 | AS24: 0 | AT24: 0 | AU24: 0
A25: 116 | I25: 1 | J25: 0 | K25: =IF(Etusivu!$C$20="kyllä",24%,0%) -> 0.24 | L25: 0 | X25: 17 | AA25: 0 | AB25: 0 | AC25: 0 | AD25: 0 | AE25: 0 | AF25: 0 | AG25: 0 | AH25: 0 | AI25: 0 | AJ25: 0 | AL25: 0 | AM25: 0 | AN25: 0 | AO25: 0 | AP25: 0 | AQ25: 0 | AR25: 0 | AS25: 0 | AT25: 0 | AU25: 0
A26: 117 | I26: 1 | J26: 0 | K26: =IF(Etusivu!$C$20="kyllä",24%,0%) -> 0.24 | L26: 0 | X26: 18 | AA26: 0 | AB26: 0 | AC26: 0 | AD26: 0 | AE26: 0 | AF26: 0 | AG26: 0 | AH26: 0 | AI26: 0 | AJ26: 0 | AL26: 0 | AM26: 0 | AN26: 0 | AO26: 0 | AP26: 0 | AQ26: 0 | AR26: 0 | AS26: 0 | AT26: 0 | AU26: 0
A27: 118 | I27: 1 | J27: 0 | K27: =IF(Etusivu!$C$20="kyllä",24%,0%) -> 0.24 | L27: 0 | X27: 19 | AA27: 0 | AB27: 0 | AC27: 0 | AD27: 0 | AE27: 0 | AF27: 0 | AG27: 0 | AH27: 0 | AI27: 0 | AJ27: 0 | AL27: 0 | AM27: 0 | AN27: 0 | AO27: 0 | AP27: 0 | AQ27: 0 | AR27: 0 | AS27: 0 | AT27: 0 | AU27: 0
A28: 119 | I28: 1 | J28: 0 | K28: =IF(Etusivu!$C$20="kyllä",24%,0%) -> 0.24 | L28: 0 | X28: 20 | AA28: 0 | AB28: 0 | AC28: 0 | AD28: 0 | AE28: 0 | AF28: 0 | AG28: 0 | AH28: 0 | AI28: 0 | AJ28: 0 | AL28: 0 | AM28: 0 | AN28: 0 | AO28: 0 | AP28: 0 | AQ28: 0 | AR28: 0 | AS28: 0 | AT28: 0 | AU28: 0
A29: 120 | I29: 1 | J29: 0 | K29: =IF(Etusivu!$C$20="kyllä",24%,0%) -> 0.24 | L29: 0 | X29: 21 | AA29: 0 | AB29: 0 | AC29: 0 | AD29: 0 | AE29: 0 | AF29: 0 | AG29: 0 | AH29: 0 | AI29: 0 | AJ29: 0 | AL29: 0 | AM29: 0 | AN29: 0 | AO29: 0 | AP29: 0 | AQ29: 0 | AR29: 0 | AS29: 0 | AT29: 0 | AU29: 0
A30: 121 | I30: 1 | J30: 0 | K30: =IF(Etusivu!$C$20="kyllä",24%,0%) -> 0.24 | L30: 0 | X30: 22 | AA30: 0 | AB30: 0 | AC30: 0 | AD30: 0 | AE30: 0 | AF30: 0 | AG30: 0 | AH30: 0 | AI30: 0 | AJ30: 0 | AL30: 0 | AM30: 0 | AN30: 0 | AO30: 0 | AP30: 0 | AQ30: 0 | AR30: 0 | AS30: 0 | AT30: 0 | AU30: 0
A31: 122 | I31: 1 | J31: 0 | K31: =IF(Etusivu!$C$20="kyllä",24%,0%) -> 0.24 | L31: 0 | X31: 23 | AA31: 0 | AB31: 0 | AC31: 0 | AD31: 0 | AE31: 0 | AF31: 0 | AG31: 0 | AH31: 0 | AI31: 0 | AJ31: 0 | AL31: 0 | AM31: 0 | AN31: 0 | AO31: 0 | AP31: 0 | AQ31: 0 | AR31: 0 | AS31: 0 | AT31: 0 | AU31: 0
A32: 123 | I32: 1 | J32: 0 | K32: =IF(Etusivu!$C$20="kyllä",24%,0%) -> 0.24 | L32: 0 | X32: 24 | AA32: 0 | AB32: 0 | AC32: 0 | AD32: 0 | AE32: 0 | AF32: 0 | AG32: 0 | AH32: 0 | AI32: 0 | AJ32: 0 | AL32: 0 | AM32: 0 | AN32: 0 | AO32: 0 | AP32: 0 | AQ32: 0 | AR32: 0 | AS32: 0 | AT32: 0 | AU32: 0
A33: 124 | I33: 1 | J33: 0 | K33: =IF(Etusivu!$C$20="kyllä",24%,0%) -> 0.24 | L33: 0 | X33: 25 | AA33: 0 | AB33: 0 | AC33: 0 | AD33: 0 | AE33: 0 | AF33: 0 | AG33: 0 | AH33: 0 | AI33: 0 | AJ33: 0 | AL33: 0 | AM33: 0 | AN33: 0 | AO33: 0 | AP33: 0 | AQ33: 0 | AR33: 0 | AS33: 0 | AT33: 0 | AU33: 0
A34: 125 | I34: 1 | J34: 0 | K34: =IF(Etusivu!$C$20="kyllä",24%,0%) -> 0.24 | L34: 0 | X34: 26 | AA34: 0 | AB34: 0 | AC34: 0 | AD34: 0 | AE34: 0 | AF34: 0 | AG34: 0 | AH34: 0 | AI34: 0 | AJ34: 0 | AL34: 0 | AM34: 0 | AN34: 0 | AO34: 0 | AP34: 0 | AQ34: 0 | AR34: 0 | AS34: 0 | AT34: 0 | AU34: 0
A35: 126 | I35: 1 | J35: 0 | K35: =IF(Etusivu!$C$20="kyllä",24%,0%) -> 0.24 | L35: 0 | X35: 27 | AA35: 0 | AB35: 0 | AC35: 0 | AD35: 0 | AE35: 0 | AF35: 0 | AG35: 0 | AH35: 0 | AI35: 0 | AJ35: 0 | AL35: 0 | AM35: 0 | AN35: 0 | AO35: 0 | AP35: 0 | AQ35: 0 | AR35: 0 | AS35: 0 | AT35: 0 | AU35: 0
A36: 127 | I36: 1 | J36: 0 | K36: =IF(Etusivu!$C$20="kyllä",24%,0%) -> 0.24 | L36: 0 | X36: 28 | AA36: 0 | AB36: 0 | AC36: 0 | AD36: 0 | AE36: 0 | AF36: 0 | AG36: 0 | AH36: 0 | AI36: 0 | AJ36: 0 | AL36: 0 | AM36: 0 | AN36: 0 | AO36: 0 | AP36: 0 | AQ36: 0 | AR36: 0 | AS36: 0 | AT36: 0 | AU36: 0
A37: 128 | I37: 1 | J37: 0 | K37: =IF(Etusivu!$C$20="kyllä",24%,0%) -> 0.24 | L37: 0 | X37: 29 | AA37: 0 | AB37: 0 | AC37: 0 | AD37: 0 | AE37: 0 | AF37: 0 | AG37: 0 | AH37: 0 | AI37: 0 | AJ37: 0 | AL37: 0 | AM37: 0 | AN37: 0 | AO37: 0 | AP37: 0 | AQ37: 0 | AR37: 0 | AS37: 0 | AT37: 0 | AU37: 0
A38: 129 | I38: 1 | J38: 0 | K38: =IF(Etusivu!$C$20="kyllä",24%,0%) -> 0.24 | L38: 0 | X38: 30 | AA38: 0 | AB38: 0 | AC38: 0 | AD38: 0 | AE38: 0 | AF38: 0 | AG38: 0 | AH38: 0 | AI38: 0 | AJ38: 0 | AL38: 0 | AM38: 0 | AN38: 0 | AO38: 0 | AP38: 0 | AQ38: 0 | AR38: 0 | AS38: 0 | AT38: 0 | AU38: 0
A39: 130 | I39: 1 | J39: 0 | K39: =IF(Etusivu!$C$20="kyllä",24%,0%) -> 0.24 | L39: 0 | X39: 31 | AA39: 0 | AB39: 0 | AC39: 0 | AD39: 0 | AE39: 0 | AF39: 0 | AG39: 0 | AH39: 0 | AI39: 0 | AJ39: 0 | AL39: 0 | AM39: 0 | AN39: 0 | AO39: 0 | AP39: 0 | AQ39: 0 | AR39: 0 | AS39: 0 | AT39: 0 | AU39: 0
A40: 131 | I40: 1 | J40: 0 | K40: =IF(Etusivu!$C$20="kyllä",24%,0%) -> 0.24 | L40: 0 | AA40: 0 | AB40: 0 | AC40: 0 | AD40: 0 | AE40: 0 | AF40: 0 | AG40: 0 | AH40: 0 | AI40: 0 | AJ40: 0 | AL40: 0 | AM40: 0 | AN40: 0 | AO40: 0 | AP40: 0 | AQ40: 0 | AR40: 0 | AS40: 0 | AT40: 0 | AU40: 0
A41: 132 | I41: 1 | J41: 0 | K41: =IF(Etusivu!$C$20="kyllä",24%,0%) -> 0.24 | L41: 0 | AA41: =IF($I41=1,IF($J41=0,$G41,0),0) -> 0 | AB41: =IF($I41=1,IF($J41=1,$G41,0),0) -> 0 | AC41: =IF($I41=2,IF($J41=0,$G41,0),0) -> 0 | AD41: =IF($I41=2,IF($J41=1,$G41,0),0) -> 0 | AE41: =IF($I41=3,IF($J41=0,$G41,0),0) -> 0 | AF41: =IF($I41=3,IF($J41=1,$G41,0),0) -> 0 | AG41: =IF($I41=4,IF($J41=0,$G41,0),0) -> 0 | AH41: =IF($I41=4,IF($J41=1,$G41,0),0) -> 0 | AI41: =IF($I41=5,IF($J41=0,$G41,0),0) -> 0 | AJ41: =IF($I41=5,IF($J41=1,$G41,0),0) -> 0 | AL41: 0 | AM41: 0 | AN41: 0 | AO41: 0 | AP41: 0 | AQ41: 0 | AR41: 0 | AS41: 0 | AT41: 0 | AU41: 0
A42: 133 | I42: 1 | J42: 0 | K42: =IF(Etusivu!$C$20="kyllä",24%,0%) -> 0.24 | L42: 0 | AA42: 0 | AB42: 0 | AC42: 0 | AD42: 0 | AE42: 0 | AF42: 0 | AG42: 0 | AH42: 0 | AI42: 0 | AJ42: 0 | AL42: 0 | AM42: 0 | AN42: 0 | AO42: 0 | AP42: 0 | AQ42: 0 | AR42: 0 | AS42: 0 | AT42: 0 | AU42: 0
A43: 134 | I43: 1 | J43: 0 | K43: =IF(Etusivu!$C$20="kyllä",24%,0%) -> 0.24 | L43: 0 | AA43: 0 | AB43: 0 | AC43: 0 | AD43: 0 | AE43: 0 | AF43: 0 | AG43: 0 | AH43: 0 | AI43: 0 | AJ43: 0 | AL43: 0 | AM43: 0 | AN43: 0 | AO43: 0 | AP43: 0 | AQ43: 0 | AR43: 0 | AS43: 0 | AT43: 0 | AU43: 0
A44: 135 | I44: 1 | J44: 0 | K44: =IF(Etusivu!$C$20="kyllä",24%,0%) -> 0.24 | L44: 0 | AA44: 0 | AB44: 0 | AC44: 0 | AD44: 0 | AE44: 0 | AF44: 0 | AG44: 0 | AH44: 0 | AI44: 0 | AJ44: 0 | AL44: 0 | AM44: 0 | AN44: 0 | AO44: 0 | AP44: 0 | AQ44: 0 | AR44: 0 | AS44: 0 | AT44: 0 | AU44: 0
A45: 136 | I45: 1 | J45: 0 | K45: =IF(Etusivu!$C$20="kyllä",24%,0%) -> 0.24 | L45: 0 | AA45: 0 | AB45: 0 | AC45: 0 | AD45: 0 | AE45: 0 | AF45: 0 | AG45: 0 | AH45: 0 | AI45: 0 | AJ45: 0 | AL45: 0 | AM45: 0 | AN45: 0 | AO45: 0 | AP45: 0 | AQ45: 0 | AR45: 0 | AS45: 0 | AT45: 0 | AU45: 0
A46: 137 | I46: 1 | J46: 0 | K46: =IF(Etusivu!$C$20="kyllä",24%,0%) -> 0.24 | L46: 0 | AA46: 0 | AB46: 0 | AC46: 0 | AD46: 0 | AE46: 0 | AF46: 0 | AG46: 0 | AH46: 0 | AI46: 0 | AJ46: 0 | AL46: 0 | AM46: 0 | AN46: 0 | AO46: 0 | AP46: 0 | AQ46: 0 | AR46: 0 | AS46: 0 | AT46: 0 | AU46: 0
A47: 138 | I47: 1 | J47: 0 | K47: =IF(Etusivu!$C$20="kyllä",24%,0%) -> 0.24 | L47: 0 | AA47: 0 | AB47: 0 | AC47: 0 | AD47: 0 | AE47: 0 | AF47: 0 | AG47: 0 | AH47: 0 | AI47: 0 | AJ47: 0 | AL47: 0 | AM47: 0 | AN47: 0 | AO47: 0 | AP47: 0 | AQ47: 0 | AR47: 0 | AS47: 0 | AT47: 0 | AU47: 0
A48: 139 | I48: 1 | J48: 0 | K48: =IF(Etusivu!$C$20="kyllä",24%,0%) -> 0.24 | L48: 0 | AA48: 0 | AB48: 0 | AC48: 0 | AD48: 0 | AE48: 0 | AF48: 0 | AG48: 0 | AH48: 0 | AI48: 0 | AJ48: 0 | AL48: 0 | AM48: 0 | AN48: 0 | AO48: 0 | AP48: 0 | AQ48: 0 | AR48: 0 | AS48: 0 | AT48: 0 | AU48: 0
A49: 140 | I49: 1 | J49: 0 | K49: =IF(Etusivu!$C$20="kyllä",24%,0%) -> 0.24 | L49: 0 | AA49: 0 | AB49: 0 | AC49: 0 | AD49: 0 | AE49: 0 | AF49: 0 | AG49: 0 | AH49: 0 | AI49: 0 | AJ49: 0 | AL49: 0 | AM49: 0 | AN49: 0 | AO49: 0 | AP49: 0 | AQ49: 0 | AR49: 0 | AS49: 0 | AT49: 0 | AU49: 0
A50: 141 | I50: 1 | J50: 0 | K50: =IF(Etusivu!$C$20="kyllä",24%,0%) -> 0.24 | L50: 0 | AA50: 0 | AB50: 0 | AC50: 0 | AD50: 0 | AE50: 0 | AF50: 0 | AG50: 0 | AH50: 0 | AI50: 0 | AJ50: 0 | AL50: 0 | AM50: 0 | AN50: 0 | AO50: 0 | AP50: 0 | AQ50: 0 | AR50: 0 | AS50: 0 | AT50: 0 | AU50: 0
A51: 142 | I51: 1 | J51: 0 | K51: =IF(Etusivu!$C$20="kyllä",24%,0%) -> 0.24 | L51: 0 | AA51: 0 | AB51: 0 | AC51: 0 | AD51: 0 | AE51: 0 | AF51: 0 | AG51: 0 | AH51: 0 | AI51: 0 | AJ51: 0 | AL51: 0 | AM51: 0 | AN51: 0 | AO51: 0 | AP51: 0 | AQ51: 0 | AR51: 0 | AS51: 0 | AT51: 0 | AU51: 0
A52: 143 | I52: 1 | J52: 0 | K52: =IF(Etusivu!$C$20="kyllä",24%,0%) -> 0.24 | L52: 0 | AA52: 0 | AB52: 0 | AC52: 0 | AD52: 0 | AE52: 0 | AF52: 0 | AG52: 0 | AH52: 0 | AI52: 0 | AJ52: 0 | AL52: 0 | AM52: 0 | AN52: 0 | AO52: 0 | AP52: 0 | AQ52: 0 | AR52: 0 | AS52: 0 | AT52: 0 | AU52: 0
A53: 144 | I53: 1 | J53: 0 | K53: =IF(Etusivu!$C$20="kyllä",24%,0%) -> 0.24 | L53: 0 | AA53: 0 | AB53: 0 | AC53: 0 | AD53: 0 | AE53: 0 | AF53: 0 | AG53: 0 | AH53: 0 | AI53: 0 | AJ53: 0 | AL53: 0 | AM53: 0 | AN53: 0 | AO53: 0 | AP53: 0 | AQ53: 0 | AR53: 0 | AS53: 0 | AT53: 0 | AU53: 0
A54: 145 | I54: 1 | J54: 0 | K54: =IF(Etusivu!$C$20="kyllä",24%,0%) -> 0.24 | L54: 0 | AA54: 0 | AB54: 0 | AC54: 0 | AD54: 0 | AE54: 0 | AF54: 0 | AG54: 0 | AH54: 0 | AI54: 0 | AJ54: 0 | AL54: 0 | AM54: 0 | AN54: 0 | AO54: 0 | AP54: 0 | AQ54: 0 | AR54: 0 | AS54: 0 | AT54: 0 | AU54: 0
A55: 146 | I55: 1 | J55: 0 | K55: =IF(Etusivu!$C$20="kyllä",24%,0%) -> 0.24 | L55: 0 | AA55: 0 | AB55: 0 | AC55: 0 | AD55: 0 | AE55: 0 | AF55: 0 | AG55: 0 | AH55: 0 | AI55: 0 | AJ55: 0 | AL55: 0 | AM55: 0 | AN55: 0 | AO55: 0 | AP55: 0 | AQ55: 0 | AR55: 0 | AS55: 0 | AT55: 0 | AU55: 0
A56: 147 | I56: 1 | J56: 0 | K56: =IF(Etusivu!$C$20="kyllä",24%,0%) -> 0.24 | L56: 0 | AA56: 0 | AB56: 0 | AC56: 0 | AD56: 0 | AE56: 0 | AF56: 0 | AG56: 0 | AH56: 0 | AI56: 0 | AJ56: 0 | AL56: 0 | AM56: 0 | AN56: 0 | AO56: 0 | AP56: 0 | AQ56: 0 | AR56: 0 | AS56: 0 | AT56: 0 | AU56: 0
A57: 148 | I57: 1 | J57: 0 | K57: =IF(Etusivu!$C$20="kyllä",24%,0%) -> 0.24 | L57: 0 | AA57: 0 | AB57: 0 | AC57: 0 | AD57: 0 | AE57: 0 | AF57: 0 | AG57: 0 | AH57: 0 | AI57: 0 | AJ57: 0 | AL57: 0 | AM57: 0 | AN57: 0 | AO57: 0 | AP57: 0 | AQ57: 0 | AR57: 0 | AS57: 0 | AT57: 0 | AU57: 0
A58: 149 | I58: 1 | J58: 0 | K58: =IF(Etusivu!$C$20="kyllä",24%,0%) -> 0.24 | L58: 0 | AA58: 0 | AB58: 0 | AC58: 0 | AD58: 0 | AE58: 0 | AF58: 0 | AG58: 0 | AH58: 0 | AI58: 0 | AJ58: 0 | AL58: 0 | AM58: 0 | AN58: 0 | AO58: 0 | AP58: 0 | AQ58: 0 | AR58: 0 | AS58: 0 | AT58: 0 | AU58: 0
A59: 150 | I59: 1 | J59: 0 | K59: =IF(Etusivu!$C$20="kyllä",24%,0%) -> 0.24 | L59: 0 | AA59: 0 | AB59: 0 | AC59: 0 | AD59: 0 | AE59: 0 | AF59: 0 | AG59: 0 | AH59: 0 | AI59: 0 | AJ59: 0 | AL59: 0 | AM59: 0 | AN59: 0 | AO59: 0 | AP59: 0 | AQ59: 0 | AR59: 0 | AS59: 0 | AT59: 0 | AU59: 0
A60: 151 | I60: 1 | J60: 0 | K60: =IF(Etusivu!$C$20="kyllä",24%,0%) -> 0.24 | L60: 0 | AA60: 0 | AB60: 0 | AC60: 0 | AD60: 0 | AE60: 0 | AF60: 0 | AG60: 0 | AH60: 0 | AI60: 0 | AJ60: 0 | AL60: 0 | AM60: 0 | AN60: 0 | AO60: 0 | AP60: 0 | AQ60: 0 | AR60: 0 | AS60: 0 | AT60: 0 | AU60: 0
A61: 152 | I61: 1 | J61: 0 | K61: =IF(Etusivu!$C$20="kyllä",24%,0%) -> 0.24 | L61: 0 | AA61: 0 | AB61: 0 | AC61: 0 | AD61: 0 | AE61: 0 | AF61: 0 | AG61: 0 | AH61: 0 | AI61: 0 | AJ61: 0 | AL61: 0 | AM61: 0 | AN61: 0 | AO61: 0 | AP61: 0 | AQ61: 0 | AR61: 0 | AS61: 0 | AT61: 0 | AU61: 0
A62: 153 | I62: 1 | J62: 0 | K62: =IF(Etusivu!$C$20="kyllä",24%,0%) -> 0.24 | L62: 0 | AA62: 0 | AB62: 0 | AC62: 0 | AD62: 0 | AE62: 0 | AF62: 0 | AG62: 0 | AH62: 0 | AI62: 0 | AJ62: 0 | AL62: 0 | AM62: 0 | AN62: 0 | AO62: 0 | AP62: 0 | AQ62: 0 | AR62: 0 | AS62: 0 | AT62: 0 | AU62: 0
A63: 154 | I63: 1 | J63: 0 | K63: =IF(Etusivu!$C$20="kyllä",24%,0%) -> 0.24 | L63: 0 | AA63: 0 | AB63: 0 | AC63: 0 | AD63: 0 | AE63: 0 | AF63: 0 | AG63: 0 | AH63: 0 | AI63: 0 | AJ63: 0 | AL63: 0 | AM63: 0 | AN63: 0 | AO63: 0 | AP63: 0 | AQ63: 0 | AR63: 0 | AS63: 0 | AT63: 0 | AU63: 0
A64: 155 | I64: 1 | J64: 0 | K64: =IF(Etusivu!$C$20="kyllä",24%,0%) -> 0.24 | L64: 0 | AA64: 0 | AB64: 0 | AC64: 0 | AD64: 0 | AE64: 0 | AF64: 0 | AG64: 0 | AH64: 0 | AI64: 0 | AJ64: 0 | AL64: 0 | AM64: 0 | AN64: 0 | AO64: 0 | AP64: 0 | AQ64: 0 | AR64: 0 | AS64: 0 | AT64: 0 | AU64: 0
A65: 156 | I65: 1 | J65: 0 | K65: =IF(Etusivu!$C$20="kyllä",24%,0%) -> 0.24 | L65: 0 | AA65: 0 | AB65: 0 | AC65: 0 | AD65: 0 | AE65: 0 | AF65: 0 | AG65: 0 | AH65: 0 | AI65: 0 | AJ65: 0 | AL65: 0 | AM65: 0 | AN65: 0 | AO65: 0 | AP65: 0 | AQ65: 0 | AR65: 0 | AS65: 0 | AT65: 0 | AU65: 0
A66: 157 | I66: 1 | J66: 0 | K66: =IF(Etusivu!$C$20="kyllä",24%,0%) -> 0.24 | L66: 0 | AA66: 0 | AB66: 0 | AC66: 0 | AD66: 0 | AE66: 0 | AF66: 0 | AG66: 0 | AH66: 0 | AI66: 0 | AJ66: 0 | AL66: 0 | AM66: 0 | AN66: 0 | AO66: 0 | AP66: 0 | AQ66: 0 | AR66: 0 | AS66: 0 | AT66: 0 | AU66: 0
A67: 158 | I67: 1 | J67: 0 | K67: =IF(Etusivu!$C$20="kyllä",24%,0%) -> 0.24 | L67: 0 | AA67: 0 | AB67: 0 | AC67: 0 | AD67: 0 | AE67: 0 | AF67: 0 | AG67: 0 | AH67: 0 | AI67: 0 | AJ67: 0 | AL67: 0 | AM67: 0 | AN67: 0 | AO67: 0 | AP67: 0 | AQ67: 0 | AR67: 0 | AS67: 0 | AT67: 0 | AU67: 0
A68: 159 | I68: 1 | J68: 0 | K68: =IF(Etusivu!$C$20="kyllä",24%,0%) -> 0.24 | L68: 0 | AA68: 0 | AB68: 0 | AC68: 0 | AD68: 0 | AE68: 0 | AF68: 0 | AG68: 0 | AH68: 0 | AI68: 0 | AJ68: 0 | AL68: 0 | AM68: 0 | AN68: 0 | AO68: 0 | AP68: 0 | AQ68: 0 | AR68: 0 | AS68: 0 | AT68: 0 | AU68: 0
A69: 160 | I69: 1 | J69: 0 | K69: =IF(Etusivu!$C$20="kyllä",24%,0%) -> 0.24 | L69: 0 | AA69: 0 | AB69: 0 | AC69: 0 | AD69: 0 | AE69: 0 | AF69: 0 | AG69: 0 | AH69: 0 | AI69: 0 | AJ69: 0 | AL69: 0 | AM69: 0 | AN69: 0 | AO69: 0 | AP69: 0 | AQ69: 0 | AR69: 0 | AS69: 0 | AT69: 0 | AU69: 0
A70: 161 | I70: 1 | J70: 0 | K70: =IF(Etusivu!$C$20="kyllä",24%,0%) -> 0.24 | L70: 0 | AA70: 0 | AB70: 0 | AC70: 0 | AD70: 0 | AE70: 0 | AF70: 0 | AG70: 0 | AH70: 0 | AI70: 0 | AJ70: 0 | AL70: 0 | AM70: 0 | AN70: 0 | AO70: 0 | AP70: 0 | AQ70: 0 | AR70: 0 | AS70: 0 | AT70: 0 | AU70: 0
A71: 162 | I71: 1 | J71: 0 | K71: =IF(Etusivu!$C$20="kyllä",24%,0%) -> 0.24 | L71: 0 | AA71: 0 | AB71: 0 | AC71: 0 | AD71: 0 | AE71: 0 | AF71: 0 | AG71: 0 | AH71: 0 | AI71: 0 | AJ71: 0 | AL71: 0 | AM71: 0 | AN71: 0 | AO71: 0 | AP71: 0 | AQ71: 0 | AR71: 0 | AS71: 0 | AT71: 0 | AU71: 0
A72: 163 | I72: 1 | J72: 0 | K72: =IF(Etusivu!$C$20="kyllä",24%,0%) -> 0.24 | L72: 0 | AA72: 0 | AB72: 0 | AC72: 0 | AD72: 0 | AE72: 0 | AF72: 0 | AG72: 0 | AH72: 0 | AI72: 0 | AJ72: 0 | AL72: 0 | AM72: 0 | AN72: 0 | AO72: 0 | AP72: 0 | AQ72: 0 | AR72: 0 | AS72: 0 | AT72: 0 | AU72: 0
A73: 164 | I73: 1 | J73: 0 | K73: =IF(Etusivu!$C$20="kyllä",24%,0%) -> 0.24 | L73: 0 | AA73: 0 | AB73: 0 | AC73: 0 | AD73: 0 | AE73: 0 | AF73: 0 | AG73: 0 | AH73: 0 | AI73: 0 | AJ73: 0 | AL73: 0 | AM73: 0 | AN73: 0 | AO73: 0 | AP73: 0 | AQ73: 0 | AR73: 0 | AS73: 0 | AT73: 0 | AU73: 0
A74: 165 | I74: 1 | J74: 0 | K74: =IF(Etusivu!$C$20="kyllä",24%,0%) -> 0.24 | L74: =IF(R74>0,R74*K74,F74*K74+G74*K74+H74*K74) -> 0 | AA74: 0 | AB74: 0 | AC74: 0 | AD74: 0 | AE74: 0 | AF74: 0 | AG74: 0 | AH74: 0 | AI74: 0 | AJ74: 0 | AL74: =IF($I74=1,IF($J74=0,$H74,0),0) -> 0 | AM74: =IF($I74=1,IF($J74=1,$H74,0),0) -> 0 | AN74: =IF($I74=2,IF($J74=0,$H74,0),0) -> 0 | AO74: =IF($I74=2,IF($J74=1,$H74,0),0) -> 0 | AP74: =IF($I74=3,IF($J74=0,$H74,0),0) -> 0 | AQ74: =IF($I74=3,IF($J74=1,$H74,0),0) -> 0 | AR74: =IF($I74=4,IF($J74=0,$H74,0),0) -> 0 | AS74: =IF($I74=4,IF($J74=1,$H74,0),0) -> 0 | AT74: =IF($I74=5,IF($J74=0,$H74,0),0) -> 0 | AU74: =IF($I74=5,IF($J74=1,$H74,0),0) -> 0
A75: 166 | I75: 1 | J75: 0 | K75: =IF(Etusivu!$C$20="kyllä",24%,0%) -> 0.24 | L75: 0 | AA75: 0 | AB75: 0 | AC75: 0 | AD75: 0 | AE75: 0 | AF75: 0 | AG75: 0 | AH75: 0 | AI75: 0 | AJ75: 0 | AL75: =IF($I75=1,IF($J75=0,$H75,0),0) -> 0 | AM75: =IF($I75=1,IF($J75=1,$H75,0),0) -> 0 | AN75: =IF($I75=2,IF($J75=0,$H75,0),0) -> 0 | AO75: =IF($I75=2,IF($J75=1,$H75,0),0) -> 0 | AP75: =IF($I75=3,IF($J75=0,$H75,0),0) -> 0 | AQ75: =IF($I75=3,IF($J75=1,$H75,0),0) -> 0 | AR75: =IF($I75=4,IF($J75=0,$H75,0),0) -> 0 | AS75: =IF($I75=4,IF($J75=1,$H75,0),0) -> 0 | AT75: =IF($I75=5,IF($J75=0,$H75,0),0) -> 0 | AU75: =IF($I75=5,IF($J75=1,$H75,0),0) -> 0
A76: 167 | I76: 1 | J76: 0 | K76: =IF(Etusivu!$C$20="kyllä",24%,0%) -> 0.24 | L76: 0 | AA76: 0 | AB76: 0 | AC76: 0 | AD76: 0 | AE76: 0 | AF76: 0 | AG76: 0 | AH76: 0 | AI76: 0 | AJ76: 0 | AL76: =IF($I76=1,IF($J76=0,$H76,0),0) -> 0 | AM76: =IF($I76=1,IF($J76=1,$H76,0),0) -> 0 | AN76: =IF($I76=2,IF($J76=0,$H76,0),0) -> 0 | AO76: =IF($I76=2,IF($J76=1,$H76,0),0) -> 0 | AP76: =IF($I76=3,IF($J76=0,$H76,0),0) -> 0 | AQ76: =IF($I76=3,IF($J76=1,$H76,0),0) -> 0 | AR76: =IF($I76=4,IF($J76=0,$H76,0),0) -> 0 | AS76: =IF($I76=4,IF($J76=1,$H76,0),0) -> 0 | AT76: =IF($I76=5,IF($J76=0,$H76,0),0) -> 0 | AU76: =IF($I76=5,IF($J76=1,$H76,0),0) -> 0
A77: 168 | I77: 1 | J77: 0 | K77: =IF(Etusivu!$C$20="kyllä",24%,0%) -> 0.24 | L77: 0 | AA77: 0 | AB77: 0 | AC77: 0 | AD77: 0 | AE77: 0 | AF77: 0 | AG77: 0 | AH77: 0 | AI77: 0 | AJ77: 0 | AL77: =IF($I77=1,IF($J77=0,$H77,0),0) -> 0 | AM77: =IF($I77=1,IF($J77=1,$H77,0),0) -> 0 | AN77: =IF($I77=2,IF($J77=0,$H77,0),0) -> 0 | AO77: =IF($I77=2,IF($J77=1,$H77,0),0) -> 0 | AP77: =IF($I77=3,IF($J77=0,$H77,0),0) -> 0 | AQ77: =IF($I77=3,IF($J77=1,$H77,0),0) -> 0 | AR77: =IF($I77=4,IF($J77=0,$H77,0),0) -> 0 | AS77: =IF($I77=4,IF($J77=1,$H77,0),0) -> 0 | AT77: =IF($I77=5,IF($J77=0,$H77,0),0) -> 0 | AU77: =IF($I77=5,IF($J77=1,$H77,0),0) -> 0
A78: 169 | I78: 1 | J78: 0 | K78: =IF(Etusivu!$C$20="kyllä",24%,0%) -> 0.24 | L78: 0
A79: 170 | I79: 1 | J79: 0 | K79: =IF(Etusivu!$C$20="kyllä",24%,0%) -> 0.24 | L79: 0
A80: 171 | I80: 1 | J80: 0 | K80: =IF(Etusivu!$C$20="kyllä",24%,0%) -> 0.24 | L80: 0
A81: =A80+1 -> 172 | I81: 1 | J81: 0 | K81: =IF(Etusivu!$C$20="kyllä",24%,0%) -> 0.24 | L81: 0
A82: 173 | I82: 1 | J82: 0 | K82: =IF(Etusivu!$C$20="kyllä",24%,0%) -> 0.24 | L82: 0
A83: 174 | I83: 1 | J83: 0 | K83: =IF(Etusivu!$C$20="kyllä",24%,0%) -> 0.24 | L83: 0
A84: 175 | I84: 1 | J84: 0 | K84: =IF(Etusivu!$C$20="kyllä",24%,0%) -> 0.24 | L84: 0
A85: 176 | I85: 1 | J85: 0 | K85: =IF(Etusivu!$C$20="kyllä",24%,0%) -> 0.24 | L85: 0
A86: 177 | I86: 1 | J86: 0 | K86: =IF(Etusivu!$C$20="kyllä",24%,0%) -> 0.24 | L86: 0
A87: 178 | I87: 1 | J87: 0 | K87: =IF(Etusivu!$C$20="kyllä",24%,0%) -> 0.24 | L87: 0
A88: 179 | I88: 1 | J88: 0 | K88: =IF(Etusivu!$C$20="kyllä",24%,0%) -> 0.24 | L88: 0
A89: 180 | I89: 1 | J89: 0 | K89: =IF(Etusivu!$C$20="kyllä",24%,0%) -> 0.24 | L89: 0
A90: 181 | I90: 1 | J90: 0 | K90: =IF(Etusivu!$C$20="kyllä",24%,0%) -> 0.24 | L90: 0
A91: 182 | I91: 1 | J91: 0 | K91: =IF(Etusivu!$C$20="kyllä",24%,0%) -> 0.24 | L91: 0
A92: 183 | I92: 1 | J92: 0 | K92: =IF(Etusivu!$C$20="kyllä",24%,0%) -> 0.24 | L92: 0
A93: 184 | I93: 1 | J93: 0 | K93: =IF(Etusivu!$C$20="kyllä",24%,0%) -> 0.24 | L93: 0
A94: 185 | I94: 1 | J94: 0 | K94: =IF(Etusivu!$C$20="kyllä",24%,0%) -> 0.24 | L94: 0
A95: 186 | I95: 1 | J95: 0 | K95: =IF(Etusivu!$C$20="kyllä",24%,0%) -> 0.24 | L95: 0
A96: 187 | I96: 1 | J96: 0 | K96: =IF(Etusivu!$C$20="kyllä",24%,0%) -> 0.24 | L96: 0
A97: 188 | I97: 1 | J97: 0 | K97: =IF(Etusivu!$C$20="kyllä",24%,0%) -> 0.24 | L97: 0
A98: 189 | I98: 1 | J98: 0 | K98: =IF(Etusivu!$C$20="kyllä",24%,0%) -> 0.24 | L98: 0
A99: 190 | I99: 1 | J99: 0 | K99: =IF(Etusivu!$C$20="kyllä",24%,0%) -> 0.24 | L99: 0
A100: 191 | I100: 1 | J100: 0 | K100: =IF(Etusivu!$C$20="kyllä",24%,0%) -> 0.24 | L100: 0
A101: 192 | I101: 1 | J101: 0 | K101: =IF(Etusivu!$C$20="kyllä",24%,0%) -> 0.24 | L101: 0
A102: 193 | I102: 1 | J102: 0 | K102: =IF(Etusivu!$C$20="kyllä",24%,0%) -> 0.24 | L102: 0
A103: 194 | I103: 1 | J103: 0 | K103: =IF(Etusivu!$C$20="kyllä",24%,0%) -> 0.24 | L103: 0
A104: 195 | I104: 1 | J104: 0 | K104: =IF(Etusivu!$C$20="kyllä",24%,0%) -> 0.24 | L104: 0
A105: 196 | I105: 1 | J105: 0 | K105: =IF(Etusivu!$C$20="kyllä",24%,0%) -> 0.24 | L105: 0
A106: 197 | I106: 1 | J106: 0 | K106: =IF(Etusivu!$C$20="kyllä",24%,0%) -> 0.24 | L106: 0
A107: 198 | I107: 1 | J107: 0 | K107: =IF(Etusivu!$C$20="kyllä",24%,0%) -> 0.24 | L107: 0
A108: 199 | I108: 1 | J108: 0 | K108: =IF(Etusivu!$C$20="kyllä",24%,0%) -> 0.24 | L108: 0
A109: 200 | I109: 1 | J109: 0 | K109: =IF(Etusivu!$C$20="kyllä",24%,0%) -> 0.24 | L109: 0
A110: 201 | I110: 1 | J110: 0 | K110: =IF(Etusivu!$C$20="kyllä",24%,0%) -> 0.24 | L110: 0
A111: 202 | I111: 1 | J111: 0 | K111: =IF(Etusivu!$C$20="kyllä",24%,0%) -> 0.24 | L111: 0
A112: 203 | I112: 1 | J112: 0 | K112: =IF(Etusivu!$C$20="kyllä",24%,0%) -> 0.24 | L112: 0
A113: 204 | I113: 1 | J113: 0 | K113: =IF(Etusivu!$C$20="kyllä",24%,0%) -> 0.24 | L113: =IF(R113>0,R113*K113,F113*K113+G113*K113+H113*K113) -> 0
A114: 205 | I114: 1 | J114: 0 | K114: =IF(Etusivu!$C$20="kyllä",24%,0%) -> 0.24 | L114: 0
A115: 206 | I115: 1 | J115: 0 | K115: =IF(Etusivu!$C$20="kyllä",24%,0%) -> 0.24 | L115: 0
A116: 207 | I116: 1 | J116: 0 | K116: =IF(Etusivu!$C$20="kyllä",24%,0%) -> 0.24 | L116: 0
A117: 208 | I117: 1 | J117: 0 | K117: =IF(Etusivu!$C$20="kyllä",24%,0%) -> 0.24 | L117: 0
A118: 209 | I118: 1 | J118: 0 | K118: =IF(Etusivu!$C$20="kyllä",24%,0%) -> 0.24 | L118: 0
A119: 210 | I119: 1 | J119: 0 | K119: =IF(Etusivu!$C$20="kyllä",24%,0%) -> 0.24 | L119: 0
A120: 211 | I120: 1 | J120: 0 | K120: =IF(Etusivu!$C$20="kyllä",24%,0%) -> 0.24 | L120: 0
A121: 212 | I121: 1 | J121: 0 | K121: =IF(Etusivu!$C$20="kyllä",24%,0%) -> 0.24 | L121: 0
A122: 213 | I122: 1 | J122: 0 | K122: =IF(Etusivu!$C$20="kyllä",24%,0%) -> 0.24 | L122: 0
A123: 214 | I123: 1 | J123: 0 | K123: =IF(Etusivu!$C$20="kyllä",24%,0%) -> 0.24 | L123: 0
A124: 215 | I124: 1 | J124: 0 | K124: =IF(Etusivu!$C$20="kyllä",24%,0%) -> 0.24 | L124: 0
A125: 216 | I125: 1 | J125: 0 | K125: =IF(Etusivu!$C$20="kyllä",24%,0%) -> 0.24 | L125: 0
A126: 217 | I126: 1 | J126: 0 | K126: =IF(Etusivu!$C$20="kyllä",24%,0%) -> 0.24 | L126: 0
A127: 218 | I127: 1 | J127: 0 | K127: =IF(Etusivu!$C$20="kyllä",24%,0%) -> 0.24 | L127: 0
A128: 219 | I128: 1 | J128: 0 | K128: =IF(Etusivu!$C$20="kyllä",24%,0%) -> 0.24 | L128: 0
A129: 220 | I129: 1 | J129: 0 | K129: =IF(Etusivu!$C$20="kyllä",24%,0%) -> 0.24 | L129: 0
A130: 221 | I130: 1 | J130: 0 | K130: =IF(Etusivu!$C$20="kyllä",24%,0%) -> 0.24 | L130: 0
A131: 222 | I131: 1 | J131: 0 | K131: =IF(Etusivu!$C$20="kyllä",24%,0%) -> 0.24 | L131: 0
A132: 223 | I132: 1 | J132: 0 | K132: =IF(Etusivu!$C$20="kyllä",24%,0%) -> 0.24 | L132: 0
A133: 224 | I133: 1 | J133: 0 | K133: =IF(Etusivu!$C$20="kyllä",24%,0%) -> 0.24 | L133: 0
A134: 225 | I134: 1 | J134: 0 | K134: =IF(Etusivu!$C$20="kyllä",24%,0%) -> 0.24 | L134: 0
A135: 226 | I135: 1 | J135: 0 | K135: =IF(Etusivu!$C$20="kyllä",24%,0%) -> 0.24 | L135: 0
A136: 227 | I136: 1 | J136: 0 | K136: =IF(Etusivu!$C$20="kyllä",24%,0%) -> 0.24 | L136: 0
A137: 228 | I137: 1 | J137: 0 | K137: =IF(Etusivu!$C$20="kyllä",24%,0%) -> 0.24 | L137: 0
A138: 229 | I138: 1 | J138: 0 | K138: =IF(Etusivu!$C$20="kyllä",24%,0%) -> 0.24 | L138: 0
A139: 230 | I139: 1 | J139: 0 | K139: =IF(Etusivu!$C$20="kyllä",24%,0%) -> 0.24 | L139: 0
A140: 231 | I140: 1 | J140: 0 | K140: =IF(Etusivu!$C$20="kyllä",24%,0%) -> 0.24 | L140: 0
A141: 232 | I141: 1 | J141: 0 | K141: =IF(Etusivu!$C$20="kyllä",24%,0%) -> 0.24 | L141: 0
A142: 233 | I142: 1 | J142: 0 | K142: =IF(Etusivu!$C$20="kyllä",24%,0%) -> 0.24 | L142: 0
A143: 234 | I143: 1 | J143: 0 | K143: =IF(Etusivu!$C$20="kyllä",24%,0%) -> 0.24 | L143: 0
A144: 235 | I144: 1 | J144: 0 | K144: =IF(Etusivu!$C$20="kyllä",24%,0%) -> 0.24 | L144: 0
A145: 236 | I145: 1 | J145: 0 | K145: =IF(Etusivu!$C$20="kyllä",24%,0%) -> 0.24 | L145: 0
A146: 237 | I146: 1 | J146: 0 | K146: =IF(Etusivu!$C$20="kyllä",24%,0%) -> 0.24 | L146: 0
A147: 238 | I147: 1 | J147: 0 | K147: =IF(Etusivu!$C$20="kyllä",24%,0%) -> 0.24 | L147: 0
A148: 239 | I148: 1 | J148: 0 | K148: =IF(Etusivu!$C$20="kyllä",24%,0%) -> 0.24 | L148: 0
A149: 240 | I149: 1 | J149: 0 | K149: =IF(Etusivu!$C$20="kyllä",24%,0%) -> 0.24 | L149: 0
A150: 241 | I150: 1 | J150: 0 | K150: =IF(Etusivu!$C$20="kyllä",24%,0%) -> 0.24 | L150: 0
A151: 242 | I151: 1 | J151: 0 | K151: =IF(Etusivu!$C$20="kyllä",24%,0%) -> 0.24 | L151: 0
A152: 243 | I152: 1 | J152: 0 | K152: =IF(Etusivu!$C$20="kyllä",24%,0%) -> 0.24 | L152: 0
A153: 244 | I153: 1 | J153: 0 | K153: =IF(Etusivu!$C$20="kyllä",24%,0%) -> 0.24 | L153: 0
A154: 245 | I154: 1 | J154: 0 | K154: =IF(Etusivu!$C$20="kyllä",24%,0%) -> 0.24 | L154: 0
A155: 246 | I155: 1 | J155: 0 | K155: =IF(Etusivu!$C$20="kyllä",24%,0%) -> 0.24 | L155: 0
A156: 247 | I156: 1 | J156: 0 | K156: =IF(Etusivu!$C$20="kyllä",24%,0%) -> 0.24 | L156: 0
A157: 248 | I157: 1 | J157: 0 | K157: =IF(Etusivu!$C$20="kyllä",24%,0%) -> 0.24 | L157: 0
A158: 249 | I158: 1 | J158: 0 | K158: =IF(Etusivu!$C$20="kyllä",24%,0%) -> 0.24 | L158: 0
A159: 250 | I159: 1 | J159: 0 | K159: =IF(Etusivu!$C$20="kyllä",24%,0%) -> 0.24 | L159: 0
A160: 251 | I160: 1 | J160: 0 | K160: =IF(Etusivu!$C$20="kyllä",24%,0%) -> 0.24 | L160: 0
A161: 252 | I161: 1 | J161: 0 | K161: =IF(Etusivu!$C$20="kyllä",24%,0%) -> 0.24 | L161: 0
A162: 253 | I162: 1 | J162: 0 | K162: =IF(Etusivu!$C$20="kyllä",24%,0%) -> 0.24 | L162: 0
A163: 254 | I163: 1 | J163: 0 | K163: =IF(Etusivu!$C$20="kyllä",24%,0%) -> 0.24 | L163: =IF(R163>0,R163*K163,F163*K163+G163*K163+H163*K163) -> 0 | AA163: =IF($I163=1,IF($J163=0,$G163,0),0) -> 0 | AB163: =IF($I163=1,IF($J163=1,$G163,0),0) -> 0 | AC163: =IF($I163=2,IF($J163=0,$G163,0),0) -> 0 | AD163: =IF($I163=2,IF($J163=1,$G163,0),0) -> 0 | AE163: =IF($I163=3,IF($J163=0,$G163,0),0) -> 0 | AF163: =IF($I163=3,IF($J163=1,$G163,0),0) -> 0 | AG163: =IF($I163=4,IF($J163=0,$G163,0),0) -> 0 | AH163: =IF($I163=4,IF($J163=1,$G163,0),0) -> 0 | AI163: =IF($I163=5,IF($J163=0,$G163,0),0) -> 0 | AJ163: =IF($I163=5,IF($J163=1,$G163,0),0) -> 0 | AL163: =IF($I163=1,IF($J163=0,$H163,0),0) -> 0 | AM163: =IF($I163=1,IF($J163=1,$H163,0),0) -> 0 | AN163: =IF($I163=2,IF($J163=0,$H163,0),0) -> 0 | AO163: =IF($I163=2,IF($J163=1,$H163,0),0) -> 0 | AP163: =IF($I163=3,IF($J163=0,$H163,0),0) -> 0 | AQ163: =IF($I163=3,IF($J163=1,$H163,0),0) -> 0 | AR163: =IF($I163=4,IF($J163=0,$H163,0),0) -> 0 | AS163: =IF($I163=4,IF($J163=1,$H163,0),0) -> 0 | AT163: =IF($I163=5,IF($J163=0,$H163,0),0) -> 0 | AU163: =IF($I163=5,IF($J163=1,$H163,0),0) -> 0
A164: 255 | I164: 1 | J164: 0 | K164: =IF(Etusivu!$C$20="kyllä",24%,0%) -> 0.24 | L164: =IF(R164>0,R164*K164,F164*K164+G164*K164+H164*K164) -> 0 | Q164: =#REF! ->  | AA164: =IF($I164=1,IF($J164=0,$G164,0),0) -> 0 | AB164: =IF($I164=1,IF($J164=1,$G164,0),0) -> 0 | AC164: =IF($I164=2,IF($J164=0,$G164,0),0) -> 0 | AD164: =IF($I164=2,IF($J164=1,$G164,0),0) -> 0 | AE164: =IF($I164=3,IF($J164=0,$G164,0),0) -> 0 | AF164: =IF($I164=3,IF($J164=1,$G164,0),0) -> 0 | AG164: =IF($I164=4,IF($J164=0,$G164,0),0) -> 0 | AH164: =IF($I164=4,IF($J164=1,$G164,0),0) -> 0 | AI164: =IF($I164=5,IF($J164=0,$G164,0),0) -> 0 | AJ164: =IF($I164=5,IF($J164=1,$G164,0),0) -> 0 | AL164: =IF($I164=1,IF($J164=0,$H164,0),0) -> 0 | AM164: =IF($I164=1,IF($J164=1,$H164,0),0) -> 0 | AN164: =IF($I164=2,IF($J164=0,$H164,0),0) -> 0 | AO164: =IF($I164=2,IF($J164=1,$H164,0),0) -> 0 | AP164: =IF($I164=3,IF($J164=0,$H164,0),0) -> 0 | AQ164: =IF($I164=3,IF($J164=1,$H164,0),0) -> 0 | AR164: =IF($I164=4,IF($J164=0,$H164,0),0) -> 0 | AS164: =IF($I164=4,IF($J164=1,$H164,0),0) -> 0 | AT164: =IF($I164=5,IF($J164=0,$H164,0),0) -> 0 | AU164: =IF($I164=5,IF($J164=1,$H164,0),0) -> 0
A165: OHJE
A167: Omasta metsästä otettu puutavara,
A168: Erittely
E169: Tilat, joilla ei metsävähennysoikeutta | H169: Tilat, joilla on metsävähennysoikeus
A170: Määrä m3 | B170: Arvo eur/m3 | D170: KÄYTTÖKOHDE Valitse käyttökohde luettelosta | E170: 3.1 maatalouskäyttö | F170: 3.2 elinkeinokäyttö | G170: 3.3 yksityiskäyttö | H170: 3.1 maatalous-käyttö | I170: 3.2 elinkeino- käyttö | J170: 3.3 yksityis- käyttö
A171: =SUM(A172:A201) -> 21 | E171: =SUM(E172:E201) -> 0 | F171: 0 | G171: 0 | H171: 0 | I171: 0 | J171: 315
A172: 21 | B172: 15 | D172: Yksityiskäyttö, metsävähennys | E172: =IF(D172="Maatalouskäyttö",A172*B172,"") ->  | F172: =IF(D172="Elinkeinokäyttö",A172*B172,"") ->  | G172: =IF($D172="Yksityiskäyttö",$A172*$B172,"") ->  | H172: =IF($D172="Maatalouskäyttö, metsävähennys",$A172*$B172,"") ->  | I172: =IF($D172="Elinkeinokäyttö, metsävähennys",$A172*$B172,"") ->  | J172: =IF($D172="Yksityiskäyttö, metsävähennys",$A172*$B172,"") -> 315 | K172: Maatalouskäyttö
E173: =IF(D173="Maatalouskäyttö",A173*B173,"") ->  | F173: =IF(D173="Elinkeinokäyttö",A173*B173,"") ->  | G173: =IF($D173="Yksityiskäyttö",$A173*$B173,"") ->  | H173: =IF($D173="Maatalouskäyttö, metsävähennys",$A173*$B173,"") ->  | I173: =IF($D173="Elinkeinokäyttö, metsävähennys",$A173*$B173,"") ->  | J173: =IF($D173="Yksityiskäyttö, metsävähennys",$A173*$B173,"") ->  | K173: Elinkeinokäyttö
E174: =IF(D174="Maatalouskäyttö",A174*B174,"") ->  | F174: =IF(D174="Elinkeinokäyttö",A174*B174,"") ->  | G174: =IF($D174="Yksityiskäyttö",$A174*$B174,"") ->  | H174: =IF($D174="Maatalouskäyttö, metsävähennys",$A174*$B174,"") ->  | I174: =IF($D174="Elinkeinokäyttö, metsävähennys",$A174*$B174,"") ->  | J174: =IF($D174="Yksityiskäyttö, metsävähennys",$A174*$B174,"") ->  | K174: Yksityiskäyttö
K175: Maatalouskäyttö, metsävähennys
K176: Elinkeinokäyttö, metsävähennys
K177: Yksityiskäyttö, metsävähennys

Sheet Hank.työ 1
A1: Mette 2016
A2: Metsätalouden kirjanpito | F2: =Etusivu!C10 -> RAJOITETTU TESTIVESIO | U2: =CONCATENATE("Verovuodelta ",Etusivu!B7-1," uinumaan jätetyn hankintatyön arvo, Euroa") -> Verovuodelta 2015 uinumaan jätetyn hankintatyön arvo, Euroa
A3: Hankintatyön arvon laskenta | D3: Y-tunnus | E3: =Etusivu!C14 -> 1322222-2 | F3: =Etusivu!E10 -> Testitila 1:45 | P3: ohje | W3: YHTEENSÄ | X3: Maatila 1 | Y3: Maatila 2 | Z3: Maatila 3 | AA3: Maatila 4 | AB3: Maatila 5
A4: Normaali hankintatyö (1.2.) | K4: Kuljetuksen konekustan- nukset käytössä | M4: Ei | P4: #### - ohje | U4: Hankintatyön arvo, € | W4: =SUM(X4:AB4) -> 0 | Z4: 0 | AA4: 0 | AB4: 0
C5: Maatila 1 | D5: Maatila 2 | E5: Maatila 3 | F5: Maatila 4 | G5: Maatila 5 | I5: Täyttöoppaan taksat | K5: Valmistus | L5: Kuljetus | M5: Kulj. Konekust.
A6: Hankintakauppatulot maatilalta | C6: =P11+Q11 -> 3450 | D6: =+P12+Q12 -> 0 | E6: =+P13+Q13 -> 0 | F6: =+P14+Q14 -> 0 | G6: =+P15+Q15 -> 0 | H6: € | I6: Mäntykuitu | K6: 12.52 | L6: 2.22 | M6: =IF(M$4="kyllä",N6,0) -> 0 | N6: 3.33
A7: Puutavaran verollinen arvo | C7: =IF(B48>=0,B48,"- arvo tarkista") -> 3131.79 | D7: =IF(B83>=0,B83,"- arvo tarkista") -> 0 | E7: =IF(B118>=0,B118,"- arvo tarkista") -> 0 | F7: =IF(B153>=0,B153,"- arvo tarkista") -> 0 | G7: =IF(B188>=0,B188,"- arvo tarkista") -> 0 | H7: € | I7: Kuusikuitu | K7: 13.1 | L7: 2.36 | M7: 0 | N7: 3.53 | O7: Aputaulukko: Tulot maatiloittain | U7: =CONCATENATE("Verovuoden ",Etusivu!B$7," uinumaan jäävä hankintatyö") -> Verovuoden 2016 uinumaan jäävä hankintatyö
A8: Konekustannusosuus (vuosimenoa) | C8: =+B45 -> 0 | D8: =+B80 -> 0 | E8: =+B115 -> 0 | F8: =+B150 -> 0 | G8: =+B185 -> 0 | H8: € | I8: Koivukuitu | K8: 11.58 | L8: 2.59 | M8: 0 | N8: 3.89 | O8: Maatila | P8: EI metsävähen- nysoikeutta | Q8: Metsävähen-nysoikeus | U8: TÄHÄN ALLE VAIN NE KUUTIOMÄÄRÄT JOTKA ON TEHTY VEROVUONNA, MUTTA MYYDÄÄN TULEVANA VEROVUONNA Siirrä seuraavan vuoden veroilmoitukseen hankintatyön arvoon (lomake 2C kohta 2.1)
A9: Valmistettu määrä yhteensä | C9: =+B46 -> 21 | D9: =+B81 -> 0 | E9: =+B116 -> 0 | F9: =+B151 -> 0 | G9: =+B186 -> 0 | H9: m3 | I9: Mäntytukki | K9: 5.42 | L9: 2.15 | M9: 0 | N9: 3.22
A10: Valmistuksen arvo yhteensä | C10: =+B43 -> 267.5 | D10: =+B78 -> 0 | E10: =+B113 -> 0 | F10: =+B148 -> 0 | G10: =+B183 -> 0 | H10: € | I10: Kuusitukki | K10: 6.98 | L10: 2.17 | M10: 0 | N10: 3.26
A11: Valmistuksen verollinen arvo (125 m3 verovapaata työtä) | C11: =IF(C9+'Hank.työ 2'!C9=0,0,IF((C9+'Hank.työ 2'!C9-125)/(C9+'Hank.työ 2'!C9)*C10>0,(C9+'Hank.työ 2'!C9-125)/(C9+'Hank.työ 2'!C9)*C10,0)) -> 0 | D11: =IF(D9+'Hank.työ 2'!D9=0,0,IF((D9+'Hank.työ 2'!D9-125)/(D9+'Hank.työ 2'!D9)*D10>0,(D9+'Hank.työ 2'!D9-125)/(D9+'Hank.työ 2'!D9)*D10,0)) -> 0 | E11: =IF(E9+'Hank.työ 2'!E9=0,0,IF((E9+'Hank.työ 2'!E9-125)/(E9+'Hank.työ 2'!E9)*E10>0,(E9+'Hank.työ 2'!E9-125)/(E9+'Hank.työ 2'!E9)*E10,0)) -> 0 | F11: =IF(F9+'Hank.työ 2'!F9=0,0,IF((F9+'Hank.työ 2'!F9-125)/(F9+'Hank.työ 2'!F9)*F10>0,(F9+'Hank.työ 2'!F9-125)/(F9+'Hank.työ 2'!F9)*F10,0)) -> 0 | G11: =IF(G9+'Hank.työ 2'!G9=0,0,IF((G9+'Hank.työ 2'!G9-125)/(G9+'Hank.työ 2'!G9)*G10>0,(G9+'Hank.työ 2'!G9-125)/(G9+'Hank.työ 2'!G9)*G10,0)) -> 0 | H11: € | I11: Koivutukki | K11: 5.15 | L11: 2.46 | M11: 0 | N11: 3.7 | O11: 1 | P11: =Tulot!AA7+Tulot!F171 -> 0 | Q11: =Tulot!AB7+Tulot!I171 -> 3450
A12: Kuljetuksen määrä yhteensä | C12: =+B47 -> 21 | D12: =+B82 -> 0 | E12: =+B117 -> 0 | F12: =+B152 -> 0 | G12: =+B187 -> 0 | H12: m3 | I12: Lahopuu | O12: 2 | P12: =Tulot!AC7 -> 0 | Q12: =Tulot!AD7 -> 0
A13: kuljetuksen arvo yhteensä | C13: =+B44 -> 50.71 | D13: =+B79 -> 0 | E13: =+B114 -> 0 | F13: =+B149 -> 0 | G13: =+B184 -> 0 | H13: € | I13: Erikoispuu | O13: 3 | P13: =Tulot!AE7 -> 0 | Q13: =Tulot!AF7 -> 0 | X13: Maatila 1 | Y13: Maatila 2 | Z13: Maatila 3 | AA13: Maatila 4 | AB13: Maatila 5
A14: Kuljetuksen verollinen arvo (125 m3 verovapaata työtä) | C14: =IF(C12+'Hank.työ 2'!C12=0,0,IF((C12+'Hank.työ 2'!C12-125)/(C12+'Hank.työ 2'!C12)*C13>0,(C12+'Hank.työ 2'!C12-125)/(C12+'Hank.työ 2'!C12)*C13,0)) -> 0 | D14: =IF(D12+'Hank.työ 2'!D12=0,0,IF((D12+'Hank.työ 2'!D12-125)/(D12+'Hank.työ 2'!D12)*D13>0,(D12+'Hank.työ 2'!D12-125)/(D12+'Hank.työ 2'!D12)*D13,0)) -> 0 | E14: =IF(E12+'Hank.työ 2'!E12=0,0,IF((E12+'Hank.työ 2'!E12-125)/(E12+'Hank.työ 2'!E12)*E13>0,(E12+'Hank.työ 2'!E12-125)/(E12+'Hank.työ 2'!E12)*E13,0)) -> 0 | F14: =IF(F12+'Hank.työ 2'!F12=0,0,IF((F12+'Hank.työ 2'!F12-125)/(F12+'Hank.työ 2'!F12)*F13>0,(F12+'Hank.työ 2'!F12-125)/(F12+'Hank.työ 2'!F12)*F13,0)) -> 0 | G14: =IF(G12+'Hank.työ 2'!G12=0,0,IF((G12+'Hank.työ 2'!G12-125)/(G12+'Hank.työ 2'!G12)*G13>0,(G12+'Hank.työ 2'!G12-125)/(G12+'Hank.työ 2'!G12)*G13,0)) -> 0 | H14: € | I14: Energiapuu (kokopuu) | K14: 7.73 | L14: 4.05 | M14: =IF(M$4="kyllä",N14,0) -> 0 | N14: 6.08 | O14: 4 | P14: =Tulot!AG7 -> 0 | Q14: =Tulot!AH7 -> 0 | U14: Valmistettu määrä yhteensä | X14: =AB46 -> 0 | Y14: =AB81 -> 0 | Z14: =AB116 -> 0 | AA14: =AB151 -> 0 | AB14: =AB186 -> 0 | AC14: m3
A15: Hankintatyön arvo yhteensä | C15: =C10+C13 -> 318.21 | D15: =D10+D13 -> 0 | E15: =E10+E13 -> 0 | F15: =F10+F13 -> 0 | G15: =G10+G13 -> 0 | H15: € | I15: Halot ja klapit (tukkumyynti) | K15: 26.26 | L15: 2.59 | M15: =IF(M$4="kyllä",N15,0) -> 0 | N15: 3.89 | O15: 5 | P15: =Tulot!AI7 -> 0 | Q15: =Tulot!AJ7 -> 0 | U15: Valmistuksen arvo yhteensä | X15: =AB43 -> 0 | Y15: =AB78 -> 0 | Z15: =AB113 -> 0 | AA15: =AB148 -> 0 | AB15: =AB183 -> 0 | AC15: €
A16: Hankintatyön verollinen arvo yhteensä | C16: =(C11+C14) -> 0 | D16: =(D11+D14) -> 0 | E16: =(E11+E14) -> 0 | F16: =(F11+F14) -> 0 | G16: =(G11+G14) -> 0 | H16: € | I16: Haketus | K16: 4.1 | O16: yhteensä | P16: =SUM(P11:P15) -> 0 | Q16: =SUM(Q11:Q15) -> 3450 | U16: Kuljetuksen määrä yhteensä | X16: =AB47 -> 0 | Y16: =AB82 -> 0 | Z16: =AB117 -> 0 | AA16: =AB152 -> 0 | AB16: =AB187 -> 0 | AC16: m3
A17: Hakkuumäärä yht. verovuonna (sis. hank.työ 1 ja 2) | C17: =C9+'Hank.työ 2'!C9 -> 21 | D17: =D9+'Hank.työ 2'!D9 -> 0 | E17: =E9+'Hank.työ 2'!E9 -> 0 | F17: =F9+'Hank.työ 2'!F9 -> 0 | G17: =G9+'Hank.työ 2'!G9 -> 0 | I17: Hake | L17: 2.59 | M17: =IF(M$4="kyllä",N17,0) -> 0 | N17: 3.89 | U17: kuljetuksen arvo yhteensä | X17: =AB44 -> 0 | Y17: =AB79 -> 0 | Z17: =AB114 -> 0 | AA17: =AB149 -> 0 | AB17: =AB184 -> 0 | AC17: €
I18: Joulupuut (ytukkumyynti) | U18: HANKINTATYÖN ARVO YHTEENSÄ | X18: =X15+X17 -> 0 | Y18: =Y15+Y17 -> 0 | Z18: =Z15+Z17 -> 0 | AA18: =AA15+AA17 -> 0 | AB18: =AB15+AB17 -> 0 | AC18: €
A19: Uinumaan jäävän hankintatyön laskenta oikealla sarakkeilla U - AB | U19: Siirrä nämä alarivin summat seuraavan vuoden verotukseen uinumaan jätettyinä hankintatyön arvoina.
A21: MAATILA 1 | B21: Maatila 1, tilat joilla ei metsävähennysoikeutta | J21: Maatila 1, tilat joilla metsävähennysoikeus | U21: Maatila 1, Hakkuu verovuonna - Puun myynti seuraavana vuonna. UINUMAAN JÄÄVÄ HAKKUUMÄÄRÄ
A22: Kunta: | B22: HAKKUU | E22: KULJETUS | H22: Ohje konekustannus | J22: HAKKUU | M22: KULJETUS | P22: Ohje konekustannus | U22: HAKKUU | X22: KULJETUS | AA22: Ohje konekustannus
B23: =P$11 -> 0 | J23: =Q11 -> 3450
C25: valmistuksen arvo | E25: Määrä | F25: Kuljetustyön arvo | H25: Konekustannus | K25: valmistuksen arvo | M25: Määrä | N25: Kuljetustyön arvo | P25: Konekustannus | V25: valmistuksen arvo | X25: Määrä | Y25: Kuljetustyön arvo | AA25: Konekustannus
B26: m3 | C26: €/m3 | D26: € | E26: m3 | F26: €/m3 | G26: € | H26: €/m3 | I26: € | J26: m3 | K26: €/m3 | L26: € | M26: m3 | N26: €/m3 | O26: € | P26: €/m3 | Q26: € | U26: m3 | V26: €/m3 | W26: € | X26: m3 | Y26: €/m3 | Z26: € | AA26: €/m3 | AB26: €
A27: Mäntykuitu | C27: =$K6 -> 12.52 | D27: =B27*C27 -> 0 | E27: 0 | F27: =$L6 -> 2.22 | G27: =E27*F27 -> 0 | H27: =$M6 -> 0 | I27: =H27*E27 -> 0 | J27: 0 | K27: =$K6 -> 12.52 | L27: =J27*K27 -> 0 | M27: 0 | N27: =$L6 -> 2.22 | O27: =M27*N27 -> 0 | P27: =$M6 -> 0 | Q27: =P27*M27 -> 0 | T27: MäK | V27: =$K6 -> 12.52 | W27: =U27*V27 -> 0 | X27: 0 | Y27: =$L6 -> 2.22 | Z27: =X27*Y27 -> 0 | AA27: =$M6 -> 0 | AB27: =AA27*X27 -> 0
A28: Kuusikuitu | C28: 13.1 | D28: 0 | F28: 2.36 | G28: =E28*F28 -> 0 | H28: 0 | I28: =H28*E28 -> 0 | J28: 16 | K28: 13.1 | L28: 209.6 | M28: 16 | N28: 2.36 | O28: 37.76 | P28: 0 | Q28: =P28*M28 -> 0 | T28: KuK | V28: 13.1 | W28: 0 | Y28: 2.36 | Z28: 0 | AA28: 0 | AB28: =AA28*X28 -> 0
A29: Koivukuitu | C29: 11.58 | D29: 0 | F29: 2.59 | G29: 0 | H29: 0 | I29: 0 | J29: 5 | K29: 11.58 | L29: 57.9 | M29: 5 | N29: 2.59 | O29: 12.95 | P29: 0 | Q29: 0 | T29: KoK | U29: 0 | V29: 11.58 | W29: 0 | X29: 0 | Y29: 2.59 | Z29: 0 | AA29: 0 | AB29: 0
A30: Mäntytukki | B30: 0 | C30: 5.42 | D30: 0 | E30: 0 | F30: 2.15 | G30: 0 | H30: 0 | I30: 0 | J30: 0 | K30: 5.42 | L30: 0 | M30: 0 | N30: 2.15 | O30: 0 | P30: 0 | Q30: 0 | T30: MäT | U30: 0 | V30: 5.42 | W30: 0 | X30: 0 | Y30: 2.15 | Z30: 0 | AA30: 0 | AB30: 0
A31: Kuusitukki | B31: 0 | C31: 6.98 | D31: 0 | E31: 0 | F31: 2.17 | G31: 0 | H31: 0 | I31: 0 | J31: 0 | K31: 6.98 | L31: 0 | M31: 0 | N31: 2.17 | O31: 0 | P31: 0 | Q31: 0 | T31: KuK | V31: 6.98 | W31: 0 | X31: 0 | Y31: 2.17 | Z31: 0 | AA31: 0 | AB31: 0
A32: Koivutukki | C32: 5.15 | D32: 0 | F32: 2.46 | G32: 0 | H32: 0 | I32: 0 | J32: 0 | K32: 5.15 | L32: 0 | M32: 0 | N32: 2.46 | O32: 0 | P32: 0 | Q32: 0 | T32: KoT | U32: 0 | V32: 5.15 | W32: 0 | X32: 0 | Y32: 2.46 | Z32: 0 | AA32: 0 | AB32: 0
A33: Lahopuu | B33: 0 | C33: 0 | D33: 0 | E33: 0 | F33: 0 | G33: 0 | H33: 0 | I33: 0 | J33: 0 | K33: 0 | L33: 0 | M33: 0 | N33: 0 | O33: 0 | P33: 0 | Q33: 0 | T33: Laho | U33: 0 | V33: 0 | W33: 0 | X33: 0 | Y33: 0 | Z33: 0 | AA33: 0 | AB33: 0
A34: Erikoispuu | B34: 0 | C34: 0 | D34: =B34*C34 -> 0 | E34: 0 | F34: 0 | G34: 0 | H34: 0 | I34: =H34*E34 -> 0 | J34: 0 | K34: 0 | L34: =J34*K34 -> 0 | M34: 0 | N34: 0 | O34: =M34*N34 -> 0 | P34: 0 | Q34: =P34*M34 -> 0 | T34: Erikpuu | U34: 0 | V34: 0 | W34: =U34*V34 -> 0 | X34: 0 | Y34: 0 | Z34: =X34*Y34 -> 0 | AA34: 0 | AB34: =AA34*X34 -> 0
A35: Energiapuu (kokopuu) | B35: 0 | C35: 7.73 | D35: =B35*C35 -> 0 | E35: 0 | F35: 4.05 | G35: 0 | H35: 0 | I35: =H35*E35 -> 0 | J35: 0 | K35: 7.73 | L35: =J35*K35 -> 0 | M35: 0 | N35: 4.05 | O35: =M35*N35 -> 0 | P35: 0 | Q35: =P35*M35 -> 0 | T35: Energ.puu | U35: 0 | V35: 7.73 | W35: =U35*V35 -> 0 | X35: 0 | Y35: 4.05 | Z35: =X35*Y35 -> 0 | AA35: 0 | AB35: =AA35*X35 -> 0
A36: Halot ja klapit (tukkumyynti) | C36: 26.26 | D36: =B36*C36 -> 0 | F36: 2.59 | G36: 0 | H36: 0 | I36: =H36*E36 -> 0 | J36: 0 | K36: 26.26 | L36: =J36*K36 -> 0 | M36: 0 | N36: 2.59 | O36: =M36*N36 -> 0 | P36: 0 | Q36: =P36*M36 -> 0 | T36: Halot ja klapit | U36: 0 | V36: 26.26 | W36: =U36*V36 -> 0 | X36: 0 | Y36: 2.59 | Z36: =X36*Y36 -> 0 | AA36: 0 | AB36: =AA36*X36 -> 0
A37: Haketus | B37: 0 | C37: =$K16 -> 4.1 | D37: =B37*C37 -> 0 | E37: 0 | F37: - | G37: - | H37: =$M16 -> 0 | I37: =H37*E37 -> 0 | J37: 0 | K37: =$K16 -> 4.1 | L37: =J37*K37 -> 0 | M37: 0 | N37: - | O37: - | P37: =$M16 -> 0 | Q37: =P37*M37 -> 0 | T37: Haketus | U37: 0 | V37: 4.1 | W37: =U37*V37 -> 0 | X37: 0 | Y37: - | Z37: - | AA37: 0 | AB37: =AA37*X37 -> 0
A38: Hake | B38: 0 | C38: - | D38: - | E38: 0 | F38: =$L17 -> 2.59 | G38: 0 | H38: =$M17 -> 0 | I38: =H38*E38 -> 0 | J38: 0 | K38: - | L38: - | M38: 0 | N38: =$L17 -> 2.59 | O38: =M38*N38 -> 0 | P38: =$M17 -> 0 | Q38: =P38*M38 -> 0 | T38: Hake | U38: 0 | V38: - | W38: - | X38: 0 | Y38: =$L17 -> 2.59 | Z38: =X38*Y38 -> 0 | AA38: =$M17 -> 0 | AB38: =AA38*X38 -> 0
A39: Joulupuut (tukkumyynti) | C39: =$K$18 -> 0 | D39: =B39*C39 -> 0 | F39: =$L$18 -> 0 | H39: =$M$18 -> 0 | K39: =$K$18 -> 0 | L39: =J39*K39 -> 0 | N39: =$L$18 -> 0 | P39: =$M$18 -> 0 | T39: Joulupuu | V39: =$K$18 -> 0 | Y39: =$L$18 -> 0 | AA39: =$M$18 -> 0
A40: Yhteensä | B40: =SUM(B27:B39) -> 0 | D40: =SUM(D27:D39) -> 0 | E40: =SUM(E27:E39) -> 0 | G40: =SUM(G27:G39) -> 0 | I40: =SUM(I27:I39) -> 0 | J40: =SUM(J27:J39) -> 21 | L40: =SUM(L27:L39) -> 267.5 | M40: =SUM(M27:M39) -> 21 | O40: =SUM(O27:O39) -> 50.71 | Q40: =SUM(Q27:Q39) -> 0 | T40: Yhteensä | U40: =SUM(U27:U39) -> 0 | W40: =SUM(W27:W39) -> 0 | X40: =SUM(X27:X39) -> 0 | Z40: =SUM(Z27:Z39) -> 0 | AB40: =SUM(AB27:AB39) -> 0
B42: YHTEENSÄ | I42: Ei metsävähennystä | Q42: Metsävähennykseen oikeutettujen tilojen hakkuut
A43: Hakkuutyön arvo | B43: =I43+Q43 -> 267.5 | H43: Hakkuutyön arvo | I43: =D40 -> 0 | P43: Hakkuutyön arvo | Q43: =L40 -> 267.5 | AA43: Hakkuutyön arvo | AB43: =W40 -> 0
A44: Kuljetuksen arvo | B44: 50.71 | H44: Kuljetuksen arvo | I44: =G40 -> 0 | P44: Kuljetuksen arvo | Q44: =O40 -> 50.71 | AA44: Kuljetuksen arvo | AB44: =Z40 -> 0
A45: Konekustannus (muuta vuosimenoa) | B45: 0 | H45: Konekustannus | I45: =I40 -> 0 | P45: Konekustannus | Q45: =Q40 -> 0 | AA45: Konekustannus | AB45: =AB40 -> 0
A46: Hakkuun määrä yhteensä | B46: 21 | H46: Hakkuun määrä | I46: =B40 -> 0 | P46: Hakkuun määrä | Q46: =J40 -> 21 | AA46: Hakkuun määrä | AB46: =U40 -> 0
A47: Kuljetuksen määrä yhteensä | B47: 21 | H47: Kuljetuksen määrä | I47: =E40 -> 0 | P47: Kuljetuksen määrä | Q47: =M40 -> 21 | AA47: Kuljetuksen määrä | AB47: =X40 -> 0
A48: Puutavaran verollinen arvo | B48: 3131.79 | H48: Puutavaran verollinen arvo | I48: =(B23-I43-I44-I45) -> 0 | P48: Metsävähennykseen oikeuttava osa (verollinen osa) | Q48: =(J23-Q43-Q44-Q45) -> 3131.79
B51: Hakattu määrä yhteensä | C51: =B46 -> 21
B52: Kuljetettu määrä yhteensä | C52: =B47 -> 21
A53: Tarkistus: | B53: =IF(C52>C51,"Kuljetettu määrä on valmistettua määrää suurempi",IF(C52=C51,"Valmistettu ja kuljetettu määrä yhtäsuuret","Valmistettu määrä on kuljetettua määrää isompi")) -> Valmistettu ja kuljetettu määrä yhtäsuuret
A56: MAATILA 2 | B56: Maatila 2, tilat joilla ei metsävähennysoikeutta | J56: Maatila 2, tilat joilla metsävähennysoikeus | U56: Maatila 2, Hakkuu verovuonna - Puun myynti seuraavana vuonna. UINUMAAN JÄÄVÄ HAKKUUMÄÄRÄ
A57: Kunta: | B57: HAKKUU | E57: KULJETUS | J57: HAKKUU | M57: KULJETUS | U57: HAKKUU | X57: KULJETUS
B58: =P$12 -> 0 | H58: Ohje konekustannus | J58: =Q12 -> 0 | P58: Ohje konekustannus | AA58: Ohje konekustannus
C60: valmistuksen arvo | E60: Määrä | F60: Kuljetustyön arvo | H60: Konekustannus | K60: valmistuksen arvo | M60: Määrä | N60: Kuljetustyön arvo | P60: Konekustannus | V60: valmistuksen arvo | X60: Määrä | Y60: Kuljetustyön arvo | AA60: Konekustannus
B61: m3 | C61: €/m3 | D61: € | E61: m3 | F61: €/m3 | G61: € | H61: €/m3 | I61: € | J61: m3 | K61: €/m3 | L61: € | M61: m3 | N61: €/m3 | O61: € | P61: €/m3 | Q61: € | U61: m3 | V61: €/m3 | W61: € | X61: m3 | Y61: €/m3 | Z61: € | AA61: €/m3 | AB61: €
A62: Mäntykuitu | B62: 0 | C62: =$K6 -> 12.52 | D62: =B62*C62 -> 0 | E62: 0 | F62: =$L6 -> 2.22 | G62: =E62*F62 -> 0 | H62: =$M6 -> 0 | I62: =H62*E62 -> 0 | J62: 0 | K62: =$K6 -> 12.52 | L62: =J62*K62 -> 0 | M62: 0 | N62: =$L6 -> 2.22 | O62: =M62*N62 -> 0 | P62: =$M6 -> 0 | Q62: =P62*M62 -> 0 | T62: MäK | U62: 0 | V62: =$K6 -> 12.52 | W62: =U62*V62 -> 0 | X62: 0 | Y62: =$L6 -> 2.22 | Z62: =X62*Y62 -> 0 | AA62: =$M6 -> 0 | AB62: =AA62*X62 -> 0
A63: Kuusikuitu | B63: 0 | C63: 13.1 | D63: 0 | E63: 0 | F63: 2.36 | G63: =E63*F63 -> 0 | H63: 0 | I63: =H63*E63 -> 0 | J63: 0 | K63: 13.1 | L63: 0 | M63: 0 | N63: 2.36 | O63: 0 | P63: 0 | Q63: =P63*M63 -> 0 | T63: KuK | U63: 0 | V63: 13.1 | W63: 0 | X63: 0 | Y63: 2.36 | Z63: 0 | AA63: 0 | AB63: =AA63*X63 -> 0
A64: Koivukuitu | B64: 0 | C64: 11.58 | D64: 0 | E64: 0 | F64: 2.59 | G64: 0 | H64: 0 | I64: 0 | J64: 0 | K64: 11.58 | L64: 0 | M64: 0 | N64: 2.59 | O64: 0 | P64: 0 | Q64: 0 | T64: KoK | U64: 0 | V64: 11.58 | W64: 0 | X64: 0 | Y64: 2.59 | Z64: 0 | AA64: 0 | AB64: 0
A65: Mäntytukki | B65: 0 | C65: 5.42 | D65: 0 | E65: 0 | F65: 2.15 | G65: 0 | H65: 0 | I65: 0 | J65: 0 | K65: 5.42 | L65: 0 | M65: 0 | N65: 2.15 | O65: 0 | P65: 0 | Q65: 0 | T65: MäT | U65: 0 | V65: 5.42 | W65: 0 | X65: 0 | Y65: 2.15 | Z65: 0 | AA65: 0 | AB65: 0
A66: Kuusitukki | B66: 0 | C66: 6.98 | D66: 0 | E66: 0 | F66: 2.17 | G66: 0 | H66: 0 | I66: 0 | J66: 0 | K66: 6.98 | L66: 0 | M66: 0 | N66: 2.17 | O66: 0 | P66: 0 | Q66: 0 | T66: KuK | U66: 0 | V66: 6.98 | W66: 0 | X66: 0 | Y66: 2.17 | Z66: 0 | AA66: 0 | AB66: 0
A67: Koivutukki | B67: 0 | C67: 5.15 | D67: 0 | E67: 0 | F67: 2.46 | G67: 0 | H67: 0 | I67: 0 | J67: 0 | K67: 5.15 | L67: 0 | M67: 0 | N67: 2.46 | O67: 0 | P67: 0 | Q67: 0 | T67: KoT | U67: 0 | V67: 5.15 | W67: 0 | X67: 0 | Y67: 2.46 | Z67: 0 | AA67: 0 | AB67: 0
A68: Lahopuu | B68: 0 | C68: 0 | D68: 0 | E68: 0 | F68: 0 | G68: 0 | H68: 0 | I68: 0 | J68: 0 | K68: 0 | L68: 0 | M68: 0 | N68: 0 | O68: 0 | P68: 0 | Q68: 0 | T68: Laho | U68: 0 | V68: 0 | W68: 0 | X68: 0 | Y68: 0 | Z68: 0 | AA68: 0 | AB68: 0
A69: Erikoispuu | B69: 0 | C69: 0 | D69: =B69*C69 -> 0 | E69: 0 | F69: 0 | G69: 0 | H69: 0 | I69: =H69*E69 -> 0 | J69: 0 | K69: 0 | L69: =J69*K69 -> 0 | M69: 0 | N69: 0 | O69: =M69*N69 -> 0 | P69: 0 | Q69: =P69*M69 -> 0 | T69: Erikpuu | U69: 0 | V69: 0 | W69: =U69*V69 -> 0 | X69: 0 | Y69: 0 | Z69: =X69*Y69 -> 0 | AA69: 0 | AB69: =AA69*X69 -> 0
A70: Energiapuu (kokopuu) | B70: 0 | C70: 7.73 | D70: =B70*C70 -> 0 | E70: 0 | F70: 4.05 | G70: 0 | H70: 0 | I70: =H70*E70 -> 0 | J70: 0 | K70: 7.73 | L70: =J70*K70 -> 0 | M70: 0 | N70: 4.05 | O70: =M70*N70 -> 0 | P70: 0 | Q70: =P70*M70 -> 0 | T70: Energ.puu | U70: 0 | V70: 7.73 | W70: =U70*V70 -> 0 | X70: 0 | Y70: 4.05 | Z70: =X70*Y70 -> 0 | AA70: 0 | AB70: =AA70*X70 -> 0
A71: Halot ja klapit | B71: 0 | C71: 26.26 | D71: =B71*C71 -> 0 | E71: 0 | F71: 2.59 | G71: 0 | H71: 0 | I71: =H71*E71 -> 0 | J71: 0 | K71: 26.26 | L71: =J71*K71 -> 0 | M71: 0 | N71: 2.59 | O71: =M71*N71 -> 0 | P71: 0 | Q71: =P71*M71 -> 0 | T71: Halot ja klapit | U71: 0 | V71: 26.26 | W71: =U71*V71 -> 0 | X71: 0 | Y71: 2.59 | Z71: =X71*Y71 -> 0 | AA71: 0 | AB71: =AA71*X71 -> 0
A72: Haketus | B72: 0 | C72: 4.1 | D72: =B72*C72 -> 0 | E72: 0 | F72: - | G72: - | H72: 0 | I72: =H72*E72 -> 0 | J72: 0 | K72: 4.1 | L72: =J72*K72 -> 0 | M72: 0 | N72: - | O72: - | P72: 0 | Q72: =P72*M72 -> 0 | T72: Haketus | U72: 0 | V72: 4.1 | W72: =U72*V72 -> 0 | X72: 0 | Y72: - | Z72: - | AA72: 0 | AB72: =AA72*X72 -> 0
A73: Hake | B73: 0 | C73: - | D73: - | E73: 0 | F73: =$L17 -> 2.59 | G73: 0 | H73: 0 | I73: 0 | J73: 0 | K73: - | L73: - | M73: 0 | N73: =$L17 -> 2.59 | O73: 0 | P73: 0 | Q73: 0 | T73: Hake | U73: 0 | V73: - | W73: - | X73: 0 | Y73: =$L17 -> 2.59 | Z73: =X73*Y73 -> 0 | AA73: 0 | AB73: =AA73*X73 -> 0
A74: Joulupuut (tukkumyynti) | C74: =$K$18 -> 0 | D74: =B74*C74 -> 0 | F74: =$L$18 -> 0 | H74: =$M$18 -> 0 | K74: =$K$18 -> 0 | L74: =J74*K74 -> 0 | N74: =$L$18 -> 0 | P74: =$M$18 -> 0 | T74: Joulupuu | V74: =$K$18 -> 0 | Y74: =$L$18 -> 0 | AA74: =$M$18 -> 0
A75: Yhteensä | B75: =SUM(B62:B74) -> 0 | D75: =SUM(D62:D74) -> 0 | E75: =SUM(E62:E74) -> 0 | G75: =SUM(G62:G74) -> 0 | I75: =SUM(I62:I74) -> 0 | J75: =SUM(J62:J74) -> 0 | L75: =SUM(L62:L74) -> 0 | M75: =SUM(M62:M74) -> 0 | O75: =SUM(O62:O74) -> 0 | Q75: =SUM(Q62:Q74) -> 0 | T75: Yhteensä | U75: =SUM(U62:U74) -> 0 | W75: =SUM(W62:W74) -> 0 | X75: =SUM(X62:X74) -> 0 | Z75: =SUM(Z62:Z74) -> 0 | AB75: =SUM(AB62:AB74) -> 0
B77: YHTEENSÄ | I77: Ei metsävähennystä | Q77: Metsävähennykseen oikeutettujen tilojen hakkuut
A78: Hakkuutyön arvo yhteensä | B78: =I78+Q78 -> 0 | H78: Hakkuutyön arvo | I78: =D75 -> 0 | P78: Hakkuutyön arvo | Q78: =L75 -> 0 | AA78: Hakkuutyön arvo | AB78: =W75 -> 0
A79: Kuljetuksen arvo yhteensä | B79: 0 | H79: Kuljetuksen arvo | I79: =G75 -> 0 | P79: Kuljetuksen arvo | Q79: =O75 -> 0 | AA79: Kuljetuksen arvo | AB79: =Z75 -> 0
A80: Konekustannus (Muuta vuosimenoa) | B80: 0 | H80: Konekustannus | I80: =I75 -> 0 | P80: Konekustannus | Q80: =Q75 -> 0 | AA80: Konekustannus | AB80: =AB75 -> 0
A81: Hakkuun määrä yhteensä | B81: 0 | H81: Hakkuun määrä | I81: =B75 -> 0 | P81: Hakkuun määrä | Q81: =J75 -> 0 | AA81: Hakkuun määrä | AB81: =U75 -> 0
A82: Kuljetuksen määrä yhteensä | B82: 0 | H82: Kuljetuksen määrä | I82: =E75 -> 0 | P82: Kuljetuksen määrä | Q82: =M75 -> 0 | AA82: Kuljetuksen määrä | AB82: =X75 -> 0
A83: Puutavaran verollinen arvo | B83: 0 | H83: Puutavaran verollinen arvo | I83: =(B58-I78-I79-I80) -> 0 | P83: Metsävähennykseen oikeuttava osa (verollinen osa) | Q83: =(J58-Q78-Q79-Q80) -> 0
A86: Tarkistus | C86: Hakattu määrä yhteensä | D86: =B81 -> 0
C87: Kuljetettu määrä yhteensä | D87: =B82 -> 0
A88: Määrätarkistus: | B88: =IF(D87>D86,"Kuljetettu määrä on valmistettua määrää suurempi",IF(D87=D86,"Valmistettu ja kuljetettu määrä yhtäsuuret","Valmistettumääräonkuljetettuamäärääisompi")) -> Valmistettu ja kuljetettu määrä yhtäsuuret
A91: MAATILA 3 | B91: Maatila 3, tilat joilla ei metsävähennysoikeutta | J91: Maatila 3, tilat joilla metsävähennysoikeus | U91: Maatila 3, Hakkuu verovuonna - Puun myynti seuraavana vuonna. UINUMAAN JÄÄVÄ HAKKUUMÄÄRÄ
A92: Kunta: | B92: HAKKUU | E92: KULJETUS | J92: HAKKUU | M92: KULJETUS | U92: HAKKUU | X92: KULJETUS
B93: =P$13 -> 0 | H93: Ohje konekustannus | J93: =Q$13 -> 0 | P93: Ohje konekustannus | AA93: Ohje konekustannus
C95: valmistuksen arvo | E95: Määrä | F95: Kuljetustyön arvo | H95: Konekustannus | K95: valmistuksen arvo | M95: Määrä | N95: Kuljetustyön arvo | P95: Konekustannus | V95: valmistuksen arvo | X95: Määrä | Y95: Kuljetustyön arvo | AA95: Konekustannus
B96: m3 | C96: €/m3 | D96: € | E96: m3 | F96: €/m3 | G96: € | H96: €/m3 | I96: € | J96: m3 | K96: €/m3 | L96: € | M96: m3 | N96: €/m3 | O96: € | P96: €/m3 | Q96: € | U96: m3 | V96: €/m3 | W96: € | X96: m3 | Y96: €/m3 | Z96: € | AA96: €/m3 | AB96: €
A97: Mäntykuitu | B97: 0 | C97: =$K6 -> 12.52 | D97: =B97*C97 -> 0 | E97: 0 | F97: =$L6 -> 2.22 | G97: =E97*F97 -> 0 | H97: =$M6 -> 0 | I97: =H97*E97 -> 0 | J97: 0 | K97: =$K6 -> 12.52 | L97: =J97*K97 -> 0 | M97: 0 | N97: =$L6 -> 2.22 | O97: =M97*N97 -> 0 | P97: =$M6 -> 0 | Q97: =P97*M97 -> 0 | T97: MäK | U97: 0 | V97: =$K6 -> 12.52 | W97: =U97*V97 -> 0 | X97: 0 | Y97: =$L6 -> 2.22 | Z97: =X97*Y97 -> 0 | AA97: =$M6 -> 0 | AB97: =AA97*X97 -> 0
A98: Kuusikuitu | B98: 0 | C98: 13.1 | D98: 0 | E98: 0 | F98: 2.36 | G98: =E98*F98 -> 0 | H98: 0 | I98: =H98*E98 -> 0 | J98: 0 | K98: 13.1 | L98: 0 | M98: 0 | N98: 2.36 | O98: 0 | P98: 0 | Q98: =P98*M98 -> 0 | T98: KuK | U98: 0 | V98: 13.1 | W98: 0 | X98: 0 | Y98: 2.36 | Z98: 0 | AA98: 0 | AB98: =AA98*X98 -> 0
A99: Koivukuitu | B99: 0 | C99: 11.58 | D99: 0 | E99: 0 | F99: 2.59 | G99: 0 | H99: 0 | I99: 0 | J99: 0 | K99: 11.58 | L99: 0 | M99: 0 | N99: 2.59 | O99: 0 | P99: 0 | Q99: 0 | T99: KoK | U99: 0 | V99: 11.58 | W99: 0 | X99: 0 | Y99: 2.59 | Z99: 0 | AA99: 0 | AB99: 0
A100: Mäntytukki | B100: 0 | C100: 5.42 | D100: 0 | E100: 0 | F100: 2.15 | G100: 0 | H100: 0 | I100: 0 | J100: 0 | K100: 5.42 | L100: 0 | M100: 0 | N100: 2.15 | O100: 0 | P100: 0 | Q100: 0 | T100: MäT | U100: 0 | V100: 5.42 | W100: 0 | X100: 0 | Y100: 2.15 | Z100: 0 | AA100: 0 | AB100: 0
A101: Kuusitukki | B101: 0 | C101: 6.98 | D101: 0 | E101: 0 | F101: 2.17 | G101: 0 | H101: 0 | I101: 0 | J101: 0 | K101: 6.98 | L101: 0 | M101: 0 | N101: 2.17 | O101: 0 | P101: 0 | Q101: 0 | T101: KuK | U101: 0 | V101: 6.98 | W101: 0 | X101: 0 | Y101: 2.17 | Z101: 0 | AA101: 0 | AB101: 0
A102: Koivutukki | B102: 0 | C102: 5.15 | D102: 0 | E102: 0 | F102: 2.46 | G102: 0 | H102: 0 | I102: 0 | J102: 0 | K102: 5.15 | L102: 0 | M102: 0 | N102: 2.46 | O102: 0 | P102: 0 | Q102: 0 | T102: KoT | V102: 5.15 | W102: 0 | X102: 0 | Y102: 2.46 | Z102: 0 | AA102: 0 | AB102: 0
A103: Lahopuu | B103: 0 | C103: 0 | D103: 0 | E103: 0 | F103: 0 | G103: 0 | H103: 0 | I103: 0 | J103: 0 | K103: 0 | L103: 0 | M103: 0 | N103: 0 | O103: 0 | P103: 0 | Q103: 0 | T103: Laho | U103: 0 | V103: 0 | W103: 0 | X103: 0 | Y103: 0 | Z103: 0 | AA103: 0 | AB103: 0
A104: Erikoispuu | B104: 0 | C104: 0 | D104: =B104*C104 -> 0 | E104: 0 | F104: 0 | G104: 0 | H104: 0 | I104: =H104*E104 -> 0 | J104: 0 | K104: 0 | L104: =J104*K104 -> 0 | M104: 0 | N104: 0 | O104: =M104*N104 -> 0 | P104: 0 | Q104: =P104*M104 -> 0 | T104: Erikpuu | U104: 0 | V104: 0 | W104: =U104*V104 -> 0 | X104: 0 | Y104: 0 | Z104: =X104*Y104 -> 0 | AA104: 0 | AB104: =AA104*X104 -> 0
A105: Energiapuu (kokopuu) | B105: 0 | C105: 7.73 | D105: =B105*C105 -> 0 | E105: 0 | F105: 4.05 | G105: 0 | H105: 0 | I105: =H105*E105 -> 0 | J105: 0 | K105: 7.73 | L105: =J105*K105 -> 0 | M105: 0 | N105: 4.05 | O105: =M105*N105 -> 0 | P105: 0 | Q105: =P105*M105 -> 0 | T105: Energ.puu | U105: 0 | V105: 7.73 | W105: =U105*V105 -> 0 | X105: 0 | Y105: 4.05 | Z105: =X105*Y105 -> 0 | AA105: 0 | AB105: =AA105*X105 -> 0
A106: Halot ja klapit | B106: 0 | C106: 26.26 | D106: =B106*C106 -> 0 | E106: 0 | F106: 2.59 | G106: 0 | H106: 0 | I106: =H106*E106 -> 0 | J106: 0 | K106: 26.26 | L106: =J106*K106 -> 0 | M106: 0 | N106: 2.59 | O106: =M106*N106 -> 0 | P106: 0 | Q106: =P106*M106 -> 0 | T106: Halot ja klapit | U106: 0 | V106: 26.26 | W106: =U106*V106 -> 0 | X106: 0 | Y106: 2.59 | Z106: =X106*Y106 -> 0 | AA106: 0 | AB106: =AA106*X106 -> 0
A107: Haketus | B107: 0 | C107: 4.1 | D107: =B107*C107 -> 0 | E107: 0 | F107: - | G107: - | H107: 0 | I107: =H107*E107 -> 0 | J107: 0 | K107: 4.1 | L107: =J107*K107 -> 0 | M107: 0 | N107: - | O107: - | P107: 0 | Q107: =P107*M107 -> 0 | T107: Haketus | U107: 0 | V107: 4.1 | W107: =U107*V107 -> 0 | X107: 0 | Y107: - | Z107: - | AA107: 0 | AB107: =AA107*X107 -> 0
A108: Hake | B108: 0 | C108: - | D108: - | E108: 0 | F108: =$L17 -> 2.59 | G108: =E108*F108 -> 0 | H108: 0 | I108: =H108*E108 -> 0 | J108: 0 | K108: - | L108: - | M108: 0 | N108: =$L17 -> 2.59 | O108: =M108*N108 -> 0 | P108: 0 | Q108: =P108*M108 -> 0 | T108: Hake | U108: 0 | V108: - | W108: - | X108: 0 | Y108: =$L17 -> 2.59 | Z108: =X108*Y108 -> 0 | AA108: 0 | AB108: =AA108*X108 -> 0
A109: Joulupuut (tukkumyynti) | C109: =$K$18 -> 0 | D109: =B109*C109 -> 0 | F109: =$L$18 -> 0 | H109: =$M$18 -> 0 | K109: =$K$18 -> 0 | L109: =J109*K109 -> 0 | N109: =$L$18 -> 0 | P109: =$M$18 -> 0 | T109: Joulupuu | V109: =$K$18 -> 0 | Y109: =$L$18 -> 0 | AA109: =$M$18 -> 0
A110: Yhteensä | B110: =SUM(B97:B109) -> 0 | D110: =SUM(D97:D109) -> 0 | E110: =SUM(E97:E109) -> 0 | G110: =SUM(G97:G109) -> 0 | I110: =SUM(I97:I109) -> 0 | J110: =SUM(J97:J109) -> 0 | L110: =SUM(L97:L109) -> 0 | M110: =SUM(M97:M109) -> 0 | O110: =SUM(O97:O109) -> 0 | Q110: =SUM(Q97:Q109) -> 0 | T110: Yhteensä | U110: =SUM(U97:U109) -> 0 | W110: =SUM(W97:W109) -> 0 | X110: =SUM(X97:X109) -> 0 | Z110: =SUM(Z97:Z109) -> 0 | AB110: =SUM(AB97:AB109) -> 0
B112: YHTEENSÄ | I112: Ei metsävähennystä | Q112: Metsävähennykseen oikeutettujen tilojen hakkuut
A113: Hakkuutyön arvo yhteensä | B113: =I113+Q113 -> 0 | H113: Hakkuutyön arvo | I113: =D110 -> 0 | P113: Hakkuutyön arvo | Q113: =L110 -> 0 | AA113: Hakkuutyön arvo | AB113: =W110 -> 0
A114: Kuljetuksen arvo yhteensä | B114: 0 | H114: Kuljetuksen arvo | I114: =G110 -> 0 | P114: Kuljetuksen arvo | Q114: =O110 -> 0 | AA114: Kuljetuksen arvo | AB114: =Z110 -> 0
A115: Konekustannus (Muuta vuosimenoa) | B115: 0 | H115: Konekustannus | I115: =I110 -> 0 | P115: Konekustannus | Q115: =Q110 -> 0 | AA115: Konekustannus | AB115: =AB110 -> 0
A116: Hakkuun määrä yhteensä | B116: 0 | H116: Hakkuun määrä | I116: =B110 -> 0 | P116: Hakkuun määrä | Q116: =J110 -> 0 | AA116: Hakkuun määrä | AB116: =U110 -> 0
A117: Kuljetuksen määrä yhteensä | B117: 0 | H117: Kuljetuksen määrä | I117: =E110 -> 0 | P117: Kuljetuksen määrä | Q117: =M110 -> 0 | AA117: Kuljetuksen määrä | AB117: =X110 -> 0
A118: Puutavaran verollinen arvo | B118: 0 | H118: Puutavaran verollinen arvo | I118: =(B93-I113-I114-I115) -> 0 | P118: Metsävähennykseen oikeuttava osa (verollinen osa) | Q118: =(J93-Q113-Q114-Q115) -> 0
A121: Tarkistus | C121: Hakattu määrä yhteensä | D121: =B116 -> 0
C122: Kuljetettu määrä yhteensä | D122: =B117 -> 0
A123: Määrätarkistus: | B123: =IF(D122>D121,"Kuljetettu määrä on valmistettua määrää suurempi",IF(D122=D121,"Valmistettu ja kuljetettu määrä yhtäsuuret","Valmistettumääräonkuljetettuamäärääisompi")) -> Valmistettu ja kuljetettu määrä yhtäsuuret
A126: MAATILA 4 | B126: Maatila 4, tilat joilla ei metsävähennysoikeutta | J126: Maatila 4, tilat joilla metsävähennysoikeus | U126: Maatila 4, Hakkuu verovuonna - Puun myynti seuraavana vuonna. UINUMAAN JÄÄVÄ HAKKUUMÄÄRÄ
A127: Kunta: | B127: HAKKUU | E127: KULJETUS | J127: HAKKUU | M127: KULJETUS | U127: HAKKUU | X127: KULJETUS
B128: =P$14 -> 0 | H128: Ohje konekustannus | J128: =Q$14 -> 0 | P128: Ohje konekustannus | AA128: Ohje konekustannus
C130: valmistuksen arvo | E130: Määrä | F130: Kuljetustyön arvo | H130: Konekustannus | K130: valmistuksen arvo | M130: Määrä | N130: Kuljetustyön arvo | P130: Konekustannus | V130: valmistuksen arvo | X130: Määrä | Y130: Kuljetustyön arvo | AA130: Konekustannus
B131: m3 | C131: €/m3 | D131: € | E131: m3 | F131: €/m3 | G131: € | H131: €/m3 | I131: € | J131: m3 | K131: €/m3 | L131: € | M131: m3 | N131: €/m3 | O131: € | P131: €/m3 | Q131: € | U131: m3 | V131: €/m3 | W131: € | X131: m3 | Y131: €/m3 | Z131: € | AA131: €/m3 | AB131: €
A132: Mäntykuitu | B132: 0 | C132: =$K6 -> 12.52 | D132: =B132*C132 -> 0 | E132: 0 | F132: =$L6 -> 2.22 | G132: =E132*F132 -> 0 | H132: =$M6 -> 0 | I132: =H132*E132 -> 0 | J132: 0 | K132: =$K6 -> 12.52 | L132: =J132*K132 -> 0 | M132: 0 | N132: =$L6 -> 2.22 | O132: =M132*N132 -> 0 | P132: =$M6 -> 0 | Q132: =P132*M132 -> 0 | T132: MäK | U132: 0 | V132: =$K6 -> 12.52 | W132: =U132*V132 -> 0 | X132: 0 | Y132: =$L6 -> 2.22 | Z132: =X132*Y132 -> 0 | AA132: =$M6 -> 0 | AB132: =AA132*X132 -> 0
A133: Kuusikuitu | B133: 0 | C133: 13.1 | D133: 0 | E133: 0 | F133: 2.36 | G133: =E133*F133 -> 0 | H133: 0 | I133: =H133*E133 -> 0 | J133: 0 | K133: 13.1 | L133: 0 | M133: 0 | N133: 2.36 | O133: 0 | P133: 0 | Q133: =P133*M133 -> 0 | T133: KuK | U133: 0 | V133: 13.1 | W133: 0 | X133: 0 | Y133: 2.36 | Z133: 0 | AA133: 0 | AB133: =AA133*X133 -> 0
A134: Koivukuitu | B134: 0 | C134: 11.58 | D134: 0 | E134: 0 | F134: 2.59 | G134: 0 | H134: 0 | I134: 0 | J134: 0 | K134: 11.58 | L134: 0 | M134: 0 | N134: 2.59 | O134: 0 | P134: 0 | Q134: 0 | T134: KoK | U134: 0 | V134: 11.58 | W134: 0 | X134: 0 | Y134: 2.59 | Z134: 0 | AA134: 0 | AB134: 0
A135: Mäntytukki | B135: 0 | C135: 5.42 | D135: 0 | E135: 0 | F135: 2.15 | G135: 0 | H135: 0 | I135: 0 | J135: 0 | K135: 5.42 | L135: 0 | M135: 0 | N135: 2.15 | O135: 0 | P135: 0 | Q135: 0 | T135: MäT | U135: 0 | V135: 5.42 | W135: 0 | X135: 0 | Y135: 2.15 | Z135: 0 | AA135: 0 | AB135: 0
A136: Kuusitukki | B136: 0 | C136: 6.98 | D136: 0 | E136: 0 | F136: 2.17 | G136: 0 | H136: 0 | I136: 0 | J136: 0 | K136: 6.98 | L136: 0 | M136: 0 | N136: 2.17 | O136: 0 | P136: 0 | Q136: 0 | T136: KuK | U136: 0 | V136: 6.98 | W136: 0 | X136: 0 | Y136: 2.17 | Z136: 0 | AA136: 0 | AB136: 0
A137: Koivutukki | B137: 0 | C137: 5.15 | D137: 0 | E137: 0 | F137: 2.46 | G137: 0 | H137: 0 | I137: 0 | J137: 0 | K137: 5.15 | L137: 0 | M137: 0 | N137: 2.46 | O137: 0 | P137: 0 | Q137: 0 | T137: KoT | U137: 0 | V137: 5.15 | W137: 0 | X137: 0 | Y137: 2.46 | Z137: 0 | AA137: 0 | AB137: 0
A138: Lahopuu | B138: 0 | C138: 0 | D138: 0 | E138: 0 | F138: 0 | G138: 0 | H138: 0 | I138: 0 | J138: 0 | K138: 0 | L138: 0 | M138: 0 | N138: 0 | O138: 0 | P138: 0 | Q138: 0 | T138: Laho | U138: 0 | V138: 0 | W138: 0 | X138: 0 | Y138: 0 | Z138: 0 | AA138: 0 | AB138: 0
A139: Erikoispuu | B139: 0 | C139: 0 | D139: =B139*C139 -> 0 | E139: 0 | F139: 0 | G139: 0 | H139: 0 | I139: =H139*E139 -> 0 | J139: 0 | K139: 0 | L139: =J139*K139 -> 0 | M139: 0 | N139: 0 | O139: =M139*N139 -> 0 | P139: 0 | Q139: =P139*M139 -> 0 | T139: Erikpuu | U139: 0 | V139: 0 | W139: =U139*V139 -> 0 | X139: 0 | Y139: 0 | Z139: =X139*Y139 -> 0 | AA139: 0 | AB139: =AA139*X139 -> 0
A140: Energiapuu (kokopuu) | B140: 0 | C140: 7.73 | D140: =B140*C140 -> 0 | E140: 0 | F140: 4.05 | G140: 0 | H140: 0 | I140: =H140*E140 -> 0 | J140: 0 | K140: 7.73 | L140: =J140*K140 -> 0 | M140: 0 | N140: 4.05 | O140: =M140*N140 -> 0 | P140: 0 | Q140: =P140*M140 -> 0 | T140: Energ.puu | U140: 0 | V140: 7.73 | W140: =U140*V140 -> 0 | X140: 0 | Y140: 4.05 | Z140: =X140*Y140 -> 0 | AA140: 0 | AB140: =AA140*X140 -> 0
A141: Halot ja klapit | B141: 0 | C141: 26.26 | D141: =B141*C141 -> 0 | E141: 0 | F141: 2.59 | G141: 0 | H141: 0 | I141: =H141*E141 -> 0 | J141: 0 | K141: 26.26 | L141: =J141*K141 -> 0 | M141: 0 | N141: 2.59 | O141: =M141*N141 -> 0 | P141: 0 | Q141: =P141*M141 -> 0 | T141: Halot ja klapit | U141: 0 | V141: 26.26 | W141: =U141*V141 -> 0 | X141: 0 | Y141: 2.59 | Z141: =X141*Y141 -> 0 | AA141: 0 | AB141: =AA141*X141 -> 0
A142: Haketus | B142: 0 | C142: 4.1 | D142: =B142*C142 -> 0 | E142: 0 | F142: - | G142: - | H142: 0 | I142: =H142*E142 -> 0 | J142: 0 | K142: 4.1 | L142: =J142*K142 -> 0 | M142: 0 | N142: - | O142: - | P142: 0 | Q142: =P142*M142 -> 0 | T142: Haketus | U142: 0 | V142: 4.1 | W142: =U142*V142 -> 0 | X142: 0 | Y142: - | Z142: - | AA142: 0 | AB142: =AA142*X142 -> 0
A143: Hake | B143: 0 | C143: - | D143: - | E143: 0 | F143: =$L17 -> 2.59 | G143: =E143*F143 -> 0 | H143: 0 | I143: =H143*E143 -> 0 | J143: 0 | K143: - | L143: - | M143: 0 | N143: =$L17 -> 2.59 | O143: =M143*N143 -> 0 | P143: 0 | Q143: =P143*M143 -> 0 | T143: Hake | U143: 0 | V143: - | W143: - | X143: 0 | Y143: =$L17 -> 2.59 | Z143: =X143*Y143 -> 0 | AA143: 0 | AB143: =AA143*X143 -> 0
A144: Joulupuut (tukkumyynti) | C144: =$K$18 -> 0 | D144: =B144*C144 -> 0 | F144: =$L$18 -> 0 | H144: =$M$18 -> 0 | K144: =$K$18 -> 0 | L144: =J144*K144 -> 0 | N144: =$L$18 -> 0 | P144: =$M$18 -> 0 | T144: Joulupuu | V144: =$K$18 -> 0 | Y144: =$L$18 -> 0 | AA144: =$M$18 -> 0
A145: Yhteensä | B145: =SUM(B132:B144) -> 0 | D145: =SUM(D132:D144) -> 0 | E145: =SUM(E132:E144) -> 0 | G145: =SUM(G132:G144) -> 0 | I145: =SUM(I132:I144) -> 0 | J145: =SUM(J132:J144) -> 0 | L145: =SUM(L132:L144) -> 0 | M145: =SUM(M132:M144) -> 0 | O145: =SUM(O132:O144) -> 0 | Q145: =SUM(Q132:Q144) -> 0 | T145: Yhteensä | U145: =SUM(U132:U144) -> 0 | W145: =SUM(W132:W144) -> 0 | X145: =SUM(X132:X144) -> 0 | Z145: =SUM(Z132:Z144) -> 0 | AB145: =SUM(AB132:AB144) -> 0
B147: YHTEENSÄ | I147: Ei metsävähennystä | Q147: Metsävähennykseen oikeutettujen tilojen hakkuut
A148: Hakkuutyön arvo yhteensä | B148: =I148+Q148 -> 0 | H148: Hakkuutyön arvo | I148: =D145 -> 0 | P148: Hakkuutyön arvo | Q148: =L145 -> 0 | AA148: Hakkuutyön arvo | AB148: =W145 -> 0
A149: Kuljetuksen arvo yhteensä | B149: 0 | H149: Kuljetuksen arvo | I149: =G145 -> 0 | P149: Kuljetuksen arvo | Q149: =O145 -> 0 | AA149: Kuljetuksen arvo | AB149: =Z145 -> 0
A150: Konekustannus (Muuta vuosimenoa) | B150: 0 | H150: Konekustannus | I150: =I145 -> 0 | P150: Konekustannus | Q150: =Q145 -> 0 | AA150: Konekustannus | AB150: =AB145 -> 0
A151: Hakkuun määrä yhteensä | B151: 0 | H151: Hakkuun määrä | I151: =B145 -> 0 | P151: Hakkuun määrä | Q151: =J145 -> 0 | AA151: Hakkuun määrä | AB151: =U145 -> 0
A152: Kuljetuksen määrä yhteensä | B152: 0 | H152: Kuljetuksen määrä | I152: =E145 -> 0 | P152: Kuljetuksen määrä | Q152: =M145 -> 0 | AA152: Kuljetuksen määrä | AB152: =X145 -> 0
A153: Puutavaran verollinen arvo | B153: 0 | H153: Puutavaran verollinen arvo | I153: =(B128-I148-I149-I150) -> 0 | P153: Metsävähennykseen oikeuttava osa (verollinen osa) | Q153: =(J128-Q148-Q149-Q150) -> 0
A156: Tarkistus | C156: Hakattu määrä yhteensä | D156: =B151 -> 0
C157: Kuljetettu määrä yhteensä | D157: =B152 -> 0
A158: Määrätarkistus: | B158: =IF(D157>D156,"Kuljetettu määrä on valmistettua määrää suurempi",IF(D157=D156,"Valmistettu ja kuljetettu määrä yhtäsuuret","Valmistettumääräonkuljetettuamäärääisompi")) -> Valmistettu ja kuljetettu määrä yhtäsuuret
A161: MAATILA 5 | B161: Maatila 5, tilat joilla ei metsävähennysoikeutta | J161: Maatila 5, tilat joilla metsävähennysoikeus | U161: Maatila 5, Hakkuu verovuonna - Puun myynti seuraavana vuonna. UINUMAAN JÄÄVÄ HAKKUUMÄÄRÄ
A162: Kunta: | B162: HAKKUU | E162: KULJETUS | J162: HAKKUU | M162: KULJETUS | U162: HAKKUU | X162: KULJETUS
B163: =P$15 -> 0 | H163: Ohje konekustannus | J163: =Q$15 -> 0 | P163: Ohje konekustannus | AA163: Ohje konekustannus
C165: valmistuksen arvo | E165: Määrä | F165: Kuljetustyön arvo | H165: Konekustannus | K165: valmistuksen arvo | M165: Määrä | N165: Kuljetustyön arvo | P165: Konekustannus | V165: valmistuksen arvo | X165: Määrä | Y165: Kuljetustyön arvo | AA165: Konekustannus
B166: m3 | C166: €/m3 | D166: € | E166: m3 | F166: €/m3 | G166: € | H166: €/m3 | I166: € | J166: m3 | K166: €/m3 | L166: € | M166: m3 | N166: €/m3 | O166: € | P166: €/m3 | Q166: € | U166: m3 | V166: €/m3 | W166: € | X166: m3 | Y166: €/m3 | Z166: € | AA166: €/m3 | AB166: €
A167: Mäntykuitu | B167: 0 | C167: =$K6 -> 12.52 | D167: =B167*C167 -> 0 | E167: 0 | F167: =$L6 -> 2.22 | G167: =E167*F167 -> 0 | H167: =$M6 -> 0 | I167: =H167*E167 -> 0 | J167: 0 | K167: =$K6 -> 12.52 | L167: =J167*K167 -> 0 | M167: 0 | N167: =$L6 -> 2.22 | O167: =M167*N167 -> 0 | P167: =$M6 -> 0 | Q167: =P167*M167 -> 0 | T167: MäK | U167: 0 | V167: =$K6 -> 12.52 | W167: =U167*V167 -> 0 | X167: 0 | Y167: =$L6 -> 2.22 | Z167: =X167*Y167 -> 0 | AA167: =$M6 -> 0 | AB167: =AA167*X167 -> 0
A168: Kuusikuitu | B168: 0 | C168: 13.1 | D168: 0 | E168: 0 | F168: 2.36 | G168: =E168*F168 -> 0 | H168: 0 | I168: =H168*E168 -> 0 | J168: 0 | K168: 13.1 | L168: 0 | M168: 0 | N168: 2.36 | O168: 0 | P168: 0 | Q168: =P168*M168 -> 0 | T168: KuK | U168: 0 | V168: 13.1 | W168: 0 | X168: 0 | Y168: 2.36 | Z168: 0 | AA168: 0 | AB168: =AA168*X168 -> 0
A169: Koivukuitu | B169: 0 | C169: 11.58 | D169: 0 | E169: 0 | F169: 2.59 | G169: 0 | H169: 0 | I169: 0 | J169: 0 | K169: 11.58 | L169: 0 | M169: 0 | N169: 2.59 | O169: 0 | P169: 0 | Q169: 0 | T169: KoK | U169: 0 | V169: 11.58 | W169: 0 | X169: 0 | Y169: 2.59 | Z169: 0 | AA169: 0 | AB169: 0
A170: Mäntytukki | B170: 0 | C170: 5.42 | D170: 0 | E170: 0 | F170: 2.15 | G170: 0 | H170: 0 | I170: 0 | J170: 0 | K170: 5.42 | L170: 0 | M170: 0 | N170: 2.15 | O170: 0 | P170: 0 | Q170: 0 | T170: MäT | U170: 0 | V170: 5.42 | W170: 0 | X170: 0 | Y170: 2.15 | Z170: 0 | AA170: 0 | AB170: 0
A171: Kuusitukki | B171: 0 | C171: 6.98 | D171: 0 | E171: 0 | F171: 2.17 | G171: 0 | H171: 0 | I171: 0 | J171: 0 | K171: 6.98 | L171: 0 | M171: 0 | N171: 2.17 | O171: 0 | P171: 0 | Q171: 0 | T171: KuK | U171: 0 | V171: 6.98 | W171: 0 | X171: 0 | Y171: 2.17 | Z171: 0 | AA171: 0 | AB171: 0
A172: Koivutukki | B172: 0 | C172: 5.15 | D172: 0 | E172: 0 | F172: 2.46 | G172: 0 | H172: 0 | I172: 0 | J172: 0 | K172: 5.15 | L172: 0 | M172: 0 | N172: 2.46 | O172: 0 | P172: 0 | Q172: 0 | T172: KoT | U172: 0 | V172: 5.15 | W172: 0 | X172: 0 | Y172: 2.46 | Z172: 0 | AA172: 0 | AB172: 0
A173: Lahopuu | B173: 0 | C173: 0 | D173: 0 | E173: 0 | F173: 0 | G173: 0 | H173: 0 | I173: 0 | J173: 0 | K173: 0 | L173: 0 | M173: 0 | N173: 0 | O173: 0 | P173: 0 | Q173: 0 | T173: Laho | U173: 0 | V173: 0 | W173: 0 | X173: 0 | Y173: 0 | Z173: 0 | AA173: 0 | AB173: 0
A174: Erikoispuu | B174: 0 | C174: 0 | D174: =B174*C174 -> 0 | E174: 0 | F174: 0 | G174: 0 | H174: 0 | I174: =H174*E174 -> 0 | J174: 0 | K174: 0 | L174: =J174*K174 -> 0 | M174: 0 | N174: 0 | O174: =M174*N174 -> 0 | P174: 0 | Q174: =P174*M174 -> 0 | T174: Erikpuu | U174: 0 | V174: 0 | W174: =U174*V174 -> 0 | X174: 0 | Y174: 0 | Z174: =X174*Y174 -> 0 | AA174: 0 | AB174: =AA174*X174 -> 0
A175: Energiapuu (kokopuu) | B175: 0 | C175: 7.73 | D175: =B175*C175 -> 0 | E175: 0 | F175: 4.05 | G175: 0 | H175: 0 | I175: =H175*E175 -> 0 | J175: 0 | K175: 7.73 | L175: =J175*K175 -> 0 | M175: 0 | N175: 4.05 | O175: =M175*N175 -> 0 | P175: 0 | Q175: =P175*M175 -> 0 | T175: Energ.puu | U175: 0 | V175: 7.73 | W175: =U175*V175 -> 0 | X175: 0 | Y175: 4.05 | Z175: =X175*Y175 -> 0 | AA175: 0 | AB175: =AA175*X175 -> 0
A176: Halot ja klapit | B176: 0 | C176: 26.26 | D176: =B176*C176 -> 0 | E176: 0 | F176: 2.59 | G176: 0 | H176: 0 | I176: =H176*E176 -> 0 | J176: 0 | K176: 26.26 | L176: =J176*K176 -> 0 | M176: 0 | N176: 2.59 | O176: =M176*N176 -> 0 | P176: 0 | Q176: =P176*M176 -> 0 | T176: Halot ja klapit | U176: 0 | V176: 26.26 | W176: =U176*V176 -> 0 | X176: 0 | Y176: 2.59 | Z176: =X176*Y176 -> 0 | AA176: 0 | AB176: =AA176*X176 -> 0
A177: Haketus | B177: 0 | C177: 4.1 | D177: =B177*C177 -> 0 | E177: 0 | F177: - | G177: - | H177: 0 | I177: =H177*E177 -> 0 | J177: 0 | K177: 4.1 | L177: =J177*K177 -> 0 | M177: 0 | N177: - | O177: - | P177: 0 | Q177: =P177*M177 -> 0 | T177: Haketus | U177: 0 | V177: 4.1 | W177: =U177*V177 -> 0 | X177: 0 | Y177: - | Z177: - | AA177: 0 | AB177: =AA177*X177 -> 0
A178: Hake | B178: 0 | C178: - | D178: - | E178: 0 | F178: =$L17 -> 2.59 | G178: =E178*F178 -> 0 | H178: 0 | I178: =H178*E178 -> 0 | J178: 0 | K178: - | L178: - | M178: 0 | N178: =$L17 -> 2.59 | O178: =M178*N178 -> 0 | P178: 0 | Q178: =P178*M178 -> 0 | T178: Hake | U178: 0 | V178: - | W178: - | X178: 0 | Y178: =$L17 -> 2.59 | Z178: =X178*Y178 -> 0 | AA178: 0 | AB178: =AA178*X178 -> 0
A179: Joulupuut (tukkumyynti) | C179: =$K$18 -> 0 | D179: =B179*C179 -> 0 | F179: =$L$18 -> 0 | H179: =$M$18 -> 0 | K179: =$K$18 -> 0 | L179: =J179*K179 -> 0 | N179: =$L$18 -> 0 | P179: =$M$18 -> 0 | T179: Joulupuu | V179: =$K$18 -> 0 | Y179: =$L$18 -> 0 | AA179: =$M$18 -> 0
A180: Yhteensä | B180: =SUM(B167:B179) -> 0 | D180: =SUM(D167:D179) -> 0 | E180: =SUM(E167:E179) -> 0 | G180: =SUM(G167:G179) -> 0 | I180: =SUM(I167:I179) -> 0 | J180: =SUM(J167:J179) -> 0 | L180: =SUM(L167:L179) -> 0 | M180: =SUM(M167:M179) -> 0 | O180: =SUM(O167:O179) -> 0 | Q180: =SUM(Q167:Q179) -> 0 | T180: Yhteensä | U180: =SUM(U167:U179) -> 0 | W180: =SUM(W167:W179) -> 0 | X180: =SUM(X167:X179) -> 0 | Z180: =SUM(Z167:Z179) -> 0 | AB180: =SUM(AB167:AB179) -> 0
B182: YHTEENSÄ | I182: Ei metsävähennystä | Q182: Metsävähennykseen oikeutettujen tilojen hakkuut
A183: Hakkuutyön arvo yhteensä | B183: =I183+Q183 -> 0 | H183: Hakkuutyön arvo | I183: =D180 -> 0 | P183: Hakkuutyön arvo | Q183: =L180 -> 0 | AA183: Hakkuutyön arvo | AB183: =W180 -> 0
A184: Kuljetuksen arvo yhteensä | B184: 0 | H184: Kuljetuksen arvo | I184: =G180 -> 0 | P184: Kuljetuksen arvo | Q184: =O180 -> 0 | AA184: Kuljetuksen arvo | AB184: =Z180 -> 0
A185: Konekustannus (Muuta vuosimenoa) | B185: 0 | H185: Konekustannus | I185: =I180 -> 0 | P185: Konekustannus | Q185: =Q180 -> 0 | AA185: Konekustannus | AB185: =AB180 -> 0
A186: Hakkuun määrä yhteensä | B186: 0 | H186: Hakkuun määrä | I186: =B180 -> 0 | P186: Hakkuun määrä | Q186: =J180 -> 0 | AA186: Hakkuun määrä | AB186: =U180 -> 0
A187: Kuljetuksen määrä yhteensä | B187: 0 | H187: Kuljetuksen määrä | I187: =E180 -> 0 | P187: Kuljetuksen määrä | Q187: =M180 -> 0 | AA187: Kuljetuksen määrä | AB187: =X180 -> 0
A188: Puutavaran verollinen arvo | B188: 0 | H188: Puutavaran verollinen arvo | I188: =(B163-I183-I184-I185) -> 0 | P188: Metsävähennykseen oikeuttava osa (verollinen osa) | Q188: =(J163-Q183-Q184-Q185) -> 0
A191: Tarkistus | C191: Hakattu määrä yhteensä | D191: =B186 -> 0
C192: Kuljetettu määrä yhteensä | D192: =B187 -> 0
A193: Määrätarkistus: | B193: =IF(D192>D191,"Kuljetettu määrä on valmistettua määrää suurempi",IF(D192=D191,"Valmistettu ja kuljetettu määrä yhtäsuuret","Valmistettumääräonkuljetettuamäärääisompi")) -> Valmistettu ja kuljetettu määrä yhtäsuuret

Sheet Hank.työ 2
A1: Mette 2016
A2: Metsätalouden kirjanpito | F2: =Etusivu!C10 -> RAJOITETTU TESTIVESIO | U2: =CONCATENATE("Verovuodelta ",Etusivu!$B7-1," uinumaan jätetty hankintatyö") -> Verovuodelta 2015 uinumaan jätetty hankintatyö
A3: Hankintatyön arvon laskenta | D3: Y-tunnus | E3: =Etusivu!C14 -> 1322222-2 | F3: =Etusivu!E10 -> Testitila 1:45 | P3: ohje | W3: YHTEENSÄ | X3: Maatila 1 | Y3: Maatila 2 | Z3: Maatila 3 | AA3: Maatila 4 | AB3: Maatila 5
A4: Polttopuut ja joulupuut (1.3.) | K4: Kuljetuksen konekustan- nukset käytössä | M4: ei | P4: #### - ohje | U4: Hankintatyön arvo, € | W4: =SUM(X4:AB4) -> 0 | Y4: 0 | Z4: 0 | AA4: 0 | AB4: 0
C5: Maatila 1 | D5: Maatila 2 | E5: Maatila 3 | F5: Maatila 4 | G5: Maatila 5 | I5: Täyttöoppaan taksat | K5: Valmistus | L5: Kuljetus | M5: Kulj. Konekust.
A6: Hankintakauppatulot maatilalta | C6: =P11+Q11 -> 0 | D6: =+P12+Q12 -> 0 | E6: =+P13+Q13 -> 0 | F6: =+P14+Q14 -> 0 | G6: =+P15+Q15 -> 0 | H6: € | I6: Energiapuu (kokopuu) | K6: 7.73 | L6: 4.05 | M6: =IF(M$4="kyllä",N6,0) -> 0 | N6: 6.08
A7: Puutavaran verollinen arvo | C7: =IF(B39>=0,B39,"- arvo tarkista") -> 0 | D7: =IF(B66>=0,B66,"- arvo tarkista") -> 0 | E7: =IF(B93>=0,B93,"- arvo tarkista") -> 0 | F7: =IF(B120>=0,B120,"- arvo tarkista") -> 0 | G7: =IF(B147>=0,B147,"- arvo tarkista") -> 0 | H7: € | I7: Halot ja klapit | K7: 26.26 | L7: 2.59 | M7: =IF(M$4="kyllä",N7,0) -> 0 | N7: 3.89 | O7: Aputaulukko: Tulot maatiloittain | U7: =CONCATENATE("Verovuoden ",Etusivu!$B7," uinumaan jäävä hankintatyö. ") -> Verovuoden 2016 uinumaan jäävä hankintatyö.
A8: Konekustannusosuus (vuosimenoa) | C8: =+B36 -> 0 | D8: =+B63 -> 0 | E8: =+B90 -> 0 | F8: =+B117 -> 0 | G8: =+B144 -> 0 | H8: € | I8: Haketus | K8: 4.1 | O8: Maatila | P8: EI metsävähen- nysoikeutta | Q8: Metsävähen-nysoikeus | U8: TÄHÄN ALLE VAIN NE KUUTIOMÄÄRÄT JOTKA ON TEHTY VEROVUONNA, MUTTA MYYDÄÄN TULEVANA VEROVUONNA Siirrä seuraavan vuoden veroilmoitukseen hankintatyön arvoon (lomake 2C kohta 2.1)")
A9: Valmistettu määrä yhteensä | C9: =+B37 -> 0 | D9: =+B64 -> 0 | E9: =B91 -> 0 | F9: =+B118 -> 0 | G9: =+B145 -> 0 | H9: m3 | I9: Hake | L9: 2.59 | M9: =IF(M$4="kyllä",N9,0) -> 0 | N9: 3.89
A10: Valmistuksen arvo yhteensä | C10: =+B34 -> 0 | D10: =+B61 -> 0 | E10: =+B88 -> 0 | F10: =+B115 -> 0 | G10: =+B142 -> 0 | H10: € | I10: Joulupuut
A11: Valmistuksen verollinen arvo (125 m3 verovapaata työtä) | C11: =IF(C9+'Hank.työ 1'!C9=0,0,IF((C9+'Hank.työ 1'!C9-125)/(C9+'Hank.työ 1'!C9)*C10>0,(C9+'Hank.työ 1'!C9-125)/(C9+'Hank.työ 1'!C9)*C10,0)) -> 0 | D11: =IF(D9+'Hank.työ 1'!D9=0,0,IF((D9+'Hank.työ 1'!D9-125)/(D9+'Hank.työ 1'!D9)*D10>0,(D9+'Hank.työ 1'!D9-125)/(D9+'Hank.työ 1'!D9)*D10,0)) -> 0 | E11: =IF(E9+'Hank.työ 1'!E9=0,0,IF((E9+'Hank.työ 1'!E9-125)/(E9+'Hank.työ 1'!E9)*E10>0,(E9+'Hank.työ 1'!E9-125)/(E9+'Hank.työ 1'!E9)*E10,0)) -> 0 | F11: =IF(F9+'Hank.työ 1'!F9=0,0,IF((F9+'Hank.työ 1'!F9-125)/(F9+'Hank.työ 1'!F9)*F10>0,(F9+'Hank.työ 1'!F9-125)/(F9+'Hank.työ 1'!F9)*F10,0)) -> 0 | G11: =IF(G9+'Hank.työ 1'!G9=0,0,IF((G9+'Hank.työ 1'!G9-125)/(G9+'Hank.työ 1'!G9)*G10>0,(G9+'Hank.työ 1'!G9-125)/(G9+'Hank.työ 1'!G9)*G10,0)) -> 0 | H11: € | O11: 1 | P11: =Tulot!AL7 -> 0 | Q11: =Tulot!AM7 -> 0
A12: Kuljetuksen määrä yhteensä | C12: =+B38 -> 0 | D12: =+B65 -> 0 | E12: =+B91 -> 0 | F12: =+B118 -> 0 | G12: =+B145 -> 0 | H12: m3 | O12: 2 | P12: =Tulot!AN7 -> 0 | Q12: =Tulot!AO7 -> 0 | X12: Maatila 1 | Y12: Maatila 2 | Z12: Maatila 3 | AA12: Maatila 4 | AB12: Maatila 5
A13: kuljetuksen arvo yhteensä | C13: =+B35 -> 0 | D13: =+B62 -> 0 | E13: =+B89 -> 0 | F13: =+B116 -> 0 | G13: =+B143 -> 0 | H13: € | O13: 3 | P13: =Tulot!AP7 -> 0 | Q13: =Tulot!AQ7 -> 0 | U13: Valmistettu määrä yhteensä | X13: =AB37 -> 0 | Y13: =AB64 -> 0 | Z13: =AB91 -> 0 | AA13: =AB118 -> 0 | AB13: =AB145 -> 0 | AC13: m3
A14: Kuljetuksen verollinen arvo (125 m3 verovapaata työtä) | C14: =IF(C12+'Hank.työ 1'!C12=0,0,IF((C12+'Hank.työ 1'!C12-125)/(C12+'Hank.työ 1'!C12)*C13>0,(C12+'Hank.työ 1'!C12-125)/(C12+'Hank.työ 1'!C12)*C13,0)) -> 0 | D14: =IF(D12=0,0,IF((D12-125)/D12*D13>0,(D12-125)/D12*D13,0)) -> 0 | E14: =IF(E12=0,0,IF((E12-125)/E12*E13>0,(E12-125)/E12*E13,0)) -> 0 | F14: =IF(F12=0,0,IF((F12-125)/F12*F13>0,(F12-125)/F12*F13,0)) -> 0 | G14: =IF(G12=0,0,IF((G12-125)/G12*G13>0,(G12-125)/G12*G13,0)) -> 0 | H14: € | O14: 4 | P14: =Tulot!AR7 -> 0 | Q14: =Tulot!AS7 -> 0 | U14: Valmistuksen arvo yhteensä | X14: =AB34 -> 0 | Y14: =AB61 -> 0 | Z14: =AB88 -> 0 | AA14: =AB115 -> 0 | AB14: =AB142 -> 0 | AC14: €
A15: Hankintatyön arvo yhteensä | C15: =C10+C13 -> 0 | D15: 0 | E15: 0 | F15: 0 | G15: 0 | H15: € | O15: 5 | P15: =Tulot!AT7 -> 0 | Q15: =Tulot!AU7 -> 0 | U15: Kuljetuksen määrä yhteensä | X15: =AB38 -> 0 | Y15: =AB65 -> 0 | Z15: =AB92 -> 0 | AA15: =AB119 -> 0 | AB15: =AB146 -> 0 | AC15: m3
A16: Hankintatyön verollinen arvo yhteensä | C16: 0 | D16: 0 | E16: 0 | F16: 0 | G16: 0 | H16: € | O16: yhteensä | P16: =SUM(P11:P15) -> 0 | Q16: =SUM(Q11:Q15) -> 0 | U16: kuljetuksen arvo yhteensä | X16: =AB35 -> 0 | Y16: =AB62 -> 0 | Z16: =AB89 -> 0 | AA16: =AB116 -> 0 | AB16: =AB143 -> 0 | AC16: €
A17: Hakkuumäärä yht. verovuonna (sis. hank.työ 1 ja 2) | C17: =C9+'Hank.työ 1'!C9 -> 21 | D17: =D9+'Hank.työ 1'!D9 -> 0 | E17: =E9+'Hank.työ 1'!E9 -> 0 | F17: =F9+'Hank.työ 1'!F9 -> 0 | G17: =G9+'Hank.työ 1'!G9 -> 0 | U17: HANKINTATYÖN ARVO YHTEENSÄ | X17: =X14+X16 -> 0 | Y17: =Y14+Y16 -> 0 | Z17: =Z14+Z16 -> 0 | AA17: =AA14+AA16 -> 0 | AB17: =AB14+AB16 -> 0 | AC17: €
A18: Uinumaan jäävän hankintatyön laskenta oikealla sarakkeilla U - AB | U18: Siirrä nämä alarivin summat seuraavan vuoden verotukseen uinumaan jätettyinä hankintatyön arvoina.
A20: MAATILA 1 | B20: Maatila 1, tilat joilla ei metsävähennysoikeutta | J20: Maatila 1, tilat joilla metsävähennysoikeus | U20: Maatila 1, Hakkuu verovuonna - Puun myynti seuraavana vuonna. UINUMAAN JÄÄVÄ HAKKUUMÄÄRÄ
A21: Kunta: | B21: HAKKUU | E21: KULJETUS | H21: Ohje konekustannus | J21: HAKKUU | M21: KULJETUS | P21: Ohje konekustannus | U21: HAKKUU | X21: KULJETUS | AA21: Ohje konekustannus
B22: =P$11 -> 0 | J22: =Q11 -> 0
C24: valmistuksen arvo | E24: Määrä | F24: Kuljetustyön arvo | H24: Konekustannus | K24: valmistuksen arvo | M24: Määrä | N24: Kuljetustyön arvo | P24: Konekustannus | V24: valmistuksen arvo | X24: Määrä | Y24: Kuljetustyön arvo | AA24: Konekustannus
B25: m3 | C25: €/m3 | D25: € | E25: m3 | F25: €/m3 | G25: € | H25: €/m3 | I25: € | J25: m3 | K25: €/m3 | L25: € | M25: m3 | N25: €/m3 | O25: € | P25: €/m3 | Q25: € | U25: m3 | V25: €/m3 | W25: € | X25: m3 | Y25: €/m3 | Z25: € | AA25: €/m3 | AB25: €
A26: Energiapuu (kokopuu) | B26: 0 | C26: =$K6 -> 7.73 | D26: =B26*C26 -> 0 | E26: 0 | F26: =$L6 -> 4.05 | G26: =E26*F26 -> 0 | H26: =$M6 -> 0 | I26: =H26*E26 -> 0 | J26: 0 | K26: =$K6 -> 7.73 | L26: =J26*K26 -> 0 | M26: 0 | N26: =$L6 -> 4.05 | O26: =M26*N26 -> 0 | P26: =$M6 -> 0 | Q26: =P26*M26 -> 0 | T26: E.puu (kokopuu) | V26: =$K6 -> 7.73 | W26: =U26*V26 -> 0 | Y26: =$L6 -> 4.05 | Z26: =X26*Y26 -> 0 | AA26: =$M6 -> 0 | AB26: =AA26*X26 -> 0
A27: Halot ja klapit | B27: 0 | C27: =$K7 -> 26.26 | D27: =B27*C27 -> 0 | E27: 0 | F27: =$L7 -> 2.59 | G27: =E27*F27 -> 0 | H27: =$M7 -> 0 | I27: =H27*E27 -> 0 | J27: 0 | K27: =$K7 -> 26.26 | L27: =J27*K27 -> 0 | M27: 0 | N27: =$L7 -> 2.59 | O27: =M27*N27 -> 0 | P27: =$M7 -> 0 | Q27: =P27*M27 -> 0 | T27: Halot ja klapit | U27: 0 | V27: =$K7 -> 26.26 | W27: =U27*V27 -> 0 | X27: 0 | Y27: =$L7 -> 2.59 | Z27: =X27*Y27 -> 0 | AA27: =$M7 -> 0 | AB27: =AA27*X27 -> 0
A28: Haketus | B28: 0 | C28: =$K8 -> 4.1 | D28: =B28*C28 -> 0 | E28: 0 | F28: - | G28: - | H28: =$M8 -> 0 | I28: =H28*E28 -> 0 | J28: 0 | K28: =$K8 -> 4.1 | L28: =J28*K28 -> 0 | M28: 0 | N28: - | O28: - | P28: =$M8 -> 0 | Q28: =P28*M28 -> 0 | T28: Haketus | U28: 0 | V28: =$K8 -> 4.1 | W28: =U28*V28 -> 0 | X28: 0 | Y28: - | Z28: - | AA28: =$M8 -> 0 | AB28: =AA28*X28 -> 0
A29: Hake | B29: 0 | C29: - | D29: - | E29: 0 | F29: =$L9 -> 2.59 | G29: =E29*F29 -> 0 | H29: =$M9 -> 0 | I29: =H29*E29 -> 0 | J29: 0 | K29: - | L29: - | M29: 0 | N29: =$L9 -> 2.59 | O29: =M29*N29 -> 0 | P29: =$M9 -> 0 | Q29: =P29*M29 -> 0 | T29: Hake | U29: 0 | V29: - | W29: - | X29: 0 | Y29: =$L9 -> 2.59 | Z29: =X29*Y29 -> 0 | AA29: =$M9 -> 0 | AB29: =AA29*X29 -> 0
A30: Joulupuut | B30: 0 | C30: =$K$10 -> 0 | D30: =B30*C30 -> 0 | E30: 0 | F30: =$L$10 -> 0 | G30: =E30*F30 -> 0 | H30: =$M$10 -> 0 | I30: =H30*E30 -> 0 | J30: 0 | K30: =$K$10 -> 0 | L30: =J30*K30 -> 0 | M30: 0 | N30: =$L$10 -> 0 | O30: =M30*N30 -> 0 | P30: =$M$10 -> 0 | Q30: =P30*M30 -> 0 | T30: Joulupuut | U30: 0 | V30: =$K$10 -> 0 | W30: =U30*V30 -> 0 | X30: 0 | Y30: =$L$10 -> 0 | Z30: =X30*Y30 -> 0 | AA30: =$M$10 -> 0 | AB30: =AA30*X30 -> 0
A31: Yhteensä | B31: =SUM(B26:B30) -> 0 | D31: =SUM(D26:D30) -> 0 | E31: =SUM(E26:E30) -> 0 | G31: =SUM(G26:G30) -> 0 | I31: =SUM(I26:I30) -> 0 | J31: =SUM(J26:J30) -> 0 | L31: =SUM(L26:L30) -> 0 | M31: =SUM(M26:M30) -> 0 | O31: =SUM(O26:O30) -> 0 | Q31: =SUM(Q26:Q30) -> 0 | T31: Yhteensä | U31: =SUM(U26:U30) -> 0 | W31: =SUM(W26:W30) -> 0 | X31: =SUM(X26:X30) -> 0 | Z31: =SUM(Z26:Z30) -> 0 | AB31: =SUM(AB26:AB30) -> 0
B33: YHTEENSÄ | I33: Ei metsävähennystä | Q33: Metsävähennykseen oikeutettujen tilojen hakkuut
A34: Hakkuutyön arvo | B34: =I34+Q34 -> 0 | H34: Hakkuutyön arvo | I34: =D31 -> 0 | P34: Hakkuutyön arvo | Q34: =L31 -> 0 | AA34: Hakkuutyön arvo | AB34: =W31 -> 0
A35: Kuljetuksen arvo | B35: 0 | H35: Kuljetuksen arvo | I35: =G31 -> 0 | P35: Kuljetuksen arvo | Q35: =O31 -> 0 | AA35: Kuljetuksen arvo | AB35: =Z31 -> 0
A36: Konekustannus (muuta vuosimenoa) | B36: 0 | H36: Konekustannus | I36: =I31 -> 0 | P36: Konekustannus | Q36: =Q31 -> 0 | AA36: Konekustannus | AB36: =AB31 -> 0
A37: Hakkuun määrä yhteensä | B37: 0 | H37: Hakkuun määrä | I37: =B31 -> 0 | P37: Hakkuun määrä | Q37: =J31 -> 0 | AA37: Hakkuun määrä | AB37: =U31 -> 0
A38: Kuljetuksen määrä yhteensä | B38: 0 | H38: Kuljetuksen määrä | I38: =E31 -> 0 | P38: Kuljetuksen määrä | Q38: =M31 -> 0 | AA38: Kuljetuksen määrä | AB38: =X31 -> 0
A39: Puutavaran verollinen arvo | B39: 0 | H39: Puutavaran verollinen arvo | I39: =(B22-I34-I35-I36) -> 0 | P39: Metsävähennykseen oikeuttava osa (verollinen osa) | Q39: =(J22-Q34-Q35-Q36) -> 0
B42: Hakattu määrä yhteensä | C42: =B37 -> 0
B43: Kuljetettu määrä yhteensä | C43: =B38 -> 0
A44: Tarkistus: | B44: =IF(C43>C42,"Kuljetettu määrä on valmistettua määrää suurempi",IF(C43=C42,"Valmistettu ja kuljetettu määrä yhtäsuuret","Valmistettu määrä on kuljetettua määrää isompi")) -> Valmistettu ja kuljetettu määrä yhtäsuuret
A47: MAATILA 2 | B47: Maatila 2, tilat joilla ei metsävähennysoikeutta | J47: Maatila 2, tilat joilla metsävähennysoikeus | U47: Maatila 2, Hakkuu verovuonna - Puun myynti seuraavana vuonna. UINUMAAN JÄÄVÄ HAKKUUMÄÄRÄ
A48: Kunta: | B48: HAKKUU | E48: KULJETUS | J48: HAKKUU | M48: KULJETUS | U48: HAKKUU | X48: KULJETUS
B49: =P$12 -> 0 | H49: Ohje konekustannus | J49: =Q12 -> 0 | P49: Ohje konekustannus | AA49: Ohje konekustannus
C51: valmistuksen arvo | E51: Määrä | F51: Kuljetustyön arvo | H51: Konekustannus | K51: valmistuksen arvo | M51: Määrä | N51: Kuljetustyön arvo | P51: Konekustannus | V51: valmistuksen arvo | X51: Määrä | Y51: Kuljetustyön arvo | AA51: Konekustannus
B52: m3 | C52: €/m3 | D52: € | E52: m3 | F52: €/m3 | G52: € | H52: €/m3 | I52: € | J52: m3 | K52: €/m3 | L52: € | M52: m3 | N52: €/m3 | O52: € | P52: €/m3 | Q52: € | U52: m3 | V52: €/m3 | W52: € | X52: m3 | Y52: €/m3 | Z52: € | AA52: €/m3 | AB52: €
A53: Energiapuu (kokopuu) | B53: 0 | C53: =$K6 -> 7.73 | D53: =B53*C53 -> 0 | E53: 0 | F53: =$L6 -> 4.05 | G53: =E53*F53 -> 0 | H53: =$M6 -> 0 | I53: =H53*E53 -> 0 | J53: 0 | K53: =$K6 -> 7.73 | L53: =J53*K53 -> 0 | M53: 0 | N53: =$L6 -> 4.05 | O53: =M53*N53 -> 0 | P53: =$M6 -> 0 | Q53: =P53*M53 -> 0 | T53: E.puu (kokopuu) | U53: 0 | V53: =$K6 -> 7.73 | W53: =U53*V53 -> 0 | X53: 0 | Y53: =$L6 -> 4.05 | Z53: =X53*Y53 -> 0 | AA53: =$M6 -> 0 | AB53: =AA53*X53 -> 0
A54: Halot ja klapit | B54: 0 | C54: =$K7 -> 26.26 | D54: =B54*C54 -> 0 | E54: 0 | F54: =$L7 -> 2.59 | G54: =E54*F54 -> 0 | H54: =$M7 -> 0 | I54: =H54*E54 -> 0 | J54: 0 | K54: =$K7 -> 26.26 | L54: =J54*K54 -> 0 | M54: 0 | N54: =$L7 -> 2.59 | O54: =M54*N54 -> 0 | P54: =$M7 -> 0 | Q54: =P54*M54 -> 0 | T54: Halot ja klapit | U54: 0 | V54: =$K7 -> 26.26 | W54: =U54*V54 -> 0 | X54: 0 | Y54: =$L7 -> 2.59 | Z54: =X54*Y54 -> 0 | AA54: =$M7 -> 0 | AB54: =AA54*X54 -> 0
A55: Haketus | B55: 0 | C55: =$K8 -> 4.1 | D55: =B55*C55 -> 0 | E55: 0 | F55: - | G55: - | H55: =$M8 -> 0 | I55: =H55*E55 -> 0 | J55: 0 | K55: =$K8 -> 4.1 | L55: =J55*K55 -> 0 | M55: 0 | N55: - | O55: - | P55: =$M8 -> 0 | Q55: =P55*M55 -> 0 | T55: Haketus | U55: 0 | V55: =$K8 -> 4.1 | W55: =U55*V55 -> 0 | X55: 0 | Y55: - | Z55: - | AA55: =$M8 -> 0 | AB55: =AA55*X55 -> 0
A56: Hake | B56: 0 | C56: - | D56: - | E56: 0 | F56: =$L9 -> 2.59 | G56: =E56*F56 -> 0 | H56: =$M9 -> 0 | I56: =H56*E56 -> 0 | J56: 0 | K56: - | L56: - | M56: 0 | N56: =$L9 -> 2.59 | O56: =M56*N56 -> 0 | P56: =$M9 -> 0 | Q56: =P56*M56 -> 0 | T56: Hake | U56: 0 | V56: - | W56: - | X56: 0 | Y56: =$L9 -> 2.59 | Z56: =X56*Y56 -> 0 | AA56: =$M9 -> 0 | AB56: =AA56*X56 -> 0
A57: Joulupuut | B57: 0 | C57: =$K$10 -> 0 | D57: =B57*C57 -> 0 | E57: 0 | F57: =$L$10 -> 0 | G57: =E57*F57 -> 0 | H57: =$M$10 -> 0 | I57: =H57*E57 -> 0 | J57: 0 | K57: =$K$10 -> 0 | L57: =J57*K57 -> 0 | M57: 0 | N57: =$L$10 -> 0 | O57: =M57*N57 -> 0 | P57: =$M$10 -> 0 | Q57: =P57*M57 -> 0 | T57: Joulupuut | U57: 0 | V57: =$K$10 -> 0 | W57: =U57*V57 -> 0 | X57: 0 | Y57: =$L$10 -> 0 | Z57: =X57*Y57 -> 0 | AA57: =$M$10 -> 0 | AB57: =AA57*X57 -> 0
A58: Yhteensä | B58: =SUM(B53:B57) -> 0 | D58: =SUM(D53:D57) -> 0 | E58: =SUM(E53:E57) -> 0 | G58: =SUM(G53:G57) -> 0 | I58: =SUM(I53:I57) -> 0 | J58: =SUM(J53:J57) -> 0 | L58: =SUM(L53:L57) -> 0 | M58: =SUM(M53:M57) -> 0 | O58: =SUM(O53:O57) -> 0 | Q58: =SUM(Q53:Q57) -> 0 | T58: Yhteensä | U58: =SUM(U53:U57) -> 0 | W58: =SUM(W53:W57) -> 0 | X58: =SUM(X53:X57) -> 0 | Z58: =SUM(Z53:Z57) -> 0 | AB58: =SUM(AB53:AB57) -> 0
B60: YHTEENSÄ | I60: Ei metsävähennystä | Q60: Metsävähennykseen oikeutettujen tilojen hakkuut
A61: Hakkuutyön arvo yhteensä | B61: =I61+Q61 -> 0 | H61: Hakkuutyön arvo | I61: =D58 -> 0 | P61: Hakkuutyön arvo | Q61: =L58 -> 0 | AA61: Hakkuutyön arvo | AB61: =W58 -> 0
A62: Kuljetuksen arvo yhteensä | B62: 0 | H62: Kuljetuksen arvo | I62: =G58 -> 0 | P62: Kuljetuksen arvo | Q62: =O58 -> 0 | AA62: Kuljetuksen arvo | AB62: =Z58 -> 0
A63: Konekustannus (Muuta vuosimenoa) | B63: 0 | H63: Konekustannus | I63: =I58 -> 0 | P63: Konekustannus | Q63: =Q58 -> 0 | AA63: Konekustannus | AB63: =AB58 -> 0
A64: Hakkuun määrä yhteensä | B64: 0 | H64: Hakkuun määrä | I64: =B58 -> 0 | P64: Hakkuun määrä | Q64: =J58 -> 0 | AA64: Hakkuun määrä | AB64: =U58 -> 0
A65: Kuljetuksen määrä yhteensä | B65: 0 | H65: Kuljetuksen määrä | I65: =E58 -> 0 | P65: Kuljetuksen määrä | Q65: =M58 -> 0 | AA65: Kuljetuksen määrä | AB65: =X58 -> 0
A66: Puutavaran verollinen arvo | B66: 0 | H66: Puutavaran verollinen arvo | I66: =(B49-I61-I62-I63) -> 0 | P66: Metsävähennykseen oikeuttava osa (verollinen osa) | Q66: =(J49-Q61-Q62-Q63) -> 0
A69: Tarkistus | C69: Hakattu määrä yhteensä | D69: =B64 -> 0
C70: Kuljetettu määrä yhteensä | D70: =B65 -> 0
A71: Määrätarkistus: | B71: =IF(D70>D69,"Kuljetettu määrä on valmistettua määrää suurempi",IF(D70=D69,"Valmistettu ja kuljetettu määrä yhtäsuuret","Valmistettumääräonkuljetettuamäärääisompi")) -> Valmistettu ja kuljetettu määrä yhtäsuuret
A74: MAATILA 3 | B74: Maatila 3, tilat joilla ei metsävähennysoikeutta | J74: Maatila 3, tilat joilla metsävähennysoikeus | U74: Maatila 3, Hakkuu verovuonna - Puun myynti seuraavana vuonna. UINUMAAN JÄÄVÄ HAKKUUMÄÄRÄ
A75: Kunta: | B75: HAKKUU | E75: KULJETUS | J75: HAKKUU | M75: KULJETUS | U75: HAKKUU | X75: KULJETUS
B76: =P$13 -> 0 | H76: Ohje konekustannus | J76: =Q$13 -> 0 | P76: Ohje konekustannus | AA76: Ohje konekustannus
C78: valmistuksen arvo | E78: Määrä | F78: Kuljetustyön arvo | H78: Konekustannus | K78: valmistuksen arvo | M78: Määrä | N78: Kuljetustyön arvo | P78: Konekustannus | V78: valmistuksen arvo | X78: Määrä | Y78: Kuljetustyön arvo | AA78: Konekustannus
B79: m3 | C79: €/m3 | D79: € | E79: m3 | F79: €/m3 | G79: € | H79: €/m3 | I79: € | J79: m3 | K79: €/m3 | L79: € | M79: m3 | N79: €/m3 | O79: € | P79: €/m3 | Q79: € | U79: m3 | V79: €/m3 | W79: € | X79: m3 | Y79: €/m3 | Z79: € | AA79: €/m3 | AB79: €
A80: Energiapuu (kokopuu) | B80: 0 | C80: =$K6 -> 7.73 | D80: =B80*C80 -> 0 | E80: 0 | F80: =$L6 -> 4.05 | G80: =E80*F80 -> 0 | H80: =$M6 -> 0 | I80: =H80*E80 -> 0 | J80: 0 | K80: =$K6 -> 7.73 | L80: =J80*K80 -> 0 | M80: 0 | N80: =$L6 -> 4.05 | O80: =M80*N80 -> 0 | P80: =$M6 -> 0 | Q80: =P80*M80 -> 0 | T80: E.puu (kokopuu) | U80: 0 | V80: =$K6 -> 7.73 | W80: =U80*V80 -> 0 | X80: 0 | Y80: =$L6 -> 4.05 | Z80: =X80*Y80 -> 0 | AA80: =$M6 -> 0 | AB80: =AA80*X80 -> 0
A81: Halot ja klapit | B81: 0 | C81: =$K7 -> 26.26 | D81: =B81*C81 -> 0 | E81: 0 | F81: =$L7 -> 2.59 | G81: =E81*F81 -> 0 | H81: =$M7 -> 0 | I81: =H81*E81 -> 0 | J81: 0 | K81: =$K7 -> 26.26 | L81: =J81*K81 -> 0 | M81: 0 | N81: =$L7 -> 2.59 | O81: =M81*N81 -> 0 | P81: =$M7 -> 0 | Q81: =P81*M81 -> 0 | T81: Halot ja klapit | U81: 0 | V81: =$K7 -> 26.26 | W81: =U81*V81 -> 0 | X81: 0 | Y81: =$L7 -> 2.59 | Z81: =X81*Y81 -> 0 | AA81: =$M7 -> 0 | AB81: =AA81*X81 -> 0
A82: Haketus | B82: 0 | C82: =$K8 -> 4.1 | D82: =B82*C82 -> 0 | E82: 0 | F82: - | G82: - | H82: =$M8 -> 0 | I82: =H82*E82 -> 0 | J82: 0 | K82: =$K8 -> 4.1 | L82: =J82*K82 -> 0 | M82: 0 | N82: - | O82: - | P82: =$M8 -> 0 | Q82: =P82*M82 -> 0 | T82: Haketus | U82: 0 | V82: =$K8 -> 4.1 | W82: =U82*V82 -> 0 | X82: 0 | Y82: - | Z82: - | AA82: =$M8 -> 0 | AB82: =AA82*X82 -> 0
A83: Hake | B83: 0 | C83: - | D83: - | E83: 0 | F83: =$L9 -> 2.59 | G83: =E83*F83 -> 0 | H83: =$M9 -> 0 | I83: =H83*E83 -> 0 | J83: 0 | K83: - | L83: - | M83: 0 | N83: =$L9 -> 2.59 | O83: =M83*N83 -> 0 | P83: =$M9 -> 0 | Q83: =P83*M83 -> 0 | T83: Hake | U83: 0 | V83: - | W83: - | X83: 0 | Y83: =$L9 -> 2.59 | Z83: =X83*Y83 -> 0 | AA83: =$M9 -> 0 | AB83: =AA83*X83 -> 0
A84: Joulupuut | B84: 0 | C84: =$K$10 -> 0 | D84: =B84*C84 -> 0 | E84: 0 | F84: =$L$10 -> 0 | G84: =E84*F84 -> 0 | H84: =$M$10 -> 0 | I84: =H84*E84 -> 0 | J84: 0 | K84: =$K$10 -> 0 | L84: =J84*K84 -> 0 | M84: 0 | N84: =$L$10 -> 0 | O84: =M84*N84 -> 0 | P84: =$M$10 -> 0 | Q84: =P84*M84 -> 0 | T84: Joulupuut | U84: 0 | V84: =$K$10 -> 0 | W84: =U84*V84 -> 0 | X84: 0 | Y84: =$L$10 -> 0 | Z84: =X84*Y84 -> 0 | AA84: =$M$10 -> 0 | AB84: =AA84*X84 -> 0
A85: Yhteensä | B85: =SUM(B80:B84) -> 0 | D85: =SUM(D80:D84) -> 0 | E85: =SUM(E80:E84) -> 0 | G85: =SUM(G80:G84) -> 0 | I85: =SUM(I80:I84) -> 0 | J85: =SUM(J80:J84) -> 0 | L85: =SUM(L80:L84) -> 0 | M85: =SUM(M80:M84) -> 0 | O85: =SUM(O80:O83) -> 0 | Q85: =SUM(Q80:Q84) -> 0 | T85: Yhteensä | U85: =SUM(U80:U84) -> 0 | W85: =SUM(W80:W84) -> 0 | X85: =SUM(X80:X84) -> 0 | Z85: =SUM(Z80:Z83) -> 0 | AB85: =SUM(AB80:AB84) -> 0
B87: YHTEENSÄ | I87: Ei metsävähennystä | Q87: Metsävähennykseen oikeutettujen tilojen hakkuut
A88: Hakkuutyön arvo yhteensä | B88: =I88+Q88 -> 0 | H88: Hakkuutyön arvo | I88: =D85 -> 0 | P88: Hakkuutyön arvo | Q88: =L85 -> 0 | AA88: Hakkuutyön arvo | AB88: =W85 -> 0
A89: Kuljetuksen arvo yhteensä | B89: 0 | H89: Kuljetuksen arvo | I89: =G85 -> 0 | P89: Kuljetuksen arvo | Q89: =O85 -> 0 | AA89: Kuljetuksen arvo | AB89: =Z85 -> 0
A90: Konekustannus (Muuta vuosimenoa) | B90: 0 | H90: Konekustannus | I90: =I85 -> 0 | P90: Konekustannus | Q90: =Q85 -> 0 | AA90: Konekustannus | AB90: =AB85 -> 0
A91: Hakkuun määrä yhteensä | B91: 0 | H91: Hakkuun määrä | I91: =B85 -> 0 | P91: Hakkuun määrä | Q91: =J85 -> 0 | AA91: Hakkuun määrä | AB91: =U85 -> 0
A92: Kuljetuksen määrä yhteensä | B92: 0 | H92: Kuljetuksen määrä | I92: =E85 -> 0 | P92: Kuljetuksen määrä | Q92: =M85 -> 0 | AA92: Kuljetuksen määrä | AB92: =X85 -> 0
A93: Puutavaran verollinen arvo | B93: 0 | H93: Puutavaran verollinen arvo | I93: =(B76-I88-I89-I90) -> 0 | P93: Metsävähennykseen oikeuttava osa (verollinen osa) | Q93: =(J76-Q88-Q89-Q90) -> 0
A96: Tarkistus | C96: Hakattu määrä yhteensä | D96: =B91 -> 0
C97: Kuljetettu määrä yhteensä | D97: =B92 -> 0
A98: Määrätarkistus: | B98: =IF(D97>D96,"Kuljetettu määrä on valmistettua määrää suurempi",IF(D97=D96,"Valmistettu ja kuljetettu määrä yhtäsuuret","Valmistettumääräonkuljetettuamäärääisompi")) -> Valmistettu ja kuljetettu määrä yhtäsuuret
A101: MAATILA 4 | B101: Maatila 4, tilat joilla ei metsävähennysoikeutta | J101: Maatila 4, tilat joilla metsävähennysoikeus | U101: Maatila 4, Hakkuu verovuonna - Puun myynti seuraavana vuonna. UINUMAAN JÄÄVÄ HAKKUUMÄÄRÄ
A102: Kunta: | B102: HAKKUU | E102: KULJETUS | J102: HAKKUU | M102: KULJETUS | U102: HAKKUU | X102: KULJETUS
B103: =P$14 -> 0 | H103: Ohje konekustannus | J103: =Q$14 -> 0 | P103: Ohje konekustannus | AA103: Ohje konekustannus
C105: valmistuksen arvo | E105: Määrä | F105: Kuljetustyön arvo | H105: Konekustannus | K105: valmistuksen arvo | M105: Määrä | N105: Kuljetustyön arvo | P105: Konekustannus | V105: valmistuksen arvo | X105: Määrä | Y105: Kuljetustyön arvo | AA105: Konekustannus
B106: m3 | C106: €/m3 | D106: € | E106: m3 | F106: €/m3 | G106: € | H106: €/m3 | I106: € | J106: m3 | K106: €/m3 | L106: € | M106: m3 | N106: €/m3 | O106: € | P106: €/m3 | Q106: € | U106: m3 | V106: €/m3 | W106: € | X106: m3 | Y106: €/m3 | Z106: € | AA106: €/m3 | AB106: €
A107: Energiapuu (kokopuu) | B107: 0 | C107: =$K6 -> 7.73 | D107: =B107*C107 -> 0 | E107: 0 | F107: =$L6 -> 4.05 | G107: =E107*F107 -> 0 | H107: =$M6 -> 0 | I107: =H107*E107 -> 0 | J107: 0 | K107: =$K6 -> 7.73 | L107: =J107*K107 -> 0 | M107: 0 | N107: =$L6 -> 4.05 | O107: =M107*N107 -> 0 | P107: =$M6 -> 0 | Q107: =P107*M107 -> 0 | T107: E.puu (kokopuu) | U107: 0 | V107: =$K6 -> 7.73 | W107: =U107*V107 -> 0 | X107: 0 | Y107: =$L6 -> 4.05 | Z107: =X107*Y107 -> 0 | AA107: =$M6 -> 0 | AB107: =AA107*X107 -> 0
A108: Halot ja klapit | B108: 0 | C108: =$K7 -> 26.26 | D108: =B108*C108 -> 0 | E108: 0 | F108: =$L7 -> 2.59 | G108: =E108*F108 -> 0 | H108: =$M7 -> 0 | I108: =H108*E108 -> 0 | J108: 0 | K108: =$K7 -> 26.26 | L108: =J108*K108 -> 0 | M108: 0 | N108: =$L7 -> 2.59 | O108: =M108*N108 -> 0 | P108: =$M7 -> 0 | Q108: =P108*M108 -> 0 | T108: Halot ja klapit | U108: 0 | V108: =$K7 -> 26.26 | W108: =U108*V108 -> 0 | X108: 0 | Y108: =$L7 -> 2.59 | Z108: =X108*Y108 -> 0 | AA108: =$M7 -> 0 | AB108: =AA108*X108 -> 0
A109: Haketus | B109: 0 | C109: =$K8 -> 4.1 | D109: =B109*C109 -> 0 | E109: 0 | F109: - | G109: - | H109: =$M8 -> 0 | I109: =H109*E109 -> 0 | J109: 0 | K109: =$K8 -> 4.1 | L109: =J109*K109 -> 0 | M109: 0 | N109: - | O109: - | P109: =$M8 -> 0 | Q109: =P109*M109 -> 0 | T109: Haketus | U109: 0 | V109: =$K8 -> 4.1 | W109: =U109*V109 -> 0 | X109: 0 | Y109: - | Z109: - | AA109: =$M8 -> 0 | AB109: =AA109*X109 -> 0
A110: Hake | B110: 0 | C110: - | D110: - | E110: 0 | F110: =$L9 -> 2.59 | G110: =E110*F110 -> 0 | H110: =$M9 -> 0 | I110: =H110*E110 -> 0 | J110: 0 | K110: - | L110: - | M110: 0 | N110: =$L9 -> 2.59 | O110: =M110*N110 -> 0 | P110: =$M9 -> 0 | Q110: =P110*M110 -> 0 | T110: Hake | U110: 0 | V110: - | W110: - | X110: 0 | Y110: =$L9 -> 2.59 | Z110: =X110*Y110 -> 0 | AA110: =$M9 -> 0 | AB110: =AA110*X110 -> 0
A111: Joulupuut | B111: 0 | C111: =$K$10 -> 0 | D111: =B111*C111 -> 0 | E111: 0 | F111: =$L$10 -> 0 | G111: =E111*F111 -> 0 | H111: =$M$10 -> 0 | I111: =H111*E111 -> 0 | J111: 0 | K111: =$K$10 -> 0 | L111: =J111*K111 -> 0 | M111: 0 | N111: =$L$10 -> 0 | O111: =M111*N111 -> 0 | P111: =$M$10 -> 0 | Q111: =P111*M111 -> 0 | T111: Joulupuut | U111: 0 | V111: =$K$10 -> 0 | W111: =U111*V111 -> 0 | X111: 0 | Y111: =$L$10 -> 0 | Z111: =X111*Y111 -> 0 | AA111: =$M$10 -> 0 | AB111: =AA111*X111 -> 0
A112: Yhteensä | B112: =SUM(B107:B111) -> 0 | D112: =SUM(D107:D111) -> 0 | E112: =SUM(E107:E111) -> 0 | G112: =SUM(G107:G111) -> 0 | I112: =SUM(I107:I111) -> 0 | J112: =SUM(J107:J111) -> 0 | L112: =SUM(L107:L111) -> 0 | M112: =SUM(M107:M111) -> 0 | O112: =SUM(O107:O111) -> 0 | Q112: =SUM(Q107:Q111) -> 0 | T112: Yhteensä | U112: =SUM(U107:U111) -> 0 | W112: =SUM(W107:W111) -> 0 | X112: =SUM(X107:X111) -> 0 | Z112: =SUM(Z107:Z111) -> 0 | AB112: =SUM(AB107:AB111) -> 0
B114: YHTEENSÄ | I114: Ei metsävähennystä | Q114: Metsävähennykseen oikeutettujen tilojen hakkuut
A115: Hakkuutyön arvo yhteensä | B115: =I115+Q115 -> 0 | H115: Hakkuutyön arvo | I115: =D112 -> 0 | P115: Hakkuutyön arvo | Q115: =L112 -> 0 | AA115: Hakkuutyön arvo | AB115: =W112 -> 0
A116: Kuljetuksen arvo yhteensä | B116: 0 | H116: Kuljetuksen arvo | I116: =G112 -> 0 | P116: Kuljetuksen arvo | Q116: =O112 -> 0 | AA116: Kuljetuksen arvo | AB116: =Z112 -> 0
A117: Konekustannus (Muuta vuosimenoa) | B117: 0 | H117: Konekustannus | I117: =I112 -> 0 | P117: Konekustannus | Q117: =Q112 -> 0 | AA117: Konekustannus | AB117: =AB112 -> 0
A118: Hakkuun määrä yhteensä | B118: 0 | H118: Hakkuun määrä | I118: =B112 -> 0 | P118: Hakkuun määrä | Q118: =J112 -> 0 | AA118: Hakkuun määrä | AB118: =U112 -> 0
A119: Kuljetuksen määrä yhteensä | B119: 0 | H119: Kuljetuksen määrä | I119: =E112 -> 0 | P119: Kuljetuksen määrä | Q119: =M112 -> 0 | AA119: Kuljetuksen määrä | AB119: =X112 -> 0
A120: Puutavaran verollinen arvo | B120: 0 | H120: Puutavaran verollinen arvo | I120: =(B103-I115-I116-I117) -> 0 | P120: Metsävähennykseen oikeuttava osa (verollinen osa) | Q120: =(J103-Q115-Q116-Q117) -> 0
A123: Tarkistus | C123: Hakattu määrä yhteensä | D123: =B118 -> 0
C124: Kuljetettu määrä yhteensä | D124: =B119 -> 0
A125: Määrätarkistus: | B125: =IF(D124>D123,"Kuljetettu määrä on valmistettua määrää suurempi",IF(D124=D123,"Valmistettu ja kuljetettu määrä yhtäsuuret","Valmistettumääräonkuljetettuamäärääisompi")) -> Valmistettu ja kuljetettu määrä yhtäsuuret
A128: MAATILA 5 | B128: Maatila 5, tilat joilla ei metsävähennysoikeutta | J128: Maatila 5, tilat joilla metsävähennysoikeus | U128: Maatila 5, Hakkuu verovuonna - Puun myynti seuraavana vuonna. UINUMAAN JÄÄVÄ HAKKUUMÄÄRÄ
A129: Kunta: | B129: HAKKUU | E129: KULJETUS | J129: HAKKUU | M129: KULJETUS | U129: HAKKUU | X129: KULJETUS
B130: =P$15 -> 0 | H130: Ohje konekustannus | J130: =Q$15 -> 0 | P130: Ohje konekustannus | AA130: Ohje konekustannus
C132: valmistuksen arvo | E132: Määrä | F132: Kuljetustyön arvo | H132: Konekustannus | K132: valmistuksen arvo | M132: Määrä | N132: Kuljetustyön arvo | P132: Konekustannus | V132: valmistuksen arvo | X132: Määrä | Y132: Kuljetustyön arvo | AA132: Konekustannus
B133: m3 | C133: €/m3 | D133: € | E133: m3 | F133: €/m3 | G133: € | H133: €/m3 | I133: € | J133: m3 | K133: €/m3 | L133: € | M133: m3 | N133: €/m3 | O133: € | P133: €/m3 | Q133: € | U133: m3 | V133: €/m3 | W133: € | X133: m3 | Y133: €/m3 | Z133: € | AA133: €/m3 | AB133: €
A134: Energiapuu (kokopuu) | B134: 0 | C134: =$K6 -> 7.73 | D134: =B134*C134 -> 0 | E134: 0 | F134: =$L6 -> 4.05 | G134: =E134*F134 -> 0 | H134: =$M6 -> 0 | I134: =H134*E134 -> 0 | J134: 0 | K134: =$K6 -> 7.73 | L134: =J134*K134 -> 0 | M134: 0 | N134: =$L6 -> 4.05 | O134: =M134*N134 -> 0 | P134: =$M6 -> 0 | Q134: =P134*M134 -> 0 | T134: E.puu (kokopuu) | U134: 0 | V134: =$K6 -> 7.73 | W134: =U134*V134 -> 0 | X134: 0 | Y134: =$L6 -> 4.05 | Z134: =X134*Y134 -> 0 | AA134: =$M6 -> 0 | AB134: =AA134*X134 -> 0
A135: Halot ja klapit | B135: 0 | C135: =$K7 -> 26.26 | D135: =B135*C135 -> 0 | E135: 0 | F135: =$L7 -> 2.59 | G135: =E135*F135 -> 0 | H135: =$M7 -> 0 | I135: =H135*E135 -> 0 | J135: 0 | K135: =$K7 -> 26.26 | L135: =J135*K135 -> 0 | M135: 0 | N135: =$L7 -> 2.59 | O135: =M135*N135 -> 0 | P135: =$M7 -> 0 | Q135: =P135*M135 -> 0 | T135: Halot ja klapit | U135: 0 | V135: =$K7 -> 26.26 | W135: =U135*V135 -> 0 | X135: 0 | Y135: =$L7 -> 2.59 | Z135: =X135*Y135 -> 0 | AA135: =$M7 -> 0 | AB135: =AA135*X135 -> 0
A136: Haketus | B136: 0 | C136: =$K8 -> 4.1 | D136: =B136*C136 -> 0 | E136: 0 | F136: - | G136: - | H136: =$M8 -> 0 | I136: =H136*E136 -> 0 | J136: 0 | K136: =$K8 -> 4.1 | L136: =J136*K136 -> 0 | M136: 0 | N136: - | O136: - | P136: =$M8 -> 0 | Q136: =P136*M136 -> 0 | T136: Haketus | U136: 0 | V136: =$K8 -> 4.1 | W136: =U136*V136 -> 0 | X136: 0 | Y136: - | Z136: - | AA136: =$M8 -> 0 | AB136: =AA136*X136 -> 0
A137: Hake | B137: 0 | C137: - | D137: - | E137: 0 | F137: =$L9 -> 2.59 | G137: =E137*F137 -> 0 | H137: =$M9 -> 0 | I137: =H137*E137 -> 0 | J137: 0 | K137: - | L137: - | M137: 0 | N137: =$L9 -> 2.59 | O137: =M137*N137 -> 0 | P137: =$M9 -> 0 | Q137: =P137*M137 -> 0 | T137: Hake | U137: 0 | V137: - | W137: - | X137: 0 | Y137: =$L9 -> 2.59 | Z137: =X137*Y137 -> 0 | AA137: =$M9 -> 0 | AB137: =AA137*X137 -> 0
A138: Joulupuut | B138: 0 | C138: =$K$10 -> 0 | D138: =B138*C138 -> 0 | E138: 0 | F138: =$L$10 -> 0 | G138: =E138*F138 -> 0 | H138: =$M$10 -> 0 | I138: =H138*E138 -> 0 | J138: 0 | K138: =$K$10 -> 0 | L138: =J138*K138 -> 0 | M138: 0 | N138: =$L$10 -> 0 | O138: =M138*N138 -> 0 | P138: =$M$10 -> 0 | Q138: =P138*M138 -> 0 | T138: Joulupuut | U138: 0 | V138: =$K$10 -> 0 | W138: =U138*V138 -> 0 | X138: 0 | Y138: =$L$10 -> 0 | Z138: =X138*Y138 -> 0 | AA138: =$M$10 -> 0 | AB138: =AA138*X138 -> 0
A139: Yhteensä | B139: =SUM(B134:B138) -> 0 | D139: =SUM(D134:D138) -> 0 | E139: =SUM(E134:E138) -> 0 | G139: =SUM(G134:G138) -> 0 | I139: =SUM(I134:I138) -> 0 | J139: =SUM(J134:J138) -> 0 | L139: =SUM(L134:L138) -> 0 | M139: =SUM(M134:M138) -> 0 | O139: =SUM(O134:O138) -> 0 | Q139: =SUM(Q134:Q138) -> 0 | T139: Yhteensä | U139: =SUM(U134:U138) -> 0 | W139: =SUM(W134:W138) -> 0 | X139: =SUM(X134:X138) -> 0 | Z139: =SUM(Z134:Z138) -> 0 | AB139: =SUM(AB134:AB138) -> 0
B141: YHTEENSÄ | I141: Ei metsävähennystä | Q141: Metsävähennykseen oikeutettujen tilojen hakkuut
A142: Hakkuutyön arvo yhteensä | B142: =I142+Q142 -> 0 | H142: Hakkuutyön arvo | I142: =D139 -> 0 | P142: Hakkuutyön arvo | Q142: =L139 -> 0 | AA142: Hakkuutyön arvo | AB142: =W139 -> 0
A143: Kuljetuksen arvo yhteensä | B143: 0 | H143: Kuljetuksen arvo | I143: =G139 -> 0 | P143: Kuljetuksen arvo | Q143: =O139 -> 0 | AA143: Kuljetuksen arvo | AB143: =Z139 -> 0
A144: Konekustannus (Muuta vuosimenoa) | B144: 0 | H144: Konekustannus | I144: =I139 -> 0 | P144: Konekustannus | Q144: =Q139 -> 0 | AA144: Konekustannus | AB144: =AB139 -> 0
A145: Hakkuun määrä yhteensä | B145: 0 | H145: Hakkuun määrä | I145: =B139 -> 0 | P145: Hakkuun määrä | Q145: =J139 -> 0 | AA145: Hakkuun määrä | AB145: =U139 -> 0
A146: Kuljetuksen määrä yhteensä | B146: 0 | H146: Kuljetuksen määrä | I146: =E139 -> 0 | P146: Kuljetuksen määrä | Q146: =M139 -> 0 | AA146: Kuljetuksen määrä | AB146: =X139 -> 0
A147: Puutavaran verollinen arvo | B147: 0 | H147: Puutavaran verollinen arvo | I147: =(B130-I142-I143-I144) -> 0 | P147: Metsävähennykseen oikeuttava osa (verollinen osa) | Q147: =(J130-Q142-Q143-Q144) -> 0
A150: Tarkistus | C150: Hakattu määrä yhteensä | D150: =B145 -> 0
C151: Kuljetettu määrä yhteensä | D151: =B146 -> 0
A152: Määrätarkistus: | B152: =IF(D151>D150,"Kuljetettu määrä on valmistettua määrää suurempi",IF(D151=D150,"Valmistettu ja kuljetettu määrä yhtäsuuret","Valmistettumääräonkuljetettuamäärääisompi")) -> Valmistettu ja kuljetettu määrä yhtäsuuret

Sheet Menot
A1: Mette 2016
A2: Metsätalouden kirjanpito | F2: =Etusivu!C10 -> RAJOITETTU TESTIVESIO
A3: Menot | D3: OHJE | E3: OHJE | F3: =Etusivu!E10 -> Testitila 1:45
H4: =IF(Etusivu!$C$20="kyllä","Arvonlisäverovelvollinen","Ei arvonlisäverovelvollinen") -> Arvonlisäverovelvollinen | X4: Jos erittelet metsätalouden osuuden tässä, Käytä sarakkeella G 100% | AA4: Valikkoarvot
A5: Kuitti | B5: Päiväys | E5: Menoluokka | F5: Koko summa | G5: Metsä-talouden osuus | H5: ALV:n osuus | I5: Vähennys- kelpoinen | J5: Väh.kelp. summa | K5: Vuosimenot | N5: Poistot (alv 0 %) | X5: Muistiinpanoihin sisältyvät muun toiminnan menot (alv 0%) | AA5: 1 | AB5: Palkat | AC5: 0.24
A6: N:o | B6: pv | C6: kk | D6: Selite | F6: sis. alv | H6: alv-% | I6: alv € | J6: alv 0 % | K6: Palkat | L6: Matkat | M6: Muut | N6: koneet | Q6: rakennukset | T6: ojat, tiet | X6: Maatalous | Y6: Elinkeinotoiminta | Z6: Yksityismenot | AA6: 2 | AB6: Matkat | AC6: 0.1
A7: YHTEENSÄ | F7: =SUM(F12:F232) -> 3789.9 | I7: =SUM(I9:I232) -> 704.46 | J7: =SUM(J12:J232) -> 2870.07 | K7: =SUM(K12:K232) -> 0 | L7: =SUM(L8:L232) -> 31.44 | M7: =SUM(M9:M232) -> 575.68 | N7: =SUM(N12:N232) -> 629.03 | Q7: =SUM(Q12:Q232) -> 0 | T7: =SUM(T12:T232) -> 1935.48 | X7: =SUM(X12:X232) -> 0 | Y7: =SUM(Y12:Y232) -> 0 | Z7: =SUM(Z12:Z232) -> 0 | AA7: 3 | AB7: Muut | AC7: 0
A8: Vuoden matkakulut ajopäiväkirjasta | L8: =Ajopäiv.!K6 -> 31.44 | AA8: 4 | AB8: Konepoisto
A9: Arvionvaraiset | I9: =Arvionvaraiset!G34 -> 15.63 | M9: =Arvionvaraiset!G35 -> 270.12 | AA9: 5 | AB9: Rak.poisto
A10: Hankintatyön konekustannusosuus | M10: =SUM('Hank.työ 1'!C8:G8)+SUM('Hank.työ 2'!C8:G8) -> 0 | AA10: 6 | AB10: Oja/tie poisto
K11: Palkat | L11: Matkat | M11: Muut | N11: Konepoisto | Q11: Rak.poisto | T11: Oja/tie poisto
A12: 200 | B12: 8 | C12: 9 | D12: Mette kirjanpito-ohjelman käyttömaksu | E12: Muut | F12: 39.9 | G12: 1 | H12: 0.24 | I12: =G12*((F12-(X12+Y12+Z12)*(1+H12))-((F12-(X12+Y12+Z12)*(1+H12))/(1+H12))) -> 7.72 | J12: =G12*(F12/(1+H12)) -> 32.18 | K12: =IF($E12=K$11,$J12,0)-IF(E12=K$11,SUM(X12:Z12),0) -> 0 | L12: =IF($E12=L$11,$J12,0)-IF(E12=L$11,SUM(X12:Z12),0) -> 0 | M12: =IF($E12=M$11,$J12,0)-IF(E12=M$11,SUM(X12:Z12),0) -> 32.18 | N12: =IF($E12=N$11,$J12,0)-IF(E12=N$11,SUM(X12:Z12),0) -> 0 | P12: =IF(N12>0,IF(O12<1," !",""),"") ->  | Q12: =IF($E12=Q$11,$J12,0)-IF(E12=Q$11,SUM(X12:Z12),0) -> 0 | S12: =IF(Q12>0,IF(R12<1," !",""),"") ->  | T12: =IF($E12=T$11,$J12,0)-IF(E12=T$11,SUM(X12:Z12),0) -> 0 | V12: =IF(T12>0,IF(U12<1," !",""),"") -> 
A13: 201 | B13: 3 | C13: 3 | D13: Raivaussahan bensaa | E13: Muut | F13: 50 | G13: 1 | H13: =IF(Etusivu!$C$20="kyllä",24%,0%) -> 0.24 | I13: =G13*((F13-(X13+Y13+Z13)*(1+H13))-((F13-(X13+Y13+Z13)*(1+H13))/(1+H13))) -> 9.68 | J13: =G13*(F13/(1+H13)) -> 40.32 | K13: 0 | L13: 0 | M13: 40.32 | N13: 0 | P13: =IF(N13>0,IF(O13<1," !",""),"") ->  | Q13: 0 | S13: =IF(Q13>0,IF(R13<1," !",""),"") ->  | T13: 0 | V13: =IF(T13>0,IF(U13<1," !",""),"") -> 
A14: 202 | G14: 1 | H14: =IF(Etusivu!$C$20="kyllä",24%,0%) -> 0.24 | I14: =G14*((F14-(X14+Y14+Z14)*(1+H14))-((F14-(X14+Y14+Z14)*(1+H14))/(1+H14))) -> 0 | J14: =G14*(F14/(1+H14)) -> 0 | K14: 0 | L14: 0 | M14: 0 | N14: 0 | P14: =IF(N14>0,IF(O14<1," !",""),"") ->  | Q14: 0 | S14: =IF(Q14>0,IF(R14<1," !",""),"") ->  | T14: 0 | V14: =IF(T14>0,IF(U14<1," !",""),"") -> 
A15: 203 | D15: Kolme ylintää on auki testailua varten | G15: 1 | H15: =IF(Etusivu!$C$20="kyllä",24%,0%) -> 0.24 | I15: 0 | J15: 0 | K15: 0 | L15: 0 | M15: 0 | N15: 0 | Q15: 0 | T15: 0
A16: 204 | B16: 4 | C16: 4 | D16: Metsätien peruskorjaus, Peräkyläntie | E16: Oja/tie poisto | F16: 2400 | G16: 1 | H16: =IF(Etusivu!$C$20="kyllä",24%,0%) -> 0.24 | I16: 464.52 | J16: 1935.48 | K16: 0 | L16: 0 | M16: 0 | N16: 0 | Q16: 0 | T16: 1935.48 | U16: 1
A17: 205 | B17: 5 | C17: 5 | D17: raivaussaha | E17: Konepoisto | F17: 780 | G17: 1 | H17: =IF(Etusivu!$C$20="kyllä",24%,0%) -> 0.24 | I17: 150.97 | J17: 629.03 | K17: 0 | L17: 0 | M17: 0 | N17: 629.03 | O17: 2 | Q17: 0 | T17: 0
A18: 206 | B18: 6 | C18: 7 | D18: työhanskat | E18: Muut | F18: 10 | G18: 1 | H18: =IF(Etusivu!$C$20="kyllä",24%,0%) -> 0.24 | I18: 1.94 | J18: 8.06 | K18: 0 | L18: 0 | M18: 8.06 | N18: 0 | Q18: 0 | T18: 0
A19: 207 | B19: 8 | C19: 9 | D19: Tietokone Osittain yksityiskäyttö | E19: Muut | F19: 390 | G19: 0.5 | H19: =IF(Etusivu!$C$20="kyllä",24%,0%) -> 0.24 | I19: 37.74 | J19: 157.26 | K19: 0 | L19: 0 | M19: 157.26 | N19: 0 | Q19: 0 | T19: 0
A20: 208 | B20: 8 | C20: 9 | D20: Excel, Metten käyttöä varten | E20: Muut | F20: 120 | G20: 0.7 | H20: =IF(Etusivu!$C$20="kyllä",24%,0%) -> 0.24 | I20: 16.26 | J20: 67.74 | K20: 0 | L20: 0 | M20: 67.74 | N20: 0 | Q20: 0 | T20: 0
A21: 209 | G21: 1 | H21: =IF(Etusivu!$C$20="kyllä",24%,0%) -> 0.24 | I21: 0 | J21: 0 | K21: 0 | L21: 0 | M21: 0 | N21: 0 | Q21: 0 | T21: 0
A22: 210 | G22: 1 | H22: =IF(Etusivu!$C$20="kyllä",24%,0%) -> 0.24 | I22: 0 | J22: 0 | K22: 0 | L22: 0 | M22: 0 | N22: 0 | Q22: 0 | T22: 0
A23: 211 | G23: 1 | H23: =IF(Etusivu!$C$20="kyllä",24%,0%) -> 0.24 | I23: 0 | J23: 0 | K23: 0 | L23: 0 | M23: 0 | N23: 0 | Q23: 0 | T23: 0
A24: 212 | G24: 1 | H24: =IF(Etusivu!$C$20="kyllä",24%,0%) -> 0.24 | I24: 0 | J24: 0 | K24: 0 | L24: 0 | M24: 0 | N24: 0 | Q24: 0 | T24: 0
A25: 213 | G25: 1 | H25: =IF(Etusivu!$C$20="kyllä",24%,0%) -> 0.24 | I25: 0 | J25: 0 | K25: 0 | L25: 0 | M25: 0 | N25: 0 | Q25: 0 | T25: 0
A26: 214 | G26: 1 | H26: =IF(Etusivu!$C$20="kyllä",24%,0%) -> 0.24 | I26: 0 | J26: 0 | K26: 0 | L26: 0 | M26: 0 | N26: 0 | Q26: 0 | T26: 0
A27: 215 | G27: 1 | H27: =IF(Etusivu!$C$20="kyllä",24%,0%) -> 0.24 | I27: 0 | J27: 0 | K27: 0 | L27: 0 | M27: 0 | N27: 0 | Q27: 0 | T27: 0
A28: 216 | G28: 1 | H28: =IF(Etusivu!$C$20="kyllä",24%,0%) -> 0.24 | I28: 0 | J28: 0 | K28: 0 | L28: 0 | M28: 0 | N28: 0 | Q28: 0 | T28: 0
A29: 217 | G29: 1 | H29: =IF(Etusivu!$C$20="kyllä",24%,0%) -> 0.24 | I29: 0 | J29: 0 | K29: 0 | L29: 0 | M29: 0 | N29: 0 | Q29: 0 | T29: 0
A30: 218 | G30: 1 | H30: =IF(Etusivu!$C$20="kyllä",24%,0%) -> 0.24 | I30: 0 | J30: 0 | K30: 0 | L30: 0 | M30: 0 | N30: 0 | Q30: 0 | T30: 0
A31: 219 | G31: 1 | H31: =IF(Etusivu!$C$20="kyllä",24%,0%) -> 0.24 | I31: 0 | J31: 0 | K31: 0 | L31: 0 | M31: 0 | N31: 0 | Q31: 0 | T31: 0
A32: 220 | G32: 1 | H32: =IF(Etusivu!$C$20="kyllä",24%,0%) -> 0.24 | I32: 0 | J32: 0 | K32: 0 | L32: 0 | M32: 0 | N32: 0 | Q32: 0 | T32: 0
A33: 221 | G33: 1 | H33: =IF(Etusivu!$C$20="kyllä",24%,0%) -> 0.24 | I33: 0 | J33: 0 | K33: 0 | L33: 0 | M33: 0 | N33: 0 | Q33: 0 | T33: 0
A34: 222 | G34: 1 | H34: =IF(Etusivu!$C$20="kyllä",24%,0%) -> 0.24 | I34: 0 | J34: 0 | K34: 0 | L34: 0 | M34: 0 | N34: 0 | Q34: 0 | T34: 0
A35: 223 | G35: 1 | H35: =IF(Etusivu!$C$20="kyllä",24%,0%) -> 0.24 | I35: 0 | J35: 0 | K35: 0 | L35: 0 | M35: 0 | N35: 0 | Q35: 0 | T35: 0
A36: 224 | G36: 1 | H36: =IF(Etusivu!$C$20="kyllä",24%,0%) -> 0.24 | I36: 0 | J36: 0 | K36: 0 | L36: 0 | M36: 0 | N36: 0 | Q36: 0 | T36: 0
A37: 225 | G37: 1 | H37: =IF(Etusivu!$C$20="kyllä",24%,0%) -> 0.24 | I37: 0 | J37: 0 | K37: 0 | L37: 0 | M37: 0 | N37: 0 | Q37: 0 | T37: 0
A38: 226 | G38: 1 | H38: =IF(Etusivu!$C$20="kyllä",24%,0%) -> 0.24 | I38: 0 | J38: 0 | K38: 0 | L38: 0 | M38: 0 | N38: 0 | Q38: 0 | T38: 0
A39: 227 | G39: 1 | H39: =IF(Etusivu!$C$20="kyllä",24%,0%) -> 0.24 | I39: 0 | J39: 0 | K39: 0 | L39: 0 | M39: 0 | N39: 0 | Q39: 0 | T39: 0
A40: 228 | G40: 1 | H40: =IF(Etusivu!$C$20="kyllä",24%,0%) -> 0.24 | I40: 0 | J40: 0 | K40: 0 | L40: 0 | M40: 0 | N40: 0 | Q40: 0 | T40: 0
A41: 229 | G41: 1 | H41: =IF(Etusivu!$C$20="kyllä",24%,0%) -> 0.24 | I41: 0 | J41: 0 | K41: 0 | L41: 0 | M41: 0 | N41: 0 | Q41: 0 | T41: 0
A42: 230 | G42: 1 | H42: =IF(Etusivu!$C$20="kyllä",24%,0%) -> 0.24 | I42: 0 | J42: 0 | K42: 0 | L42: 0 | M42: 0 | N42: 0 | Q42: 0 | T42: 0
A43: 231 | G43: 1 | H43: =IF(Etusivu!$C$20="kyllä",24%,0%) -> 0.24 | I43: 0 | J43: 0 | K43: 0 | L43: 0 | M43: 0 | N43: 0 | Q43: 0 | T43: 0
A44: 232 | G44: 1 | H44: =IF(Etusivu!$C$20="kyllä",24%,0%) -> 0.24 | I44: 0 | J44: 0 | K44: 0 | L44: 0 | M44: 0 | N44: 0 | Q44: 0 | T44: 0
A45: 233 | G45: 1 | H45: =IF(Etusivu!$C$20="kyllä",24%,0%) -> 0.24 | I45: 0 | J45: 0 | K45: 0 | L45: 0 | M45: 0 | N45: 0 | Q45: 0 | T45: 0
A46: 234 | G46: 1 | H46: =IF(Etusivu!$C$20="kyllä",24%,0%) -> 0.24 | I46: 0 | J46: 0 | K46: 0 | L46: 0 | M46: 0 | N46: 0 | Q46: 0 | T46: 0
A47: 235 | G47: 1 | H47: =IF(Etusivu!$C$20="kyllä",24%,0%) -> 0.24 | I47: 0 | J47: 0 | K47: 0 | L47: 0 | M47: 0 | N47: 0 | Q47: 0 | T47: 0
A48: 236 | G48: 1 | H48: =IF(Etusivu!$C$20="kyllä",24%,0%) -> 0.24 | I48: 0 | J48: 0 | K48: 0 | L48: 0 | M48: 0 | N48: 0 | Q48: 0 | T48: 0
A49: 237 | G49: 1 | H49: =IF(Etusivu!$C$20="kyllä",24%,0%) -> 0.24 | I49: 0 | J49: 0 | K49: 0 | L49: 0 | M49: 0 | N49: 0 | Q49: 0 | T49: 0
A50: 238 | G50: 1 | H50: =IF(Etusivu!$C$20="kyllä",24%,0%) -> 0.24 | I50: 0 | J50: 0 | K50: 0 | L50: 0 | M50: 0 | N50: 0 | Q50: 0 | T50: 0
A51: 239 | G51: 1 | H51: =IF(Etusivu!$C$20="kyllä",24%,0%) -> 0.24 | I51: 0 | J51: 0 | K51: 0 | L51: 0 | M51: 0 | N51: 0 | Q51: 0 | T51: 0
A52: 240 | G52: 1 | H52: =IF(Etusivu!$C$20="kyllä",24%,0%) -> 0.24 | I52: 0 | J52: 0 | K52: 0 | L52: 0 | M52: 0 | N52: 0 | Q52: 0 | T52: 0
A53: 241 | G53: 1 | H53: =IF(Etusivu!$C$20="kyllä",24%,0%) -> 0.24 | I53: 0 | J53: 0 | K53: 0 | L53: 0 | M53: 0 | N53: 0 | Q53: 0 | T53: 0
A54: 242 | G54: 1 | H54: =IF(Etusivu!$C$20="kyllä",24%,0%) -> 0.24 | I54: 0 | J54: 0 | K54: 0 | L54: 0 | M54: 0 | N54: 0 | Q54: 0 | T54: 0
A55: 243 | G55: 1 | H55: =IF(Etusivu!$C$20="kyllä",24%,0%) -> 0.24 | I55: 0 | J55: 0 | K55: 0 | L55: 0 | M55: 0 | N55: 0 | Q55: 0 | T55: 0
A56: 244 | G56: 1 | H56: =IF(Etusivu!$C$20="kyllä",24%,0%) -> 0.24 | I56: 0 | J56: 0 | K56: 0 | L56: 0 | M56: 0 | N56: 0 | Q56: 0 | T56: 0
A57: 245 | G57: 1 | H57: =IF(Etusivu!$C$20="kyllä",24%,0%) -> 0.24 | I57: 0 | J57: 0 | K57: 0 | L57: 0 | M57: 0 | N57: 0 | Q57: 0 | T57: 0
A58: 246 | G58: 1 | H58: =IF(Etusivu!$C$20="kyllä",24%,0%) -> 0.24 | I58: 0 | J58: 0 | K58: 0 | L58: 0 | M58: 0 | N58: 0 | Q58: 0 | T58: 0
A59: 247 | G59: 1 | H59: =IF(Etusivu!$C$20="kyllä",24%,0%) -> 0.24 | I59: 0 | J59: 0 | K59: 0 | L59: 0 | M59: 0 | N59: 0 | Q59: 0 | T59: 0
A60: 248 | G60: 1 | H60: =IF(Etusivu!$C$20="kyllä",24%,0%) -> 0.24 | I60: 0 | J60: 0 | K60: 0 | L60: 0 | M60: 0 | N60: 0 | Q60: 0 | T60: 0
A61: 249 | G61: 1 | H61: =IF(Etusivu!$C$20="kyllä",24%,0%) -> 0.24 | I61: 0 | J61: 0 | K61: 0 | L61: 0 | M61: 0 | N61: 0 | Q61: 0 | T61: 0
A62: 250 | G62: 1 | H62: =IF(Etusivu!$C$20="kyllä",24%,0%) -> 0.24 | I62: 0 | J62: 0 | K62: 0 | L62: 0 | M62: 0 | N62: 0 | Q62: 0 | T62: 0
A63: 251 | G63: 1 | H63: =IF(Etusivu!$C$20="kyllä",24%,0%) -> 0.24 | I63: 0 | J63: 0 | K63: 0 | L63: 0 | M63: 0 | N63: 0 | Q63: 0 | T63: 0
A64: 252 | G64: 1 | H64: =IF(Etusivu!$C$20="kyllä",24%,0%) -> 0.24 | I64: 0 | J64: 0 | K64: 0 | L64: 0 | M64: 0 | N64: 0 | Q64: 0 | T64: 0
A65: 253 | G65: 1 | H65: =IF(Etusivu!$C$20="kyllä",24%,0%) -> 0.24 | I65: 0 | J65: 0 | K65: 0 | L65: 0 | M65: 0 | N65: 0 | Q65: 0 | T65: 0
A66: 254 | G66: 1 | H66: =IF(Etusivu!$C$20="kyllä",24%,0%) -> 0.24 | I66: 0 | J66: 0 | K66: 0 | L66: 0 | M66: 0 | N66: 0 | Q66: 0 | T66: 0
A67: 255 | G67: 1 | H67: =IF(Etusivu!$C$20="kyllä",24%,0%) -> 0.24 | I67: 0 | J67: 0 | K67: 0 | L67: 0 | M67: 0 | N67: 0 | Q67: 0 | T67: 0
A68: 256 | G68: 1 | H68: =IF(Etusivu!$C$20="kyllä",24%,0%) -> 0.24 | I68: 0 | J68: 0 | K68: 0 | L68: 0 | M68: 0 | N68: 0 | Q68: 0 | T68: 0
A69: 257 | G69: 1 | H69: =IF(Etusivu!$C$20="kyllä",24%,0%) -> 0.24 | I69: 0 | J69: 0 | K69: 0 | L69: 0 | M69: 0 | N69: 0 | Q69: 0 | T69: 0
A70: 258 | G70: 1 | H70: =IF(Etusivu!$C$20="kyllä",24%,0%) -> 0.24 | I70: 0 | J70: 0 | K70: 0 | L70: 0 | M70: 0 | N70: 0 | Q70: 0 | T70: 0
A71: 259 | G71: 1 | H71: =IF(Etusivu!$C$20="kyllä",24%,0%) -> 0.24 | I71: 0 | J71: 0 | K71: 0 | L71: 0 | M71: 0 | N71: 0 | Q71: 0 | T71: 0
A72: 260 | G72: 1 | H72: =IF(Etusivu!$C$20="kyllä",24%,0%) -> 0.24 | I72: 0 | J72: 0 | K72: 0 | L72: 0 | M72: 0 | N72: 0 | Q72: 0 | T72: 0
A73: 261 | G73: 1 | H73: =IF(Etusivu!$C$20="kyllä",24%,0%) -> 0.24 | I73: 0 | J73: 0 | K73: 0 | L73: 0 | M73: 0 | N73: 0 | Q73: 0 | T73: 0
A74: 262 | G74: 1 | H74: =IF(Etusivu!$C$20="kyllä",24%,0%) -> 0.24 | I74: 0 | J74: 0 | K74: 0 | L74: 0 | M74: 0 | N74: 0 | Q74: 0 | T74: 0
A75: 263 | G75: 1 | H75: =IF(Etusivu!$C$20="kyllä",24%,0%) -> 0.24 | I75: 0 | J75: 0 | K75: 0 | L75: 0 | M75: 0 | N75: 0 | Q75: 0 | T75: 0
A76: 264 | G76: 1 | H76: =IF(Etusivu!$C$20="kyllä",24%,0%) -> 0.24 | I76: 0 | J76: 0 | K76: =IF($E76=K$11,$J76,0)-IF(E76=K$11,SUM(X76:Z76),0) -> 0 | L76: =IF($E76=L$11,$J76,0)-IF(E76=L$11,SUM(X76:Z76),0) -> 0 | M76: =IF($E76=M$11,$J76,0)-IF(E76=M$11,SUM(X76:Z76),0) -> 0 | N76: =IF($E76=N$11,$J76,0)-IF(E76=N$11,SUM(X76:Z76),0) -> 0 | Q76: =IF($E76=Q$11,$J76,0)-IF(E76=Q$11,SUM(X76:Z76),0) -> 0 | T76: =IF($E76=T$11,$J76,0)-IF(E76=T$11,SUM(X76:Z76),0) -> 0
A77: 265 | G77: 1 | H77: =IF(Etusivu!$C$20="kyllä",24%,0%) -> 0.24 | I77: 0 | J77: 0 | K77: 0 | L77: 0 | M77: 0 | N77: 0 | Q77: 0 | T77: 0
A78: 266 | G78: 1 | H78: =IF(Etusivu!$C$20="kyllä",24%,0%) -> 0.24 | I78: =G78*((F78-(X78+Y78+Z78)*(1+H78))-((F78-(X78+Y78+Z78)*(1+H78))/(1+H78))) -> 0 | J78: =G78*(F78/(1+H78)) -> 0 | K78: 0 | L78: 0 | M78: 0 | N78: 0 | P78: =IF(N78>0,IF(O78<1," !",""),"") ->  | Q78: 0 | S78: =IF(Q78>0,IF(R78<1," !",""),"") ->  | T78: 0 | V78: =IF(T78>0,IF(U78<1," !",""),"") -> 
A79: 267 | G79: 1 | H79: =IF(Etusivu!$C$20="kyllä",24%,0%) -> 0.24 | I79: 0 | J79: 0 | K79: 0 | L79: 0 | M79: 0 | N79: 0 | Q79: 0 | T79: 0
A80: 268 | G80: 1 | H80: =IF(Etusivu!$C$20="kyllä",24%,0%) -> 0.24 | I80: 0 | J80: 0 | K80: 0 | L80: 0 | M80: 0 | N80: 0 | Q80: 0 | T80: 0
A81: 269 | G81: 1 | H81: =IF(Etusivu!$C$20="kyllä",24%,0%) -> 0.24 | I81: 0 | J81: 0 | K81: 0 | L81: 0 | M81: 0 | N81: 0 | Q81: 0 | T81: 0
A82: 270 | G82: 1 | H82: =IF(Etusivu!$C$20="kyllä",24%,0%) -> 0.24 | I82: 0 | J82: 0 | K82: 0 | L82: 0 | M82: 0 | N82: 0 | Q82: 0 | T82: 0
A83: 271 | G83: 1 | H83: =IF(Etusivu!$C$20="kyllä",24%,0%) -> 0.24 | I83: 0 | J83: 0 | K83: 0 | L83: 0 | M83: 0 | N83: 0 | Q83: 0 | T83: 0
A84: 272 | G84: 1 | H84: =IF(Etusivu!$C$20="kyllä",24%,0%) -> 0.24 | I84: 0 | J84: 0 | K84: 0 | L84: 0 | M84: 0 | N84: 0 | Q84: 0 | T84: 0
A85: 273 | G85: 1 | H85: =IF(Etusivu!$C$20="kyllä",24%,0%) -> 0.24 | I85: 0 | J85: 0 | K85: 0 | L85: 0 | M85: 0 | N85: 0 | Q85: 0 | T85: 0
A86: 274 | G86: 1 | H86: =IF(Etusivu!$C$20="kyllä",24%,0%) -> 0.24 | I86: 0 | J86: 0 | K86: 0 | L86: 0 | M86: 0 | N86: 0 | Q86: 0 | T86: 0
A87: 275 | G87: 1 | H87: =IF(Etusivu!$C$20="kyllä",24%,0%) -> 0.24 | I87: 0 | J87: 0 | K87: 0 | L87: 0 | M87: 0 | N87: 0 | Q87: 0 | T87: 0
A88: 276 | G88: 1 | H88: =IF(Etusivu!$C$20="kyllä",24%,0%) -> 0.24 | I88: 0 | J88: 0 | K88: 0 | L88: 0 | M88: 0 | N88: 0 | Q88: 0 | T88: 0
A89: 277 | G89: 1 | H89: =IF(Etusivu!$C$20="kyllä",24%,0%) -> 0.24 | I89: 0 | J89: 0 | K89: 0 | L89: 0 | M89: 0 | N89: 0 | Q89: 0 | T89: 0
A90: 278 | G90: 1 | H90: =IF(Etusivu!$C$20="kyllä",24%,0%) -> 0.24 | I90: 0 | J90: 0 | K90: 0 | L90: 0 | M90: 0 | N90: 0 | Q90: 0 | T90: 0
A91: 279 | G91: 1 | H91: =IF(Etusivu!$C$20="kyllä",24%,0%) -> 0.24 | I91: 0 | J91: 0 | K91: 0 | L91: 0 | M91: 0 | N91: 0 | Q91: 0 | T91: 0
A92: 280 | G92: 1 | H92: =IF(Etusivu!$C$20="kyllä",24%,0%) -> 0.24 | I92: 0 | J92: 0 | K92: 0 | L92: 0 | M92: 0 | N92: 0 | Q92: 0 | T92: 0
A93: 281 | G93: 1 | H93: =IF(Etusivu!$C$20="kyllä",24%,0%) -> 0.24 | I93: 0 | J93: 0 | K93: 0 | L93: 0 | M93: 0 | N93: 0 | Q93: 0 | T93: 0
A94: 282 | G94: 1 | H94: =IF(Etusivu!$C$20="kyllä",24%,0%) -> 0.24 | I94: 0 | J94: 0 | K94: 0 | L94: 0 | M94: 0 | N94: 0 | Q94: 0 | T94: 0
A95: 283 | G95: 1 | H95: =IF(Etusivu!$C$20="kyllä",24%,0%) -> 0.24 | I95: 0 | J95: 0 | K95: 0 | L95: 0 | M95: 0 | N95: 0 | Q95: 0 | T95: 0
A96: 284 | G96: 1 | H96: =IF(Etusivu!$C$20="kyllä",24%,0%) -> 0.24 | I96: 0 | J96: 0 | K96: 0 | L96: 0 | M96: 0 | N96: 0 | Q96: 0 | T96: 0
A97: 285 | G97: 1 | H97: =IF(Etusivu!$C$20="kyllä",24%,0%) -> 0.24 | I97: 0 | J97: 0 | K97: 0 | L97: 0 | M97: 0 | N97: 0 | Q97: 0 | T97: 0
A98: 286 | G98: 1 | H98: =IF(Etusivu!$C$20="kyllä",24%,0%) -> 0.24 | I98: 0 | J98: 0 | K98: 0 | L98: 0 | M98: 0 | N98: 0 | Q98: 0 | T98: 0
A99: 287 | G99: 1 | H99: =IF(Etusivu!$C$20="kyllä",24%,0%) -> 0.24 | I99: 0 | J99: 0 | K99: 0 | L99: 0 | M99: 0 | N99: 0 | Q99: 0 | T99: 0
A100: 288 | G100: 1 | H100: =IF(Etusivu!$C$20="kyllä",24%,0%) -> 0.24 | I100: 0 | J100: 0 | K100: 0 | L100: 0 | M100: 0 | N100: 0 | Q100: 0 | T100: 0
A101: 289 | G101: 1 | H101: =IF(Etusivu!$C$20="kyllä",24%,0%) -> 0.24 | I101: 0 | J101: 0 | K101: 0 | L101: 0 | M101: 0 | N101: 0 | Q101: 0 | T101: 0
A102: 290 | G102: 1 | H102: =IF(Etusivu!$C$20="kyllä",24%,0%) -> 0.24 | I102: 0 | J102: 0 | K102: 0 | L102: 0 | M102: 0 | N102: 0 | Q102: 0 | T102: 0
A103: 291 | G103: 1 | H103: =IF(Etusivu!$C$20="kyllä",24%,0%) -> 0.24 | I103: 0 | J103: 0 | K103: 0 | L103: 0 | M103: 0 | N103: 0 | Q103: 0 | T103: 0
A104: 292 | G104: 1 | H104: =IF(Etusivu!$C$20="kyllä",24%,0%) -> 0.24 | I104: 0 | J104: 0 | K104: 0 | L104: 0 | M104: 0 | N104: 0 | Q104: 0 | T104: 0
A105: 293 | G105: 1 | H105: =IF(Etusivu!$C$20="kyllä",24%,0%) -> 0.24 | I105: 0 | J105: 0 | K105: 0 | L105: 0 | M105: 0 | N105: 0 | Q105: 0 | T105: 0
A106: 294 | G106: 1 | H106: =IF(Etusivu!$C$20="kyllä",24%,0%) -> 0.24 | I106: 0 | J106: 0 | K106: 0 | L106: 0 | M106: 0 | N106: 0 | Q106: 0 | T106: 0
A107: 295 | G107: 1 | H107: =IF(Etusivu!$C$20="kyllä",24%,0%) -> 0.24 | I107: 0 | J107: 0 | K107: 0 | L107: 0 | M107: 0 | N107: 0 | Q107: 0 | T107: 0
A108: 296 | G108: 1 | H108: =IF(Etusivu!$C$20="kyllä",24%,0%) -> 0.24 | I108: 0 | J108: 0 | K108: 0 | L108: 0 | M108: 0 | N108: 0 | Q108: 0 | T108: 0
A109: 297 | G109: 1 | H109: =IF(Etusivu!$C$20="kyllä",24%,0%) -> 0.24 | I109: 0 | J109: 0 | K109: 0 | L109: 0 | M109: 0 | N109: 0 | Q109: 0 | T109: 0
A110: 298 | G110: 1 | H110: =IF(Etusivu!$C$20="kyllä",24%,0%) -> 0.24 | I110: 0 | J110: 0 | K110: 0 | L110: 0 | M110: 0 | N110: 0 | Q110: 0 | T110: 0
A111: 299 | G111: 1 | H111: =IF(Etusivu!$C$20="kyllä",24%,0%) -> 0.24 | I111: 0 | J111: 0 | K111: 0 | L111: 0 | M111: 0 | N111: 0 | Q111: 0 | T111: 0
A112: 300 | G112: 1 | H112: =IF(Etusivu!$C$20="kyllä",24%,0%) -> 0.24 | I112: 0 | J112: 0 | K112: 0 | L112: 0 | M112: 0 | N112: 0 | Q112: 0 | T112: 0
A113: 301 | G113: 1 | H113: =IF(Etusivu!$C$20="kyllä",24%,0%) -> 0.24 | I113: 0 | J113: 0 | K113: 0 | L113: 0 | M113: 0 | N113: 0 | Q113: 0 | T113: 0
A114: 302 | G114: 1 | H114: =IF(Etusivu!$C$20="kyllä",24%,0%) -> 0.24 | I114: 0 | J114: 0 | K114: 0 | L114: 0 | M114: 0 | N114: 0 | Q114: 0 | T114: 0
A115: 303 | G115: 1 | H115: =IF(Etusivu!$C$20="kyllä",24%,0%) -> 0.24 | I115: 0 | J115: 0 | K115: 0 | L115: 0 | M115: 0 | N115: 0 | Q115: 0 | T115: 0
A116: 304 | G116: 1 | H116: =IF(Etusivu!$C$20="kyllä",24%,0%) -> 0.24 | I116: 0 | J116: 0 | K116: 0 | L116: 0 | M116: 0 | N116: 0 | Q116: 0 | T116: 0
A117: 305 | G117: 1 | H117: =IF(Etusivu!$C$20="kyllä",24%,0%) -> 0.24 | I117: 0 | J117: 0 | K117: 0 | L117: 0 | M117: 0 | N117: 0 | Q117: 0 | T117: 0
A118: 306 | G118: 1 | H118: =IF(Etusivu!$C$20="kyllä",24%,0%) -> 0.24 | I118: 0 | J118: 0 | K118: 0 | L118: 0 | M118: 0 | N118: 0 | Q118: 0 | T118: 0
A119: 307 | G119: 1 | H119: =IF(Etusivu!$C$20="kyllä",24%,0%) -> 0.24 | I119: 0 | J119: 0 | K119: 0 | L119: 0 | M119: 0 | N119: 0 | Q119: 0 | T119: 0
A120: 308 | G120: 1 | H120: =IF(Etusivu!$C$20="kyllä",24%,0%) -> 0.24 | I120: 0 | J120: 0 | K120: 0 | L120: 0 | M120: 0 | N120: 0 | Q120: 0 | T120: 0
A121: 309 | G121: 1 | H121: =IF(Etusivu!$C$20="kyllä",24%,0%) -> 0.24 | I121: 0 | J121: 0 | K121: 0 | L121: 0 | M121: 0 | N121: 0 | Q121: 0 | T121: 0
A122: 310 | G122: 1 | H122: =IF(Etusivu!$C$20="kyllä",24%,0%) -> 0.24 | I122: 0 | J122: 0 | K122: 0 | L122: 0 | M122: 0 | N122: 0 | Q122: 0 | T122: 0
A123: 311 | G123: 1 | H123: =IF(Etusivu!$C$20="kyllä",24%,0%) -> 0.24 | I123: 0 | J123: 0 | K123: 0 | L123: 0 | M123: 0 | N123: 0 | Q123: 0 | T123: 0
A124: 312 | G124: 1 | H124: =IF(Etusivu!$C$20="kyllä",24%,0%) -> 0.24 | I124: 0 | J124: 0 | K124: 0 | L124: 0 | M124: 0 | N124: 0 | Q124: 0 | T124: 0
A125: 313 | G125: 1 | H125: =IF(Etusivu!$C$20="kyllä",24%,0%) -> 0.24 | I125: 0 | J125: 0 | K125: 0 | L125: 0 | M125: 0 | N125: 0 | Q125: 0 | T125: 0
A126: 314 | G126: 1 | H126: =IF(Etusivu!$C$20="kyllä",24%,0%) -> 0.24 | I126: 0 | J126: 0 | K126: 0 | L126: 0 | M126: 0 | N126: 0 | Q126: 0 | T126: 0
A127: 315 | G127: 1 | H127: =IF(Etusivu!$C$20="kyllä",24%,0%) -> 0.24 | I127: 0 | J127: 0 | K127: 0 | L127: 0 | M127: 0 | N127: 0 | Q127: 0 | T127: 0
A128: 316 | G128: 1 | H128: =IF(Etusivu!$C$20="kyllä",24%,0%) -> 0.24 | I128: 0 | J128: 0 | K128: 0 | L128: 0 | M128: 0 | N128: 0 | Q128: 0 | T128: 0
A129: 317 | G129: 1 | H129: =IF(Etusivu!$C$20="kyllä",24%,0%) -> 0.24 | I129: 0 | J129: 0 | K129: 0 | L129: 0 | M129: 0 | N129: 0 | Q129: 0 | T129: 0
A130: 318 | G130: 1 | H130: =IF(Etusivu!$C$20="kyllä",24%,0%) -> 0.24 | I130: 0 | J130: 0 | K130: 0 | L130: 0 | M130: 0 | N130: 0 | Q130: 0 | T130: 0
A131: 319 | G131: 1 | H131: =IF(Etusivu!$C$20="kyllä",24%,0%) -> 0.24 | I131: 0 | J131: 0 | K131: 0 | L131: 0 | M131: 0 | N131: 0 | Q131: 0 | T131: 0
A132: 320 | G132: 1 | H132: =IF(Etusivu!$C$20="kyllä",24%,0%) -> 0.24 | I132: 0 | J132: 0 | K132: 0 | L132: 0 | M132: 0 | N132: 0 | Q132: 0 | T132: 0
A133: 321 | G133: 1 | H133: =IF(Etusivu!$C$20="kyllä",24%,0%) -> 0.24 | I133: 0 | J133: 0 | K133: 0 | L133: 0 | M133: 0 | N133: 0 | Q133: 0 | T133: 0
A134: 322 | G134: 1 | H134: =IF(Etusivu!$C$20="kyllä",24%,0%) -> 0.24 | I134: 0 | J134: 0 | K134: 0 | L134: 0 | M134: 0 | N134: 0 | Q134: 0 | T134: 0
A135: 323 | G135: 1 | H135: =IF(Etusivu!$C$20="kyllä",24%,0%) -> 0.24 | I135: 0 | J135: 0 | K135: 0 | L135: 0 | M135: 0 | N135: 0 | Q135: 0 | T135: 0
A136: 324 | G136: 1 | H136: =IF(Etusivu!$C$20="kyllä",24%,0%) -> 0.24 | I136: 0 | J136: 0 | K136: 0 | L136: 0 | M136: 0 | N136: 0 | Q136: 0 | T136: 0
A137: 325 | G137: 1 | H137: =IF(Etusivu!$C$20="kyllä",24%,0%) -> 0.24 | I137: 0 | J137: 0 | K137: 0 | L137: 0 | M137: 0 | N137: 0 | Q137: 0 | T137: 0
A138: 326 | G138: 1 | H138: =IF(Etusivu!$C$20="kyllä",24%,0%) -> 0.24 | I138: 0 | J138: 0 | K138: 0 | L138: 0 | M138: 0 | N138: 0 | Q138: 0 | T138: 0
A139: 327 | G139: 1 | H139: =IF(Etusivu!$C$20="kyllä",24%,0%) -> 0.24 | I139: 0 | J139: 0 | K139: 0 | L139: 0 | M139: 0 | N139: 0 | Q139: 0 | T139: 0
A140: 328 | G140: 1 | H140: =IF(Etusivu!$C$20="kyllä",24%,0%) -> 0.24 | I140: 0 | J140: 0 | K140: =IF($E140=K$11,$J140,0)-IF(E140=K$11,SUM(X140:Z140),0) -> 0 | L140: =IF($E140=L$11,$J140,0)-IF(E140=L$11,SUM(X140:Z140),0) -> 0 | M140: =IF($E140=M$11,$J140,0)-IF(E140=M$11,SUM(X140:Z140),0) -> 0 | N140: =IF($E140=N$11,$J140,0)-IF(E140=N$11,SUM(X140:Z140),0) -> 0 | Q140: =IF($E140=Q$11,$J140,0)-IF(E140=Q$11,SUM(X140:Z140),0) -> 0 | T140: =IF($E140=T$11,$J140,0)-IF(E140=T$11,SUM(X140:Z140),0) -> 0
A141: 329 | G141: 1 | H141: =IF(Etusivu!$C$20="kyllä",24%,0%) -> 0.24 | I141: 0 | J141: 0 | K141: 0 | L141: 0 | M141: 0 | N141: 0 | Q141: 0 | T141: 0
A142: 330 | G142: 1 | H142: =IF(Etusivu!$C$20="kyllä",24%,0%) -> 0.24 | I142: =G142*((F142-(X142+Y142+Z142)*(1+H142))-((F142-(X142+Y142+Z142)*(1+H142))/(1+H142))) -> 0 | J142: =G142*(F142/(1+H142)) -> 0 | K142: 0 | L142: 0 | M142: 0 | N142: 0 | P142: =IF(N142>0,IF(O142<1," !",""),"") ->  | Q142: 0 | S142: =IF(Q142>0,IF(R142<1," !",""),"") ->  | T142: 0 | V142: =IF(T142>0,IF(U142<1," !",""),"") -> 
A143: 331 | G143: 1 | H143: =IF(Etusivu!$C$20="kyllä",24%,0%) -> 0.24 | I143: 0 | J143: 0 | K143: 0 | L143: 0 | M143: 0 | N143: 0 | Q143: 0 | T143: 0
A144: 332 | G144: 1 | H144: =IF(Etusivu!$C$20="kyllä",24%,0%) -> 0.24 | I144: 0 | J144: 0 | K144: 0 | L144: 0 | M144: 0 | N144: 0 | Q144: 0 | T144: 0
A145: 333 | G145: 1 | H145: =IF(Etusivu!$C$20="kyllä",24%,0%) -> 0.24 | I145: 0 | J145: 0 | K145: 0 | L145: 0 | M145: 0 | N145: 0 | Q145: 0 | T145: 0
A146: 334 | G146: 1 | H146: =IF(Etusivu!$C$20="kyllä",24%,0%) -> 0.24 | I146: 0 | J146: 0 | K146: 0 | L146: 0 | M146: 0 | N146: 0 | Q146: 0 | T146: 0
A147: 335 | G147: 1 | H147: =IF(Etusivu!$C$20="kyllä",24%,0%) -> 0.24 | I147: 0 | J147: 0 | K147: 0 | L147: 0 | M147: 0 | N147: 0 | Q147: 0 | T147: 0
A148: 336 | G148: 1 | H148: =IF(Etusivu!$C$20="kyllä",24%,0%) -> 0.24 | I148: 0 | J148: 0 | K148: 0 | L148: 0 | M148: 0 | N148: 0 | Q148: 0 | T148: 0
A149: 337 | G149: 1 | H149: =IF(Etusivu!$C$20="kyllä",24%,0%) -> 0.24 | I149: 0 | J149: 0 | K149: 0 | L149: 0 | M149: 0 | N149: 0 | Q149: 0 | T149: 0
A150: 338 | G150: 1 | H150: =IF(Etusivu!$C$20="kyllä",24%,0%) -> 0.24 | I150: 0 | J150: 0 | K150: 0 | L150: 0 | M150: 0 | N150: 0 | Q150: 0 | T150: 0
A151: 339 | G151: 1 | H151: =IF(Etusivu!$C$20="kyllä",24%,0%) -> 0.24 | I151: 0 | J151: 0 | K151: 0 | L151: 0 | M151: 0 | N151: 0 | Q151: 0 | T151: 0
A152: 340 | G152: 1 | H152: =IF(Etusivu!$C$20="kyllä",24%,0%) -> 0.24 | I152: 0 | J152: 0 | K152: 0 | L152: 0 | M152: 0 | N152: 0 | Q152: 0 | T152: 0
A153: 341 | G153: 1 | H153: =IF(Etusivu!$C$20="kyllä",24%,0%) -> 0.24 | I153: 0 | J153: 0 | K153: 0 | L153: 0 | M153: 0 | N153: 0 | Q153: 0 | T153: 0
A154: 342 | G154: 1 | H154: =IF(Etusivu!$C$20="kyllä",24%,0%) -> 0.24 | I154: 0 | J154: 0 | K154: 0 | L154: 0 | M154: 0 | N154: 0 | Q154: 0 | T154: 0
A155: 343 | G155: 1 | H155: =IF(Etusivu!$C$20="kyllä",24%,0%) -> 0.24 | I155: 0 | J155: 0 | K155: 0 | L155: 0 | M155: 0 | N155: 0 | Q155: 0 | T155: 0
A156: 344 | G156: 1 | H156: =IF(Etusivu!$C$20="kyllä",24%,0%) -> 0.24 | I156: 0 | J156: 0 | K156: 0 | L156: 0 | M156: 0 | N156: 0 | Q156: 0 | T156: 0
A157: 345 | G157: 1 | H157: =IF(Etusivu!$C$20="kyllä",24%,0%) -> 0.24 | I157: 0 | J157: 0 | K157: 0 | L157: 0 | M157: 0 | N157: 0 | Q157: 0 | T157: 0
A158: 346 | G158: 1 | H158: =IF(Etusivu!$C$20="kyllä",24%,0%) -> 0.24 | I158: 0 | J158: 0 | K158: 0 | L158: 0 | M158: 0 | N158: 0 | Q158: 0 | T158: 0
A159: 347 | G159: 1 | H159: =IF(Etusivu!$C$20="kyllä",24%,0%) -> 0.24 | I159: 0 | J159: 0 | K159: 0 | L159: 0 | M159: 0 | N159: 0 | Q159: 0 | T159: 0
A160: 348 | G160: 1 | H160: =IF(Etusivu!$C$20="kyllä",24%,0%) -> 0.24 | I160: 0 | J160: 0 | K160: 0 | L160: 0 | M160: 0 | N160: 0 | Q160: 0 | T160: 0
A161: 349 | G161: 1 | H161: =IF(Etusivu!$C$20="kyllä",24%,0%) -> 0.24 | I161: 0 | J161: 0 | K161: 0 | L161: 0 | M161: 0 | N161: 0 | Q161: 0 | T161: 0
A162: 350 | G162: 1 | H162: =IF(Etusivu!$C$20="kyllä",24%,0%) -> 0.24 | I162: 0 | J162: 0 | K162: 0 | L162: 0 | M162: 0 | N162: 0 | Q162: 0 | T162: 0
A163: 351 | G163: 1 | H163: =IF(Etusivu!$C$20="kyllä",24%,0%) -> 0.24 | I163: 0 | J163: 0 | K163: 0 | L163: 0 | M163: 0 | N163: 0 | Q163: 0 | T163: 0
A164: 352 | G164: 1 | H164: =IF(Etusivu!$C$20="kyllä",24%,0%) -> 0.24 | I164: 0 | J164: 0 | K164: 0 | L164: 0 | M164: 0 | N164: 0 | Q164: 0 | T164: 0
A165: 353 | G165: 1 | H165: =IF(Etusivu!$C$20="kyllä",24%,0%) -> 0.24 | I165: 0 | J165: 0 | K165: 0 | L165: 0 | M165: 0 | N165: 0 | Q165: 0 | T165: 0
A166: 354 | G166: 1 | H166: =IF(Etusivu!$C$20="kyllä",24%,0%) -> 0.24 | I166: 0 | J166: 0 | K166: 0 | L166: 0 | M166: 0 | N166: 0 | Q166: 0 | T166: 0
A167: 355 | G167: 1 | H167: =IF(Etusivu!$C$20="kyllä",24%,0%) -> 0.24 | I167: 0 | J167: 0 | K167: 0 | L167: 0 | M167: 0 | N167: 0 | Q167: 0 | T167: 0
A168: 356 | G168: 1 | H168: =IF(Etusivu!$C$20="kyllä",24%,0%) -> 0.24 | I168: 0 | J168: 0 | K168: 0 | L168: 0 | M168: 0 | N168: 0 | Q168: 0 | T168: 0
A169: 357 | G169: 1 | H169: =IF(Etusivu!$C$20="kyllä",24%,0%) -> 0.24 | I169: 0 | J169: 0 | K169: 0 | L169: 0 | M169: 0 | N169: 0 | Q169: 0 | T169: 0
A170: 358 | G170: 1 | H170: =IF(Etusivu!$C$20="kyllä",24%,0%) -> 0.24 | I170: 0 | J170: 0 | K170: 0 | L170: 0 | M170: 0 | N170: 0 | Q170: 0 | T170: 0
A171: 359 | G171: 1 | H171: =IF(Etusivu!$C$20="kyllä",24%,0%) -> 0.24 | I171: 0 | J171: 0 | K171: 0 | L171: 0 | M171: 0 | N171: 0 | Q171: 0 | T171: 0
A172: 360 | G172: 1 | H172: =IF(Etusivu!$C$20="kyllä",24%,0%) -> 0.24 | I172: 0 | J172: 0 | K172: 0 | L172: 0 | M172: 0 | N172: 0 | Q172: 0 | T172: 0
A173: 361 | G173: 1 | H173: =IF(Etusivu!$C$20="kyllä",24%,0%) -> 0.24 | I173: 0 | J173: 0 | K173: 0 | L173: 0 | M173: 0 | N173: 0 | Q173: 0 | T173: 0
A174: 362 | G174: 1 | H174: =IF(Etusivu!$C$20="kyllä",24%,0%) -> 0.24 | I174: 0 | J174: 0 | K174: 0 | L174: 0 | M174: 0 | N174: 0 | Q174: 0 | T174: 0
A175: 363 | G175: 1 | H175: =IF(Etusivu!$C$20="kyllä",24%,0%) -> 0.24 | I175: 0 | J175: 0 | K175: 0 | L175: 0 | M175: 0 | N175: 0 | Q175: 0 | T175: 0
A176: 364 | G176: 1 | H176: =IF(Etusivu!$C$20="kyllä",24%,0%) -> 0.24 | I176: 0 | J176: 0 | K176: 0 | L176: 0 | M176: 0 | N176: 0 | Q176: 0 | T176: 0
A177: 365 | G177: 1 | H177: =IF(Etusivu!$C$20="kyllä",24%,0%) -> 0.24 | I177: 0 | J177: 0 | K177: 0 | L177: 0 | M177: 0 | N177: 0 | Q177: 0 | T177: 0
A178: 366 | G178: 1 | H178: =IF(Etusivu!$C$20="kyllä",24%,0%) -> 0.24 | I178: 0 | J178: 0 | K178: 0 | L178: 0 | M178: 0 | N178: 0 | Q178: 0 | T178: 0
A179: 367 | G179: 1 | H179: =IF(Etusivu!$C$20="kyllä",24%,0%) -> 0.24 | I179: 0 | J179: 0 | K179: 0 | L179: 0 | M179: 0 | N179: 0 | Q179: 0 | T179: 0
A180: 368 | G180: 1 | H180: =IF(Etusivu!$C$20="kyllä",24%,0%) -> 0.24 | I180: 0 | J180: 0 | K180: 0 | L180: 0 | M180: 0 | N180: 0 | Q180: 0 | T180: 0
A181: 369 | G181: 1 | H181: =IF(Etusivu!$C$20="kyllä",24%,0%) -> 0.24 | I181: 0 | J181: 0 | K181: 0 | L181: 0 | M181: 0 | N181: 0 | Q181: 0 | T181: 0
A182: 370 | G182: 1 | H182: =IF(Etusivu!$C$20="kyllä",24%,0%) -> 0.24 | I182: 0 | J182: 0 | K182: 0 | L182: 0 | M182: 0 | N182: 0 | Q182: 0 | T182: 0
A183: 371 | G183: 1 | H183: =IF(Etusivu!$C$20="kyllä",24%,0%) -> 0.24 | I183: 0 | J183: 0 | K183: 0 | L183: 0 | M183: 0 | N183: 0 | Q183: 0 | T183: 0
A184: 372 | G184: 1 | H184: =IF(Etusivu!$C$20="kyllä",24%,0%) -> 0.24 | I184: 0 | J184: 0 | K184: 0 | L184: 0 | M184: 0 | N184: 0 | Q184: 0 | T184: 0
A185: 373 | G185: 1 | H185: =IF(Etusivu!$C$20="kyllä",24%,0%) -> 0.24 | I185: 0 | J185: 0 | K185: 0 | L185: 0 | M185: 0 | N185: 0 | Q185: 0 | T185: 0
A186: 374 | G186: 1 | H186: =IF(Etusivu!$C$20="kyllä",24%,0%) -> 0.24 | I186: 0 | J186: 0 | K186: 0 | L186: 0 | M186: 0 | N186: 0 | Q186: 0 | T186: 0
A187: 375 | G187: 1 | H187: =IF(Etusivu!$C$20="kyllä",24%,0%) -> 0.24 | I187: 0 | J187: 0 | K187: 0 | L187: 0 | M187: 0 | N187: 0 | Q187: 0 | T187: 0
A188: 376 | G188: 1 | H188: =IF(Etusivu!$C$20="kyllä",24%,0%) -> 0.24 | I188: 0 | J188: 0 | K188: 0 | L188: 0 | M188: 0 | N188: 0 | Q188: 0 | T188: 0
A189: 377 | G189: 1 | H189: =IF(Etusivu!$C$20="kyllä",24%,0%) -> 0.24 | I189: 0 | J189: 0 | K189: 0 | L189: 0 | M189: 0 | N189: 0 | Q189: 0 | T189: 0
A190: 378 | G190: 1 | H190: =IF(Etusivu!$C$20="kyllä",24%,0%) -> 0.24 | I190: 0 | J190: 0 | K190: 0 | L190: 0 | M190: 0 | N190: 0 | Q190: 0 | T190: 0
A191: 379 | G191: 1 | H191: =IF(Etusivu!$C$20="kyllä",24%,0%) -> 0.24 | I191: 0 | J191: 0 | K191: 0 | L191: 0 | M191: 0 | N191: 0 | Q191: 0 | T191: 0
A192: 380 | G192: 1 | H192: =IF(Etusivu!$C$20="kyllä",24%,0%) -> 0.24 | I192: 0 | J192: 0 | K192: 0 | L192: 0 | M192: 0 | N192: 0 | Q192: 0 | T192: 0
A193: 381 | G193: 1 | H193: =IF(Etusivu!$C$20="kyllä",24%,0%) -> 0.24 | I193: 0 | J193: 0 | K193: 0 | L193: 0 | M193: 0 | N193: 0 | Q193: 0 | T193: 0
A194: 382 | G194: 1 | H194: =IF(Etusivu!$C$20="kyllä",24%,0%) -> 0.24 | I194: 0 | J194: 0 | K194: 0 | L194: 0 | M194: 0 | N194: 0 | Q194: 0 | T194: 0
A195: 383 | G195: 1 | H195: =IF(Etusivu!$C$20="kyllä",24%,0%) -> 0.24 | I195: 0 | J195: 0 | K195: 0 | L195: 0 | M195: 0 | N195: 0 | Q195: 0 | T195: 0
A196: 384 | G196: 1 | H196: =IF(Etusivu!$C$20="kyllä",24%,0%) -> 0.24 | I196: 0 | J196: 0 | K196: 0 | L196: 0 | M196: 0 | N196: 0 | Q196: 0 | T196: 0
A197: 385 | G197: 1 | H197: =IF(Etusivu!$C$20="kyllä",24%,0%) -> 0.24 | I197: 0 | J197: 0 | K197: 0 | L197: 0 | M197: 0 | N197: 0 | Q197: 0 | T197: 0
A198: 386 | G198: 1 | H198: =IF(Etusivu!$C$20="kyllä",24%,0%) -> 0.24 | I198: 0 | J198: 0 | K198: 0 | L198: 0 | M198: 0 | N198: 0 | Q198: 0 | T198: 0
A199: 387 | G199: 1 | H199: =IF(Etusivu!$C$20="kyllä",24%,0%) -> 0.24 | I199: 0 | J199: 0 | K199: 0 | L199: 0 | M199: 0 | N199: 0 | Q199: 0 | T199: 0
A200: 388 | G200: 1 | H200: =IF(Etusivu!$C$20="kyllä",24%,0%) -> 0.24 | I200: 0 | J200: 0 | K200: 0 | L200: 0 | M200: 0 | N200: 0 | Q200: 0 | T200: 0
... 32 more rows

Sheet Ajopäiv.
B1: Mette 2016
B2: Metsätalouden kirjanpito
B3: Ajopäiväkirja
B4: =Etusivu!C10 -> RAJOITETTU TESTIVESIO
B5: =Etusivu!E10 -> Testitila 1:45
F6: Kilometrikustannus ja päivärahat yhteensä | K6: =SUM(H8:L8) -> 31.44
F7: Ajoneuvo- luokka | G7: lisämat- kustajien määrä | H7: Matkakulu | I7: puolipäiväraha | K7: kokopäiväraha
C8: ohje | D8: Yhteensä | E8: =CONCATENATE(SUMIF(F10:F151,">3",E10:E151), " km ja ", SUMIF(F10:F151,"<4",E10:E151), " tuntia") -> 120 km ja 0 tuntia | H8: =SUM(H10:H151) -> 31.44 | J8: =SUM(J10:J151) -> 0 | L8: =SUM(L10:L151) -> 0 | N8: Päivärahat | P8: euroa/pv
B9: Päiväys | C9: selite | E9: km tai tuntia | F9: ajoneuvo- luokka | G9: lisähenkilö | H9: koko summa € | I9: kpl | J9: koko summa € | K9: kpl | L9: koko summa € | N9: puolipäiväraha | P9: 14
B10: 8.8. | C10: Tietokoneen ostomatka | D10: 50 % metsälle | E10: 72 | F10: 4 | H10: =(((SUMIF(N$14:N$28,F10,P$14:P$28))+(G10*P$31))*E10) -> 18 | J10: =I10*$P$9 -> 0 | L10: =K10*$P$10 -> 0 | N10: kokopäiväraha | P10: 26
B11: 4.4. | C11: metsätien loppukokous, Rouva mukana | E11: 48 | F11: 4 | G11: 1 | H11: 13.44 | J11: 0 | L11: =K11*$P$10 -> 0
C12: ^ ^ | H12: 0 | J12: 0 | L12: 0 | N12: Kilometrikorvaukset
H13: 0 | J13: 0 | L13: 0 | N13: ajoneuvoluokka | P13: euroa/km
H14: 0 | J14: 0 | L14: 0 | N14: 1 | O14: mönkijä | P14: 14
H15: 0 | J15: 0 | L15: 0 | N15: 2 | O15: moottorikelkka | P15: 14
H16: 0 | J16: 0 | L16: 0 | N16: 3 | O16: Traktori | P16: 11
H17: 0 | J17: 0 | L17: 0 | N17: 4 | O17: henkilöauto | P17: 0.25
H18: 0 | J18: 0 | L18: 0 | N18: 5 | O18: mopo | P18: 0.09
H19: 0 | J19: 0 | L19: 0 | N19: 6 | O19: moottoripyörä | P19: 0.17
H20: 0 | J20: 0 | L20: 0 | N20: 7 | O20: moottorivene <50 hv
H21: 0 | J21: 0 | L21: 0 | N21: 8 | O21: moottorivene >50 hv
H22: 0 | J22: 0 | L22: 0 | N22: 9 | O22: auto + perävaunu | P22: =P17+0.07 -> 0.32
H23: 0 | J23: 0 | L23: 0 | N23: 10 | O23: auto + asuntovaunu | P23: =+P17+0.11 -> 0.36
H24: 0 | J24: 0 | L24: 0 | N24: 11 | O24: auto + taukotupa | P24: =+P17+0.21 -> 0.46
H25: 0 | J25: 0 | L25: 0 | N25: 12 | O25: auto + metsätie | P25: =+P17+0.09 -> 0.34
H26: 0 | J26: 0 | L26: 0 | N26: 13 | O26: auto + perävaunu+metsätie | P26: =+P17+0.07+0.09 -> 0.41
H27: 0 | J27: 0 | L27: 0 | N27: 14 | O27: auto + asuntovaunu+metsätie | P27: =+P17+0.11+0.09 -> 0.45
H28: 0 | J28: 0 | L28: 0 | N28: 15 | O28: auto + taukotupa+metsätie | P28: =+P17+0.21+0.09 -> 0.55
H29: 0 | J29: 0 | L29: 0
H30: 0 | J30: 0 | L30: 0 | P30: euroa/km/hlö
H31: 0 | J31: 0 | L31: 0 | O31: Lisämatkustaja | P31: 0.03
H32: 0 | J32: 0 | L32: 0
H33: 0 | J33: 0 | L33: 0
H34: 0 | J34: 0 | L34: 0
H35: 0 | J35: 0 | L35: 0
H36: 0 | J36: 0 | L36: 0
H37: 0 | J37: 0 | L37: 0
H38: 0 | J38: 0 | L38: 0
H39: 0 | J39: 0 | L39: 0
H40: 0 | J40: 0 | L40: 0
H41: 0 | J41: 0 | L41: 0
H42: =(((SUMIF(N$14:N$28,F42,P$14:P$28))+(G42*P$31))*E42) -> 0 | J42: =I42*$P$9 -> 0 | L42: 0
H43: 0 | J43: 0 | L43: 0
H44: 0 | J44: 0 | L44: 0
H45: 0 | J45: 0 | L45: 0
H46: 0 | J46: 0 | L46: 0
H47: 0 | J47: 0 | L47: 0
H48: 0 | J48: 0 | L48: 0
H49: 0 | J49: 0 | L49: 0
H50: 0 | J50: 0 | L50: 0
H51: 0 | J51: 0 | L51: =K51*$P$10 -> 0
H52: 0 | J52: 0 | L52: 0
H53: 0 | J53: 0 | L53: 0
H54: 0 | J54: 0 | L54: 0
H55: 0 | J55: 0 | L55: 0
H56: 0 | J56: 0 | L56: 0
H57: 0 | J57: 0 | L57: 0
H58: 0 | J58: 0 | L58: 0
H59: 0 | J59: 0 | L59: 0
H60: 0 | J60: 0 | L60: 0
H61: 0 | J61: 0 | L61: 0
H62: 0 | J62: 0 | L62: 0
H63: 0 | J63: 0 | L63: 0
H64: 0 | J64: 0 | L64: 0
H65: 0 | J65: 0 | L65: 0
H66: 0 | J66: 0 | L66: 0
H67: 0 | J67: 0 | L67: 0
H68: 0 | J68: 0 | L68: 0
H69: 0 | J69: 0 | L69: 0
H70: 0 | J70: 0 | L70: 0
H71: 0 | J71: 0 | L71: 0
H72: 0 | J72: 0 | L72: 0
H73: 0 | J73: 0 | L73: 0
H74: =(((SUMIF(N$14:N$28,F74,P$14:P$28))+(G74*P$31))*E74) -> 0 | J74: =I74*$P$9 -> 0 | L74: 0
H75: 0 | J75: 0 | L75: 0
H76: 0 | J76: 0 | L76: 0
H77: 0 | J77: 0 | L77: 0
H78: 0 | J78: 0 | L78: 0
H79: 0 | J79: 0 | L79: 0
H80: 0 | J80: 0 | L80: 0
H81: 0 | J81: 0 | L81: 0
H82: 0 | J82: 0 | L82: 0
H83: 0 | J83: 0 | L83: 0
H84: 0 | J84: 0 | L84: 0
H85: 0 | J85: 0 | L85: 0
H86: 0 | J86: 0 | L86: 0
H87: 0 | J87: 0 | L87: 0
H88: 0 | J88: 0 | L88: 0
H89: 0 | J89: 0 | L89: 0
H90: 0 | J90: 0 | L90: 0
H91: 0 | J91: 0 | L91: 0
H92: 0 | J92: 0 | L92: 0
H93: 0 | J93: 0 | L93: 0
H94: 0 | J94: 0 | L94: 0
H95: 0 | J95: 0 | L95: 0
H96: 0 | J96: 0 | L96: 0
H97: 0 | J97: 0 | L97: 0
H98: 0 | J98: 0 | L98: 0
H99: 0 | J99: 0 | L99: 0
H100: 0 | J100: 0 | L100: 0
H101: 0 | J101: 0 | L101: 0
H102: 0 | J102: 0 | L102: 0
H103: 0 | J103: 0 | L103: 0
H104: 0 | J104: 0 | L104: 0
H105: 0 | J105: 0 | L105: 0
H106: =(((SUMIF(N$14:N$28,F106,P$14:P$28))+(G106*P$31))*E106) -> 0 | J106: =I106*$P$9 -> 0 | L106: 0
H107: 0 | J107: 0 | L107: 0
H108: 0 | J108: 0 | L108: 0
H109: 0 | J109: 0 | L109: 0
H110: 0 | J110: 0 | L110: 0
H111: 0 | J111: 0 | L111: 0
H112: 0 | J112: 0 | L112: 0
H113: 0 | J113: 0 | L113: 0
H114: 0 | J114: 0 | L114: 0
H115: 0 | J115: 0 | L115: 0
H116: 0 | J116: 0 | L116: 0
H117: 0 | J117: 0 | L117: 0
H118: 0 | J118: 0 | L118: 0
H119: 0 | J119: 0 | L119: 0
H120: 0 | J120: 0 | L120: 0
H121: 0 | J121: 0 | L121: 0
H122: 0 | J122: 0 | L122: 0
H123: 0 | J123: 0 | L123: 0
H124: 0 | J124: 0 | L124: 0
H125: 0 | J125: 0 | L125: =K125*$P$10 -> 0
H126: 0 | J126: 0 | L126: 0
H127: 0 | J127: 0 | L127: 0
H128: 0 | J128: 0 | L128: 0
H129: 0 | J129: 0 | L129: 0
H130: 0 | J130: 0 | L130: 0
H131: 0 | J131: 0 | L131: 0
H132: 0 | J132: 0 | L132: 0
H133: 0 | J133: 0 | L133: 0
H134: 0 | J134: 0 | L134: 0
H135: 0 | J135: 0 | L135: 0
H136: 0 | J136: 0 | L136: 0
H137: 0 | J137: 0 | L137: 0
H138: =(((SUMIF(N$14:N$28,F138,P$14:P$28))+(G138*P$31))*E138) -> 0 | J138: =I138*$P$9 -> 0 | L138: 0
H139: 0 | J139: 0 | L139: 0
H140: 0 | J140: 0 | L140: 0
H141: 0 | J141: 0 | L141: 0
H142: 0 | J142: 0 | L142: 0
H143: 0 | J143: 0 | L143: 0
H144: 0 | J144: 0 | L144: 0
H145: 0 | J145: 0 | L145: 0
H146: 0 | J146: 0 | L146: 0
H147: 0 | J147: 0 | L147: 0
H148: 0 | J148: 0 | L148: 0
H149: 0 | J149: 0 | L149: 0
H150: 0 | J150: 0 | L150: 0
H151: 0 | J151: 0 | L151: 0

Sheet Arvionvaraiset
B1: Mette 2016
B2: Metsätalouden kirjanpito | N2: Ohje
B3: Arvionvaraiset
B4: =Etusivu!C10 -> RAJOITETTU TESTIVESIO
B5: =Etusivu!E10 -> Testitila 1:45
B7: Matkapuhelinkulut | I7: Puhelin- ja tietotekniikan kulut | P7: Sähkökulut | W7: Nimeä itse
B8: DNA | P8: Sähkön käyttöpaikka
B9: päiväys | I9: päiväys | P9: päiväys | W9: päiväys
B10: pv | C10: kk | D10: Summa (sis. alv) | E10: Alv % | F10: Alv | G10: Euroa Alv 0 % | I10: pv | J10: kk | K10: Summa (sis. alv) | L10: Alv % | M10: Alv | N10: Euroa Alv 0 % | P10: pv | Q10: kk | R10: Summa (sis. alv) | S10: Alv % | T10: Alv | U10: Euroa Alv 0 % | W10: pv | X10: kk | Y10: Summa (sis. alv) | Z10: Alv % | AA10: Alv | AB10: Euroa Alv 0 %
B11: 1 | C11: 2 | D11: 67 | E11: =IF(Etusivu!$C$20="kyllä",24%,0%) -> 0.24 | F11: =+D11-G11 -> 12.97 | G11: =+D11/(1+E11) -> 54.03 | L11: =IF(Etusivu!$C$20="kyllä",24%,0%) -> 0.24 | M11: =+K11-N11 -> 0 | N11: =+K11/(1+L11) -> 0 | S11: =IF(Etusivu!$C$20="kyllä",24%,0%) -> 0.24 | T11: =+R11-U11 -> 0 | U11: =+R11/(1+S11) -> 0 | Z11: =IF(Etusivu!$C$20="kyllä",24%,0%) -> 0.24 | AA11: =+Y11-AB11 -> 0 | AB11: =+Y11/(1+Z11) -> 0
B12: 1 | C12: 4 | D12: 74 | E12: =IF(Etusivu!$C$20="kyllä",24%,0%) -> 0.24 | F12: =+D12-G12 -> 14.32 | G12: 59.68 | L12: =IF(Etusivu!$C$20="kyllä",24%,0%) -> 0.24 | M12: =+K12-N12 -> 0 | N12: =+K12/(1+L12) -> 0 | S12: =IF(Etusivu!$C$20="kyllä",24%,0%) -> 0.24 | T12: =+R12-U12 -> 0 | U12: =+R12/(1+S12) -> 0 | Z12: =IF(Etusivu!$C$20="kyllä",24%,0%) -> 0.24 | AA12: =+Y12-AB12 -> 0 | AB12: =+Y12/(1+Z12) -> 0
B13: 1 | C13: 6 | D13: 44 | E13: =IF(Etusivu!$C$20="kyllä",24%,0%) -> 0.24 | F13: 8.52 | G13: 35.48 | L13: =IF(Etusivu!$C$20="kyllä",24%,0%) -> 0.24 | M13: 0 | N13: 0 | S13: =IF(Etusivu!$C$20="kyllä",24%,0%) -> 0.24 | T13: 0 | U13: 0 | Z13: =IF(Etusivu!$C$20="kyllä",24%,0%) -> 0.24 | AA13: 0 | AB13: 0
B14: 1 | C14: 8 | D14: 55 | E14: =IF(Etusivu!$C$20="kyllä",24%,0%) -> 0.24 | F14: 10.65 | G14: 44.35 | L14: =IF(Etusivu!$C$20="kyllä",24%,0%) -> 0.24 | M14: 0 | N14: 0 | S14: =IF(Etusivu!$C$20="kyllä",24%,0%) -> 0.24 | T14: 0 | U14: 0 | Z14: =IF(Etusivu!$C$20="kyllä",24%,0%) -> 0.24 | AA14: 0 | AB14: 0
B15: 1 | C15: 10 | D15: 50 | E15: =IF(Etusivu!$C$20="kyllä",24%,0%) -> 0.24 | F15: 9.68 | G15: 40.32 | L15: =IF(Etusivu!$C$20="kyllä",24%,0%) -> 0.24 | M15: 0 | N15: 0 | S15: =IF(Etusivu!$C$20="kyllä",24%,0%) -> 0.24 | T15: 0 | U15: 0 | Z15: =IF(Etusivu!$C$20="kyllä",24%,0%) -> 0.24 | AA15: 0 | AB15: 0
B16: 1 | C16: 12 | D16: 33 | E16: =IF(Etusivu!$C$20="kyllä",24%,0%) -> 0.24 | F16: 6.39 | G16: 26.61 | L16: =IF(Etusivu!$C$20="kyllä",24%,0%) -> 0.24 | M16: 0 | N16: 0 | S16: =IF(Etusivu!$C$20="kyllä",24%,0%) -> 0.24 | T16: 0 | U16: 0 | Z16: =IF(Etusivu!$C$20="kyllä",24%,0%) -> 0.24 | AA16: 0 | AB16: 0
E17: =IF(Etusivu!$C$20="kyllä",24%,0%) -> 0.24 | F17: 0 | G17: 0 | L17: =IF(Etusivu!$C$20="kyllä",24%,0%) -> 0.24 | M17: 0 | N17: 0 | S17: =IF(Etusivu!$C$20="kyllä",24%,0%) -> 0.24 | T17: 0 | U17: 0 | Z17: =IF(Etusivu!$C$20="kyllä",24%,0%) -> 0.24 | AA17: 0 | AB17: 0
E18: =IF(Etusivu!$C$20="kyllä",24%,0%) -> 0.24 | F18: 0 | G18: 0 | L18: =IF(Etusivu!$C$20="kyllä",24%,0%) -> 0.24 | M18: 0 | N18: 0 | S18: =IF(Etusivu!$C$20="kyllä",24%,0%) -> 0.24 | T18: 0 | U18: 0 | Z18: =IF(Etusivu!$C$20="kyllä",24%,0%) -> 0.24 | AA18: 0 | AB18: 0
E19: =IF(Etusivu!$C$20="kyllä",24%,0%) -> 0.24 | F19: 0 | G19: 0 | L19: =IF(Etusivu!$C$20="kyllä",24%,0%) -> 0.24 | M19: 0 | N19: 0 | S19: =IF(Etusivu!$C$20="kyllä",24%,0%) -> 0.24 | T19: 0 | U19: 0 | Z19: =IF(Etusivu!$C$20="kyllä",24%,0%) -> 0.24 | AA19: 0 | AB19: 0
E20: =IF(Etusivu!$C$20="kyllä",24%,0%) -> 0.24 | F20: 0 | G20: 0 | L20: =IF(Etusivu!$C$20="kyllä",24%,0%) -> 0.24 | M20: 0 | N20: 0 | S20: =IF(Etusivu!$C$20="kyllä",24%,0%) -> 0.24 | T20: 0 | U20: 0 | Z20: =IF(Etusivu!$C$20="kyllä",24%,0%) -> 0.24 | AA20: 0 | AB20: 0
E21: =IF(Etusivu!$C$20="kyllä",24%,0%) -> 0.24 | F21: 0 | G21: 0 | L21: =IF(Etusivu!$C$20="kyllä",24%,0%) -> 0.24 | M21: 0 | N21: 0 | S21: =IF(Etusivu!$C$20="kyllä",24%,0%) -> 0.24 | T21: 0 | U21: 0 | Z21: =IF(Etusivu!$C$20="kyllä",24%,0%) -> 0.24 | AA21: 0 | AB21: 0
E22: =IF(Etusivu!$C$20="kyllä",24%,0%) -> 0.24 | F22: 0 | G22: 0 | L22: =IF(Etusivu!$C$20="kyllä",24%,0%) -> 0.24 | M22: 0 | N22: 0 | S22: =IF(Etusivu!$C$20="kyllä",24%,0%) -> 0.24 | T22: 0 | U22: 0 | Z22: =IF(Etusivu!$C$20="kyllä",24%,0%) -> 0.24 | AA22: 0 | AB22: 0
E23: =IF(Etusivu!$C$20="kyllä",24%,0%) -> 0.24 | F23: 0 | G23: 0 | L23: =IF(Etusivu!$C$20="kyllä",24%,0%) -> 0.24 | M23: 0 | N23: 0 | S23: =IF(Etusivu!$C$20="kyllä",24%,0%) -> 0.24 | T23: 0 | U23: 0 | Z23: =IF(Etusivu!$C$20="kyllä",24%,0%) -> 0.24 | AA23: 0 | AB23: 0
B24: yhteensä | F24: =SUM(F11:F23) -> 62.53 | G24: =SUM(G11:G23) -> 260.47 | I24: yhteensä | M24: =SUM(M11:M23) -> 0 | N24: =SUM(N11:N23) -> 0 | P24: yhteensä | T24: =SUM(T11:T23) -> 0 | U24: =SUM(U11:U23) -> 0 | W24: yhteensä | AA24: =SUM(AA11:AA23) -> 0 | AB24: =SUM(AB11:AB23) -> 0
B25: €/kk Alv 0% | G25: =+G24/12 -> 21.71 | I25: €/kk Alv 0% | N25: =+N24/12 -> 0 | P25: €/kk Alv 0% | U25: =+U24/12 -> 0 | W25: €/kk Alv 0% | AB25: =+AB24/12 -> 0
B27: Metsätalouden osuus | F27: 0.25 | M27: 0.1 | T27: 0.1 | AA27: 0.5
F28: =+F24*F27 -> 15.63 | G28: =+F27*G24 -> 65.12 | M28: =+M24*M27 -> 0 | N28: =+M27*N24 -> 0 | T28: =+T27*T24 -> 0 | U28: =+T27*U24 -> 0 | AA28: =+AA27*AA24 -> 0 | AB28: =+AA27*AB24 -> 0
B30: Työhuonevähennys: Jos selvitystä todellisista kuluista ei ole, mutta harjoitetun metsätalouden laajuus ja työhuonetilan tarve huomioon ottaen kuluja voidaan katsoa syntyneen, arvioituna kuluna voidaan muun selvityksen puuttuessa vähentää palkansaajan satunnaisten sivutulojen työhuonevähennyksen mukainen määrä (205 €/v). | N30: Euroa Alv 0 %
N31: 205
B33: Arvionvaraiset yhteensä
B34: Metsätaloudessa vähennyskelpoinen alv | G34: =+F28+M28+T28+AA28 -> 15.63
B35: Metsätaloudessa vähennyskelpoinen meno | G35: =+G28+N28+U28+AB28+N31 -> 270.12

Sheet Poistot
A1: Mette 2016
A2: METSÄTALOUDEN KIRJANPITO
A3: Poistojen laskenta | E3: Ohje | F3: Ohje
A4: =Etusivu!C10 -> RAJOITETTU TESTIVESIO
A5: =Etusivu!E10 -> Testitila 1:45 | K5: 11. Muistiinpanoihin (Poistoihin) sisältyvät muun toiminnan menot (alv 0%)
D6: Menojäännös | E6: Lisäykset | F6: Vähennykset | G6: Poisto % | H6: Poisto | I6: Menojäännös
D7: =CONCATENATE("1.1. ",Etusivu!C9) -> 1.1. 2016 | E7: verovuonna | F7: verovuonna | H7: € | I7: =CONCATENATE("31.12. ",Etusivu!C9) -> 31.12. 2016 | K7: 11.1 Maatalous | L7: 11.2 Elinkeinotoiminta | M7: 11.3 Yksityismenot
B8: nro | C8: Koneet ja laitteet, yhteensä | D8: =SUM(D9:D28) -> 2500 | E8: =SUM(E9:E28) -> 629.03 | F8: =SUM(F9:F28) -> 0 | H8: =SUM(H9:H28) -> 782.26 | I8: =D8+E8-F8-H8 -> 2346.77 | K8: =SUM(K9:K28) -> 0 | L8: =SUM(L9:L28) -> 0 | M8: =SUM(M9:M28) -> 0
B9: 1 | C9: Metsäperäkärry | D9: 2500 | E9: =SUMIF(Menot!O$12:O$232,B9,Menot!N$12:N$232) -> 0 | G9: 0.25 | H9: =IF((E9+D9-F9)<200.01,E9+D9-F9,(D9+E9-F9)*G9) -> 625 | I9: =D9+E9-F9-H9 -> 1875
B10: 2 | C10: Raivaussaha | E10: =SUMIF(Menot!O$12:O$232,B10,Menot!N$12:N$232) -> 629.03 | G10: 0.25 | H10: =IF((E10+D10-F10)<200.01,E10+D10-F10,(D10+E10-F10)*G10) -> 157.26 | I10: =D10+E10-F10-H10 -> 471.77
B11: 3 | E11: =SUMIF(Menot!O$12:O$232,B11,Menot!N$12:N$232) -> 0 | G11: 0.25 | H11: =IF((E11+D11-F11)<200.01,E11+D11-F11,(D11+E11-F11)*G11) -> 0 | I11: =D11+E11-F11-H11 -> 0
B12: 4 | E12: =SUMIF(Menot!O$12:O$232,B12,Menot!N$12:N$232) -> 0 | G12: 0.25 | H12: 0 | I12: 0
B13: 5 | E13: =SUMIF(Menot!O$12:O$232,B13,Menot!N$12:N$232) -> 0 | G13: 0.25 | H13: 0 | I13: 0
B14: 6 | E14: =SUMIF(Menot!O$12:O$232,B14,Menot!N$12:N$232) -> 0 | G14: 0.25 | H14: 0 | I14: 0
B15: 7 | E15: =SUMIF(Menot!O$12:O$232,B15,Menot!N$12:N$232) -> 0 | G15: 0.25 | H15: 0 | I15: 0
B16: 8 | E16: =SUMIF(Menot!O$12:O$232,B16,Menot!N$12:N$232) -> 0 | G16: 0.25 | H16: 0 | I16: 0
B17: 9 | E17: =SUMIF(Menot!O$12:O$232,B17,Menot!N$12:N$232) -> 0 | G17: 0.25 | H17: 0 | I17: 0
B18: 10 | E18: =SUMIF(Menot!O$12:O$232,B18,Menot!N$12:N$232) -> 0 | G18: 0.25 | H18: 0 | I18: 0
B19: 11 | E19: =SUMIF(Menot!O$12:O$232,B19,Menot!N$12:N$232) -> 0 | G19: 0.25 | H19: 0 | I19: 0
B20: 12 | E20: =SUMIF(Menot!O$12:O$232,B20,Menot!N$12:N$232) -> 0 | G20: 0.25 | H20: 0 | I20: 0
B21: 13 | E21: =SUMIF(Menot!O$12:O$232,B21,Menot!N$12:N$232) -> 0 | G21: 0.25 | H21: 0 | I21: 0
B22: 14 | E22: =SUMIF(Menot!O$12:O$232,B22,Menot!N$12:N$232) -> 0 | G22: 0.25 | H22: 0 | I22: 0
B23: 15 | E23: =SUMIF(Menot!O$12:O$232,B23,Menot!N$12:N$232) -> 0 | G23: 0.25 | H23: 0 | I23: 0
B24: 16 | E24: =SUMIF(Menot!O$12:O$232,B24,Menot!N$12:N$232) -> 0 | G24: 0.25 | H24: 0 | I24: 0
B25: 17 | E25: =SUMIF(Menot!O$12:O$232,B25,Menot!N$12:N$232) -> 0 | G25: 0.25 | H25: 0 | I25: 0
B26: 18 | E26: =SUMIF(Menot!O$12:O$232,B26,Menot!N$12:N$232) -> 0 | G26: 0.25 | H26: 0 | I26: 0
B27: 19 | E27: =SUMIF(Menot!O$12:O$232,B27,Menot!N$12:N$232) -> 0 | G27: 0.25 | H27: 0 | I27: 0
B28: 20 | E28: =SUMIF(Menot!O$12:O$232,B28,Menot!N$12:N$232) -> 0 | G28: 0.25 | H28: 0 | I28: 0
B30: nro | C30: Rakennukset, yhteensä | D30: =SUM(D31:D35) -> 0 | E30: =SUM(E31:E35) -> 0 | F30: =SUM(F31:F35) -> 0 | H30: =SUM(H31:H35) -> 0 | I30: =D30+E30-F30-H30 -> 0 | K30: =SUM(K31:K35) -> 0 | L30: =SUM(L31:L35) -> 0 | M30: =SUM(M31:M35) -> 0
B31: 1 | E31: =SUMIF(Menot!R$12:R$232,B31,Menot!Q$12:Q$232) -> 0 | G31: 0.1 | H31: =IF((E31+D31-F31)<200.01,E31+D31-F31,(D31+E31-F31)*G31) -> 0 | I31: 0
B32: 2 | E32: =SUMIF(Menot!R$12:R$232,B32,Menot!Q$12:Q$232) -> 0 | G32: 0.1 | H32: =IF((E32+D32-F32)<200.01,E32+D32-F32,(D32+E32-F32)*G32) -> 0 | I32: 0
B33: 3 | E33: =SUMIF(Menot!R$12:R$232,B33,Menot!Q$12:Q$232) -> 0 | G33: 0.1 | H33: =IF((E33+D33-F33)<200.01,E33+D33-F33,(D33+E33-F33)*G33) -> 0 | I33: 0
B34: 4 | E34: =SUMIF(Menot!R$12:R$232,B34,Menot!Q$12:Q$232) -> 0 | G34: 0.1 | H34: =IF((E34+D34-F34)<200.01,E34+D34-F34,(D34+E34-F34)*G34) -> 0 | I34: 0
B35: 5 | E35: =SUMIF(Menot!R$12:R$232,B35,Menot!Q$12:Q$232) -> 0 | G35: 0.1 | H35: =IF((E35+D35-F35)<200.01,E35+D35-F35,(D35+E35-F35)*G35) -> 0 | I35: 0
B37: nro | C37: Ojat ja tiet, yhteensä | D37: =SUM(D38:D57) -> 0 | E37: =SUM(E38:E57) -> 1935.48 | F37: =SUM(F38:F57) -> 0 | H37: =SUM(H38:H57) -> 290.32 | I37: =D37+E37-F37-H37 -> 1645.16 | K37: =SUM(K38:K57) -> 0 | L37: =SUM(L38:L57) -> 0 | M37: =SUM(M38:M57) -> 0
B38: 1 | C38: Peräkyläntie | E38: =SUMIF(Menot!U$12:U$232,B38,Menot!T$12:T$232) -> 1935.48 | G38: 0.15 | H38: =IF((E38+D38-F38)<200.01,E38+D38-F38,(D38+E38-F38)*G38) -> 290.32 | I38: =D38+E38-F38-H38 -> 1645.16
B39: 2 | E39: =SUMIF(Menot!U$12:U$232,B39,Menot!T$12:T$232) -> 0 | G39: 0.15 | H39: =IF((E39+D39-F39)<200.01,E39+D39-F39,(D39+E39-F39)*G39) -> 0 | I39: =D39+E39-F39-H39 -> 0
B40: 3 | E40: =SUMIF(Menot!U$12:U$232,B40,Menot!T$12:T$232) -> 0 | G40: 0.15 | H40: 0 | I40: 0
B41: 4 | E41: =SUMIF(Menot!U$12:U$232,B41,Menot!T$12:T$232) -> 0 | G41: 0.15 | H41: 0 | I41: 0
B42: 5 | E42: =SUMIF(Menot!U$12:U$232,B42,Menot!T$12:T$232) -> 0 | G42: 0.15 | H42: 0 | I42: 0
B43: 6 | E43: =SUMIF(Menot!U$12:U$232,B43,Menot!T$12:T$232) -> 0 | G43: 0.15 | H43: 0 | I43: 0
B44: 7 | E44: =SUMIF(Menot!U$12:U$232,B44,Menot!T$12:T$232) -> 0 | G44: 0.15 | H44: =IF((E44+D44-F44)<200.01,E44+D44-F44,(D44+E44-F44)*G44) -> 0 | I44: =D44+E44-F44-H44 -> 0
B45: 8 | E45: =SUMIF(Menot!U$12:U$232,B45,Menot!T$12:T$232) -> 0 | G45: 0.15 | H45: 0 | I45: 0
B46: 9 | E46: =SUMIF(Menot!U$12:U$232,B46,Menot!T$12:T$232) -> 0 | G46: 0.15 | H46: 0 | I46: 0
B47: 10 | E47: =SUMIF(Menot!U$12:U$232,B47,Menot!T$12:T$232) -> 0 | G47: 0.15 | H47: 0 | I47: 0
B48: 11 | E48: =SUMIF(Menot!U$12:U$232,B48,Menot!T$12:T$232) -> 0 | G48: 0.15 | H48: 0 | I48: 0
B49: 12 | E49: =SUMIF(Menot!U$12:U$232,B49,Menot!T$12:T$232) -> 0 | G49: 0.15 | H49: 0 | I49: 0
B50: 13 | E50: =SUMIF(Menot!U$12:U$232,B50,Menot!T$12:T$232) -> 0 | G50: 0.15 | H50: 0 | I50: 0
B51: 14 | E51: =SUMIF(Menot!U$12:U$232,B51,Menot!T$12:T$232) -> 0 | G51: 0.15 | H51: 0 | I51: 0
B52: 15 | E52: =SUMIF(Menot!U$12:U$232,B52,Menot!T$12:T$232) -> 0 | G52: 0.15 | H52: 0 | I52: 0
B53: 16 | E53: =SUMIF(Menot!U$12:U$232,B53,Menot!T$12:T$232) -> 0 | G53: 0.15 | H53: 0 | I53: 0
B54: 17 | E54: =SUMIF(Menot!U$12:U$232,B54,Menot!T$12:T$232) -> 0 | G54: 0.15 | H54: 0 | I54: 0
B55: 18 | E55: =SUMIF(Menot!U$12:U$232,B55,Menot!T$12:T$232) -> 0 | G55: 0.15 | H55: 0 | I55: 0
B56: 19 | E56: =SUMIF(Menot!U$12:U$232,B56,Menot!T$12:T$232) -> 0 | G56: 0.15 | H56: 0 | I56: 0
B57: 20 | E57: =SUMIF(Menot!U$12:U$232,B57,Menot!T$12:T$232) -> 0 | G57: 0.15 | H57: 0 | I57: 0
C59: Ohjelma poistaa enintään 200 euron menon tai menojäännöksen kerralla.

Sheet Velat
B1: Mette 2016
B2: =Tulot!A2 -> Metsätalouden kirjanpito
B3: Velat ja korot
B4: YHTYMÄT EIVÄT TÄYTÄ TÄTÄ LOMAKETTA
B5: =Etusivu!C10 -> RAJOITETTU TESTIVESIO
B6: =Etusivu!E10 -> Testitila 1:45
B9: Velan nimi | C9: Laina 1 | H9: Lainat yhteensä
B10: Velan määrä vuoden alussa | E10: 0 | F10: euroa | H10: Velan määrä vuoden alussa | K10: =E10+E32+E53 -> 0 | L10: euroa
B11: Velan määrä vuoden lopussa | E11: =E10-D28 -> 0 | F11: euroa | H11: Velan määrä vuoden lopussa | K11: =E11+E33+E54 -> 0 | L11: euroa
H12: Korot yhteensä | K12: =C28+C50+C71 -> 0 | L12: euroa
B13: Lainan maksut
B14: Päivä | C14: korko | D14: lyhennys | E14: yhteensä | H14: Metsätalouden harjoittamiseen liittyvät velat ja niistä maksetut korot ilmoitetaan esitäytetyllä veroilmoituksella.
E15: =IF(C15+D15>0,C15+D15,"") -> 
B27: YHTEENSÄ | C27: =IF(SUM(C15:C26)>0,SUM(C15:C26),"") ->  | D27: =IF(SUM(D15:D26)>0,SUM(D15:D26),"") -> 
C28: =IF(C27>0,SUM(C15:C26),0) -> 0 | D28: =IF(D27>0,SUM(D15:D26),0) -> 0
B31: Velan nimi | C31: Laina 2
B32: Velan määrä vuoden alussa | E32: 0 | F32: euroa
B33: Velan määrä vuoden lopussa | E33: =E32-D50 -> 0 | F33: euroa
B35: Lainan maksut
B36: Päivä | C36: korko | D36: lyhennys | E36: yhteensä
E37: =IF(C37+D37>0,C37+D37,"") -> 
B49: YHTEENSÄ | C49: =IF(SUM(C37:C48)>0,SUM(C37:C48),"") ->  | D49: =IF(SUM(D37:D48)>0,SUM(D37:D48),"") -> 
C50: =IF(C49>0,SUM(C37:C48),0) -> 0 | D50: =IF(D49>0,SUM(D37:D48),0) -> 0
B52: Velan nimi | C52: Laina 3
B53: Velan määrä vuoden alussa | E53: 0 | F53: euroa
B54: Velan määrä vuoden lopussa | E54: =E53-D71 -> 0 | F54: euroa
B56: Lainan maksut
B57: Päivä | C57: korko | D57: lyhennys | E57: yhteensä
E58: =IF(C58+D58>0,C58+D58,"") -> 
B70: YHTEENSÄ | C70: =IF(SUM(C58:C69)>0,SUM(C58:C69),"") ->  | D70: =IF(SUM(D58:D69)>0,SUM(D58:D69),"") -> 
C71: =IF(C70>0,SUM(C58:C69),0) -> 0 | D71: =IF(D70>0,SUM(D58:D69),0) -> 0

Sheet Luovutusv.
A1: Mette 2016
A2: =Tulot!A2 -> Metsätalouden kirjanpito
A3: Metsätilan, koneiden ja kaluston luovutusvoitot
A4: =Etusivu!C10 -> RAJOITETTU TESTIVESIO
A5: =Etusivu!E10 -> Testitila 1:45
B6: Luovutuksen kohde | C6: päiväys | E6: luovutus- | F6: Hankintameno, hankintameno- olettama tai poistamaton hankintameno | G6: Lisätään tehdyn metsävähennyksen määrä metsätilan myynnissä | H6: Luovutus- | I6: ALV
C7: pv | D7: kk | E7: hinta | H7: voitto
B8: Valmetin myynti | C8: 9 | D8: 9 | E8: 14000 | F8: =E8*0.4 -> 5600 | H8: =E8-F8+G8 -> 8400 | I8: =H8*0.24 -> 2016
H9: 0
H10: 0
H11: 0
H12: 0
H13: 0
H14: 0
H15: 0
B16: Yhteensä | E16: =SUM(E8:E15) -> 14000 | F16: =SUM(F8:F15) -> 5600 | G16: =SUM(G8:G15) -> 0 | H16: =SUM(H8:H15) -> 8400 | I16: =SUM(I8:I15) -> 2016
B19: Siirrä luovutuksen kohteen poistamaton hankintameno poistot-taulukon kyseisen kohteen sarakkeeseen "Vähennykset verovuonna".
B21: Huom! Metsätilan, metsätalouden koneiden, laitteiden, rakennusten ja rakennelmien myynnistä saadut voitot verotetaan luovutusvoittoina. Luovutusvoitto on pääomatuloa, mutta ei metsätalouden pääomatuloa. Luovutusvoitot ilmoitetaan verolomakkeella 9. Alle 1000 euron luovutusvoitot ovat verovapaita.

Sheet Varaukset
B1: Mette 2016
B2: =Tulot!A2 -> Metsätalouden kirjanpito
B3: Varaukset
B4: =Etusivu!C10 -> RAJOITETTU TESTIVESIO
B5: =Etusivu!E10 -> Testitila 1:45
B7: Valitse alue
B8: Etelä-Suomi | E8: =CONCATENATE("Vuodet ",M11," - ",M12," käytössä vain Oulun- ja Lapin läänissä, Pohjois-Suomi -valinnalla") -> Vuodet 2010 - 2011 käytössä vain Oulun- ja Lapin läänissä, Pohjois-Suomi -valinnalla
B10: Taulukon käyttöohje
B11: Tehty menovaraus yhteensä, ennen varausten tuloutusta | E11: =SUM(C23:C30) -> 15880.77 | G11: Tehty tuhovaraus yhteensä, ennen varausten tuloutusta | J11: =SUM(H23:H30) -> 1230 | M11: =Etusivu!$C9-6 -> 2010
M12: =Etusivu!$C9-5 -> 2011
B13: Menovarauksen haluttu kokonaiskäyttö verovuonna | E13: 0 | G13: Tuhovarauksen haluttu kokonaiskäyttö verovuonna | J13: 0
B14: Mevovarauksen pakollinen tuloutus | E14: =IF(B8=K22,D23,D25) -> 3500 | G14: Mevovarauksen pakollinen tuloutus | J14: =IF(B8=K22,I23,I25) -> 0
B16: Verovuoden tuloutettava menovaraus | E16: =SUM(D23:D30) -> 3500 | G16: Verovuoden tuloutettava tuhovaraus | J16: =SUM(I23:I30) -> 0
B17: Menovaraukset yhteensä tuloutuksen jälkeen | E17: =SUM(E23:E30) -> 12380.77 | G17: Tuhovaraukset yhteensä tuloutuksen jälkeen | J17: =SUM(J23:J30) -> 1230
B20: Menovaraus = | C20: 0.15 | E20: =IF(C20>15%,"Menovaraus voi olla enintään 15%","") ->  | G20: Tuhovaraus = | H20: 1 | I20: =IF(H20>100%,"<-- Ei voi olla suurempi, kuin 100%","") -> 
C21: Menovaraus | H21: Tuhovaraus | K21: Etelä-Suomi
B22: Vuosi, jolloin varaus on tehty | C22: Jäljellä vuoden alussa | D22: Verovuoden käyttö | E22: jää / siirtyy seuraavaan vuoteen | G22: Vuosi, jolloin varaus on tehty | H22: Jäljellä vuoden alussa | I22: Verovuoden käyttö | J22: jää / siirtyy seuraavaan vuoteen | K22: Pohjois-Suomi
B23: =IF($B8=$K22,Etusivu!$C9-6," ") ->  | D23: =IF(B8=K22,C23,0) -> 0 | E23: 0 | F23: =IF($B8=$K21,IF(C23>0,"Tarkista aluevalintasi",""),"") ->  | G23: =IF($B$8=$K$22,Etusivu!$C$9-6," ") ->  | I23: =IF(B8=K22,H23,0) -> 0 | J23: 0 | K23: =IF($B8=$K21,IF(H23>0,"Tarkista aluevalintasi",""),"") -> 
B24: =IF(B8=K22,Etusivu!C9-5," ") ->  | D24: =IF(B8=K22,C24-E24,0) -> 0 | E24: =IF(B8=K21,0,IF(E13>=C24+C23,0,IF(C24+C23-E13>=C24,C24,C24-E13+E14))) -> 0 | F24: =IF($B8=$K21,IF(C24>0,"Tarkista aluevalintasi",""),"") ->  | G24: =IF($B$8=$K$22,Etusivu!$C$9-5," ") ->  | I24: =IF(B8=K22,H24-J24,0) -> 0 | J24: =IF(B8=K21,0,IF(J13>=H24+H23,0,IF(H24+H23-J13>=H24,H24,H24-J13+J14))) -> 0 | K24: =IF(B8=K21,IF(H24>0,"Tarkista aluevalintasi",""),"") -> 
B25: =Etusivu!C9-4 -> 2012 | C25: 3500 | D25: =C25-E25 -> 3500 | E25: =IF(B8=K21,0,IF(E13>=C25+C24+C23,0,IF(C25+C24+C23-E13>=C25,C25,C25-E13))) -> 0 | G25: =Etusivu!$C$9-4 -> 2012 | I25: =H25-J25 -> 0 | J25: =IF(B8=K21,0,IF(J13>=H25+H24+H23,0,IF(H25+H24+H23-J13>=H25,H25,H25-J13))) -> 0
B26: =Etusivu!C9-3 -> 2013 | C26: 1200 | D26: =C26-E26 -> 0 | E26: =IF(E13>=C26+C25+C24+C23,0,IF(C26+C25+C24+C23-E13>=C26,C26,C26+C25+C24+C23-E13)) -> 1200 | G26: =Etusivu!$C$9-3 -> 2013 | I26: =H26-J26 -> 0 | J26: =IF(J13>=H26+H25+H24+H23,0,IF(H26+H25+H24+H23-J13>=H26,H26,H26+H25+H24+H23-J13)) -> 0
B27: =Etusivu!C9-2 -> 2014 | C27: 6430 | D27: =C27-E27 -> 0 | E27: =IF(E13>=C27+C26+C25+C24+C23,0,IF(C27+C26+C25+C24+C23-E13>=C27,C27,C27+C26+C25+C24+C23-E13)) -> 6430 | G27: =Etusivu!$C$9-2 -> 2014 | I27: =H27-J27 -> 0 | J27: =IF(J13>=H27+H26+H25+H24+H23,0,IF(H27+H26+H25+H24+H23-J13>=H27,H27,H27+H26+H25+H24+H23-J13)) -> 0
B28: =Etusivu!C9-1 -> 2015 | D28: =C28-E28 -> 0 | E28: =IF(E13>=C28+C27+C26+C25+C24+C23,0,IF(C28+C27+C26+C25+C24+C23-E13>=C28,C28,C28+C27+C26+C25+C24+C23-E13)) -> 0 | G28: =Etusivu!$C$9-1 -> 2015 | I28: =H28-J28 -> 0 | J28: =IF(J13>=H28+H27+H26+H25+H24+H23,0,IF(H28+H27+H26+H25+H24+H23-J13>=H28,H28,H28+H27+H26+H25+H24+H23-J13)) -> 0
C29: Verovuoden lisäys | H29: Verovuoden lisäys
B30: =Etusivu!C9 -> 2016 | C30: =IF((Tulot!H8-(SUM('Hank.työ 1'!C15:G15)-SUM('Hank.työ 1'!X19:AB19)+SUM('Hank.työ 2'!C15:G15)-SUM('Hank.työ 2'!X17:AB17))-Vähennys!C37+Tulot!P7+Tulot!R7)<0,0,((Tulot!H8-(SUM('Hank.työ 1'!C15:G15)-SUM('Hank.työ 1'!X19:AB19)+SUM('Hank.työ 2'!C15:G15)-SUM('Hank.työ 2'!X17:AB17))-Vähennys!C37+Tulot!P7+Tulot!R7)*Varaukset!C20)) -> 4750.77 | D30: =C30-E30 -> 0 | E30: =IF(E13>=C30+C28+C27+C26+C25,0,IF(C30+C28+C27+C26+C25-E13>=C30,C30,C30+C28+C27+C26+C25-E13)) -> 4750.77 | G30: =Etusivu!$C$9 -> 2016 | H30: =(Tulot!N7+Tulot!O7)*H20 -> 1230 | I30: =H30-J30 -> 0 | J30: =IF(J13>=H30+H28+H27+H26+H25,0,IF(H30+H28+H27+H26+H25-J13>=H30,H30,H30+H28+H27+H26+H25-J13)) -> 1230
B32: Menovaraus on enintään 15% metsätalouden tuloista | G32: Tuhovaraus on korkeintaan uudistuskustannusten suuruinen.
B33: Verottaja tulouttaa varaukset automaattisesti 4 v. kuluttua (Pohjois-Suomessa 6 vuoden kuluttua)
B35: OHJE:
B36: * Sijoita aiemmilta vuosilta tulouttamatta olevat varaukset ko vuoden kohdalle sarakkeeseen "Jäljellä verovuoden alussa"
B37: * Ohjelma laskee verovuoden varauksen soluun "Verovuoden lisäys"
B38: * Merkitse verovuodelle haluttu varausten tuloutuksen kokonaismäärä soluun " Varausten haluttu kokonaiskäyttö verovuonna".
B39: (Huomioi pakollinen viimeisen vuoden vähennyksen määrä.)
B40: * Ohjelma laskee kullekin vuodelle jäljelle jäävän varauksen määrän sarakkeeseen "Jää/Siirtyy seuraavaan vuoteen"

Sheet Vähennys
A1: Mette 2016
A2: Metsätalouden kirjanpito
A3: Metsävähennyksen laskenta | K3: Ohje:
A4: =Etusivu!C10 -> RAJOITETTU TESTIVESIO
A5: =Etusivu!E10 -> Testitila 1:45
C6: Ohje | F6: Aputaulukot: tilatietojen vapaaehtoista seuraamiseksi
B7: Metsävähennystilan ns. seurantanumero | C7: Tilat yhteensä | E7: 1 | F7: 2 | G7: 3 | H7: 4 | I7: 5 | J7: 6 | K7: 7 | L7: 8 | M7: 9 | N7: 10 | O7: 11 | P7: 12 | Q7: 13 | R7: 14 | S7: 15 | T7: 16 | U7: 17 | V7: 18
B8: Merkitse tila verovuonna myydyksi kirjoittamalla tilan kohdalle "Myyty"
B9: Tilan nimi (Tilanimet päivittyvät etusivulta) | E9: =Etusivu!E10 -> Testitila 1:45 | F9: =Etusivu!E11 -> 0 | G9: =Etusivu!E12 -> 0 | H9: =Etusivu!E13 -> 0 | I9: =Etusivu!E14 -> 0 | J9: =Etusivu!E15 -> 0 | K9: =Etusivu!E16 -> 0 | L9: =Etusivu!E17 -> 0 | M9: =Etusivu!E18 -> 0 | N9: =Etusivu!G10 -> 0 | O9: =Etusivu!G11 -> 0 | P9: =Etusivu!G12 -> 0 | Q9: =Etusivu!G13 -> 0 | R9: =Etusivu!G14 -> 0 | S9: =Etusivu!G15 -> 0 | T9: =Etusivu!G16 -> 0 | U9: =Etusivu!G17 -> 0 | V9: =Etusivu!G18 -> 0 | X9: Myyty
B10: Kiinteistötunnus | E10: 90-403-1-45
B11: Tilan hankinta-ajankohta | E11: 4102001
C12: euro snt | E12: euro snt | F12: euro snt | G12: euro snt | H12: euro snt | I12: euro snt | J12: euro snt | K12: euro snt | L12: euro snt | M12: euro snt | N12: euro snt | O12: euro snt | P12: euro snt | Q12: euro snt | R12: euro snt | S12: euro snt | T12: euro snt | U12: euro snt | V12: euro snt
B13: Tilan hankintameno, € | C13: =SUM(E13:V13) -> 65300 | E13: 65300
B14: Metsän osuus hankintamenosta, € | C14: 55000 | E14: 55000
B15: Hankintamenon lisäykset ja vähennykset verovuoden aikana, € | C15: 0
A16: 18. | B16: josta 60 % = metsävähennyspohja (verovuoden lopussa) | C16: 33000 | E16: =IF(E8="myyty",0,(E14+E15)*0.6) -> 33000 | F16: =IF(F8="myyty",0,(F14+F15)*0.6) -> 0 | G16: =IF(G8="myyty",0,(G14+G15)*0.6) -> 0 | H16: =IF(H8="myyty",0,(H14+H15)*0.6) -> 0 | I16: 0 | J16: 0 | K16: 0 | L16: 0 | M16: 0 | N16: 0 | O16: 0 | P16: 0 | Q16: 0 | R16: 0 | S16: 0 | T16: 0 | U16: 0 | V16: 0
A17: 19. | B17: =CONCATENATE("Ennen verovuotta ",Etusivu!C9," käytetty metsävähennys") -> Ennen verovuotta 2016 käytetty metsävähennys | C17: 4500 | E17: 4500
B18: =CONCATENATE("Ennen verovuotta ",Etusivu!C9," luovutusvoittoihin lisätty metsävähennys") -> Ennen verovuotta 2016 luovutusvoittoihin lisätty metsävähennys | C18: 0
B19: Käytettävissä oleva metsävähennys tiloilta yhteensä | C19: =IF(SUM(E19:V19)<=0,0,SUM(E19:V19)) -> 28500 | E19: =IF(E8="Myyty",0,IF(E16-E17+E18>E16,E16,E16-E17+E18)) -> 28500 | F19: =IF(F8="Myyty",0,IF(F16-F17+F18>F16,F16,F16-F17+F18)) -> 0 | G19: =IF(G8="Myyty",0,IF(G16-G17+G18>G16,G16,G16-G17+G18)) -> 0 | H19: =IF(H8="Myyty",0,IF(H16-H17+H18>H16,H16,H16-H17+H18)) -> 0 | I19: 0 | J19: 0 | K19: 0 | L19: 0 | M19: 0 | N19: 0 | O19: 0 | P19: 0 | Q19: 0 | R19: 0 | S19: 0 | T19: 0 | U19: 0 | V19: 0
B21: Metsätalouden metsävähennyskelpoinen pääomatulo verovuonna yhteensä | C21: =SUMIF(Tulot!$J$9:$J$164,E7,Tulot!$F9:$F164)+SUMIF(Tulot!$J$9:$J$164,E7,Tulot!$N$9:$N$164)+SUMIF(Tulot!$J$9:$J$164,E7,Tulot!$O$9:$O$164)+SUMIF(Tulot!$J$9:$J$164,E7,Tulot!$P$9:$P$164)+SUMIF(Tulot!$J$9:$J$164,E7,Tulot!$R$9:$R$164)+Tulot!H171+Tulot!I171+Tulot!J171+'Hank.työ 1'!Q48+'Hank.työ 1'!Q83+'Hank.työ 1'!Q118+'Hank.työ 1'!Q153+'Hank.työ 1'!Q188+'Hank.työ 2'!Q39+'Hank.työ 2'!Q66+'Hank.työ 2'!Q93+'Hank.työ 2'!Q120+'Hank.työ 2'!Q147 -> 60046.79
A22: =CONCATENATE("Vuodelle ",Etusivu!C9," käytettävissä oleva metsävähennys") -> Vuodelle 2016 käytettävissä oleva metsävähennys
B23: Metsävähennyksen enimmäismäärä tiloilta yhteensä | C23: =IF(C36*0.6<1500,0,IF(C36*0.6<=C35,C36*0.6,C35)) -> 28500 | E23: =IF(C23<1500,"OHJETEKSTI: Ei metsävähennysoikeutta. Metsävähennyksen tulee olla vähintään 1500 €", "") -> 
B24: Tiloille kohdistettu metsävähennys yhteensä | C24: =SUM(E25:V25) -> 0 | E24: =IF(C23>C24,CONCATENATE("Metsävähennyksestä kohdentamatta ",C23-C24,"€"),IF(C24>C23,"Metsävähennystä kohdennettu liikaa. Ks rivi 23","Kaikki metsävähennys kohdennettu tiloille")) -> Metsävähennyksestä kohdentamatta 28500€
A25: ==> | B25: Metsävähennyksen kohdistaminen tiloittain | C25: =IF($C23=0,0,IF(C21*0.6<=C19,C21*0.6-SUM(E25:V25),C19)) -> 28500 | G25: 0 | H25: 0 | I25: 0 | J25: 0 | K25: 0 | L25: 0 | M25: 0 | N25: 0 | O25: 0 | P25: 0 | Q25: 0 | R25: 0 | S25: 0 | T25: 0 | U25: 0 | V25: 0
B26: Jäljelle jäävä metsävähennys vuoden lopussa | C26: =C19-C25 -> 0 | E26: =E19-E25 -> 28500 | F26: 0 | G26: 0 | H26: 0 | I26: 0 | J26: 0 | K26: 0 | L26: 0 | M26: 0 | N26: 0 | O26: 0 | P26: 0 | Q26: 0 | R26: 0 | S26: 0 | T26: 0 | U26: 0 | V26: 0
B28: Korjaa, jos et halua käyttää metsävähennyksen enimmäismäärää. | C28: =C23 -> 28500 | E28: =IF(E26<0,"korjaa","") -> 
C29: =IF(C28>C23,"Virhe - Solussa C27 oleva luku ei saa olla suurempi kuin solussa C23","") ->  | E29: =IF(E26<0,"Ei sallittu","") ->  | F29: =IF(F26<0,"Ei sallittu","") ->  | G29: =IF(G26<0,"Ei sallittu","") ->  | R29: =IF(R26<0,"Ei sallittu","") ->  | S29: =IF(S26<0,"Ei sallittu","") ->  | T29: =IF(T26<0,"Ei sallittu","") ->  | U29: =IF(U26<0,"Ei sallittu","") ->  | V29: =IF(V26<0,"Ei sallittu","") -> 
A32: 18. | B32: Metsävähennyspohja yhteensä (verovuoden lopussa) | C32: =C16 -> 33000
A33: 19. | B33: =CONCATENATE("Ennen vuotta ",Etusivu!C9," käytetty metsävähennys yhteensä") -> Ennen vuotta 2016 käytetty metsävähennys yhteensä | C33: =C17 -> 4500
A34: 20. | B34: Luovutusvoittoihin lisätty metsävähennys (vuodesta 2009 alkaen) | C34: =Luovutusv.!G16+C18 -> 0
A35: 21. | B35: Käyttämättä oleva metsävähennys yhteensä (18.-(19.-20.)) | C35: =IF(C32-(C33-C34)<1500,0,C32-(C33-C34)) -> 28500
A36: 22. | B36: Metsätalouden veronalainen pääomatulo metsävähennystiloilta yht. | C36: =C21 -> 60046.79 | E36: =IF(C36>=1500,""," OHJETEKSTI: Tulon määrä on oltava vähintään 2500, jotta metsävähennyksen alaraja 1500 Euroa täyttyy.") -> 
A37: 23. | B37: Verovuoden metsävähennys | C37: =IF(C23<1500,0,IF(C23<=C35,C28,C35)) -> 28500 | F37: =IF(C37>C23,"OHJETEKSTI: Metsävähennystä jettu liikaa. Ks rivi 23","") -> 
A38: 24. | B38: Käytetty metsävähennys yhteensä verovuoden lopussa (19.+23.) | C38: =C33+C37 -> 33000
B39: Käyttämättä oleva metsävähennys vuoden lopussa yhteensä | C39: =C35-C37 -> 0 | E39: =IF(C37>=1500,""," OHJETEKSTI: Jos metsävähennystä jäljellä alle 1500, ohjelma antaa arvon 0,00. Metsävähennys tulee olla vähintään 1500 euroa vuodessa. ") -> 
B42: =IF(C39>=1500,"Metsävähennystä jää käytettäväksi tulevina vuosina","Vinkki: Metsävähennystä jäljellä alle 1500, mahdollista loppuosaa ei voi käyttää ilman uuden metsätilan hankintaa.") -> Vinkki: Metsävähennystä jäljellä alle 1500, mahdollista loppuosaa ei voi käyttää ilman uuden metsätilan hankintaa.

Sheet 2C
B2: Ohjelman lisenssi oikeuttaa ohjelman käyttöön vain maksetun verovuoden osalta. Osta uusi metsavero.fi sivustolta.
B3: =IF(Etusivu!B7>2016,"Yrität käyttää Mette kirjanpito-ohjelmaa vastoin käyttöehtoja. Osta uusi ohjelma osoitteesta www.metsavero.fi",IF(Etusivu!B7<2016,"Yrität käyttää Mette kirjanpito-ohjelmaa vastoin käyttöehtoja. Osta uusi ohjelma osoitteesta www.metsavero.fi","")) -> 
C5: VEROHALLINTO | R5: Viimeinen palautuspäivä
C6: TUNNUS 5019832 | R6: =Etusivu!C27 -> 28022017
C7: 00003 VASTAUSLÄHETYS | R7: METSÄTALOUDEN
R8: VEROILMOITUS
C9: Verovelvollisen nimi ja osoite | R9: Kaikki maatilat yhteensä
C10: =Etusivu!C10 -> RAJOITETTU TESTIVESIO | N10: =CONCATENATE("Kotikunta 31.12.",Etusivu!C9-1) -> Kotikunta 31.12.2015
C11: =Etusivu!C11 -> Osoite | O11: =Etusivu!C22 -> Kunta
C12: =CONCATENATE(Etusivu!C12," ",Etusivu!C13) -> 38210 Sastamala | N12: Henkilötunnus tai Y-tunnus
N13: =Etusivu!C14 -> 1322222-2
N14: Puolisoiden osuudet metsäomaisuudesta % | U14: 600 Oma erillinen
N15: 601 Verovelvollinen | R15: 602 Puoliso | U15: ilmoitus
N16: =IF(Etusivu!C23="kyllä","",Etusivu!C24) -> 1 | R16: =IF(Etusivu!C23="kyllä","",Etusivu!C25) -> 0
C19: I Laskelma metsätalouden pääomatulosta | S19: euro | V19: snt
A20: 2 C | C20: 1. Puun myyntitulot
C21: 1.1.Pystykaupat | G21: 1.2. Hankintakaupat | M21: 1.3. Poltto- ja joulukuusikaupat
C22: 603 | G22: 604 | M22: 613
A23: 2016 | C23: =Tulot!F7 -> 56600 | G23: =Tulot!G7 -> 3450 | M23: =Tulot!H7 -> 0 | S23: + | T23: =C23+G23+M23 -> 60050
C24: 2. Hankintatyön arvo
G25: 2.1. Hankintakaupat | M25: 2.2. Poltto- ja joulukuusikaupat | X25: =IF(G27>G23,"Hankintatyön arvo ei saa olla hankintakauppatuloa suurempi. Tarkista hankintakaupan summat!",0) -> 0
G26: 605 | M26: 625
G27: =SUM('Hank.työ 1'!C15:G15)+'Hank.työ 1'!W4 -> 318.21 | M27: =SUM('Hank.työ 2'!C15:G15)+'Hank.työ 2'!W4 -> 0 | S27: - | T27: =C27+G27+M27 -> 318.21 | X27: =IF(M27>M23,"Hankintatyön arvo ei saa olla hankintakauppatuloa suurempi. Tarkista Poltto- ja joulupuiden summat!",0) -> 0
C28: 3. Vakuutus- ja hirvivahinkokorvaukset, metsätalouden tuet
C29: 3.1. Vakuutuskorvaukset | G29: 3.2. Hirvivahinkokorvaukset | M29: 3.3. Metsätalouden tuet
C30: 607 | G30: 608 | M30: 609
C31: =Tulot!N7 -> 1230 | G31: =Tulot!O7 -> 0 | M31: =Tulot!P7 -> 440 | S31: + | T31: =M31+G31+C31 -> 1670
C32: 4. Omasta metsästä otettu puutavara | S32: 614
C33: 4.1. Maatalouskäyttö | G33: 4.2. Elinkeinokäyttö | M33: 4.3. Yksityiskäyttö
D34: =Tulot!E171+Tulot!H171 -> 0 | G34: =Tulot!F171+Tulot!I171 -> 0 | M34: =Tulot!G171+Tulot!J171 -> 315 | S34: + | T34: =M34+G34+D34 -> 315
C35: 5. Metsävähennys ja varaukset
C36: 5.1. Metsävähennys | G36: 5.2. Menovaraus | M36: 5.3. Tuhovaraus
C37: 615 | G37: 616 | M37: 617
C38: =Vähennys!C37 -> 28500 | G38: =Varaukset!C30 -> 4750.77 | M38: =Varaukset!H30 -> 1230 | S38: - | T38: =M38+G38+C38 -> 34480.77
C39: 6. Muut pääomatuloksi luettavat erät
G40: 6.1. Varausten tuloutus | M40: 6.2. Muut
G41: 619 | M41: 620
G42: =Varaukset!E16+Varaukset!J16 -> 3500 | M42: =Tulot!R7 -> 0 | S42: + | T42: =C42+M42+G42 -> 3500
C43: 7. Vuosimenot
C44: 7.1. Palkkausmenot | G44: 7.2. Matkakulut | M44: 7.3. Muut vuosimenot
C45: 622 | G45: 623 | M45: 624
C46: =Menot!K7 -> 0 | G46: =Menot!L7 -> 31.44 | M46: =Menot!M7 -> 575.68 | S46: - | T46: =M46+G46+C46 -> 607.12
C47: Selvitys poistoina vähennettävistä menoista
F48: Koneet ja kalusto | I48: Rakennukset | N48: Ojat ja tiet
C50: =CONCATENATE("8. Menojäännös 1.1.",Etusivu!C9) -> 8. Menojäännös 1.1.2016 | F50: =Poistot!D8 -> 2500 | I50: =Poistot!D30 -> 0 | N50: =Poistot!D37 -> 0
C52: 9. Lisäykset verovuonna | F52: =Poistot!E8 -> 629.03 | I52: =Poistot!E30 -> 0 | N52: =Poistot!E37 -> 1935.48
F53: 645 | I53: 646
C54: 10. Luovutukset verovuonna | F54: =Poistot!F8 -> 0 | I54: =Poistot!F30 -> 0 | N54: =Poistot!F37 -> 0
F55: 642 | I55: 643 | N55: 644
C56: 11. Poistot | F56: =Poistot!H8 -> 782.26 | I56: =Poistot!H30 -> 0 | N56: =Poistot!H37 -> 290.32 | S56: - | T56: =SUM(F56:R56) -> 1072.58
F57: 626 | I57: 627 | N57: 628
C58: =CONCATENATE("12. Menojäännös 31.12.",Etusivu!C9) -> 12. Menojäännös 31.12.2016 | F58: =Poistot!I8 -> 2346.77 | I58: =Poistot!I30 -> 0 | N58: =Poistot!I37 -> 1645.16
C59: 13. Toisesta tulonlähteestä siirrettävät menot | S59: 630
S60: - | T60: 0 | X60: OHJE:
C61: 14. Metsätalouden muistiinpanoihin sisältyneet muun toiminnan menot | S61: 634
C62: 14.1. Maatalouden menot | G62: 14.2. Elinkeinotoiminnan menot | M62: 14.3. Yksityismenot | T62: =SUM(C63:R63) -> 0
C63: =Menot!X7+Poistot!K8+Poistot!K30+Poistot!K37 -> 0 | G63: =Menot!Y7+Poistot!L8+Poistot!L30+Poistot!L37 -> 0 | M63: =Menot!Z7+Poistot!M8+Poistot!M30+Poistot!M37 -> 0 | S63: +
S64: 635
C65: 15. Metsätalouden puhdas pääomatulo | S65: = | T65: =IF(T23-T27+T31+T34-T38+T42-T46-T56-T60+T62>=0,T23-T27+T31+T34-T38+T42-T46-T56-T60+T62,"") -> 29056.32
C66: tai | S66: 636
C67: 16. Metsätalouden tappiollinen pääomatulo | S67: = | T67: =IF(T23-T27+T31+T34-T38+T42-T46-T56-T60+T62<0,T23-T27+T31+T34-T38+T42-T46-T56-T60+T62,"") ->  | AD67: Lomake 2. Hankintatyöntekijät 5-8 (jaa itse hankintatyöntekijöiden työmäärän suhteessa)
N72: Y-tunnus tai henkilötunnus | Q72: =Etusivu!C14 -> 1322222-2 | AP72: Y-tunnus tai henkilötunnus | AS72: =Q72 -> 1322222-2
B73: =CONCATENATE("II Selvitys vuonna ",Etusivu!C9," tehdystä hankintatyöstä") -> II Selvitys vuonna 2016 tehdystä hankintatyöstä | AD73: =CONCATENATE("II Selvitys vuonna ",Etusivu!C9," tehdystä hankintatyöstä") -> II Selvitys vuonna 2016 tehdystä hankintatyöstä
B74: Hankintatyön tekijän nimi | G74: Henkilötunnus | J74: Valmistettu määrä m3 | M74: Kuljetettu määrä m3 | O74: Hankintatyön arvo | S74: Hankintatyön veronalainen arvo 1) | AD74: Hankintatyön tekijän nimi | AI74: Henkilötunnus | AL74: Valmistettu määrä m3 | AO74: Kuljetettu määrä m3 | AQ74: Hankintatyön arvo | AU74: Hankintatyön veronalainen arvo 1)
O75: euro | Q75: snt | S75: euro | U75: snt | AQ75: euro | AS75: snt | AU75: euro | AW75: snt
B76: Matti testimetsänomistaja | G76: 060660-0606 | J76: =SUM('Hank.työ 1'!C9:G9)+SUM('Hank.työ 2'!C9:G9) -> 21 | M76: =SUM('Hank.työ 1'!C12:G12)+SUM('Hank.työ 2'!C12:G12) -> 21 | O76: =SUM('Hank.työ 1'!C15:G15)+SUM('Hank.työ 2'!C15:G15) -> 318.21 | S76: 15 | AU76: 15
S77: =SUM('Hank.työ 1'!C16:G16)+SUM('Hank.työ 2'!C16:G16) -> 0
O78: 0 | S78: 15 | AU78: 15
S80: 15 | AU80: 15
S82: 15 | AU82: 15
B84: 17. Hankintatyön arvot yhteensä | O84: =SUM(O76:R83) -> 318.21 | S84: ----- | U84: --- | AD84: 17. Hankintatyön arvot yhteensä | AQ84: =SUM(AQ76:AT83) -> 0 | AU84: ----- | AW84: ---
B86: III Metsävähennyksen seuranta (vuonna 1993 ja sen jälkeen vastikkeellisesti hankitut metsät) | AD86: III Metsävähennyksen seuranta (vuonna 1993 ja sen jälkeen vastikkeellisesti hankitut metsät) | BH86: EI TULOSTU
B87: Kaikki metsävähennyskiinteistöt yhteensä | AD87: Kaikki metsävähennyskiinteistöt yhteensä
G88: euro | I88: snt | J88: 22. Metsätalouden veronalainen pääoma- tulo metsävähennykseen oikeuttavista metsistä verovuonna | T88: euro | U88: snt | AI88: euro | AK88: snt | AL88: 22. Metsätalouden veronalainen pääoma- tulo metsävähennyskiinteistöiltä verovuonna | AV88: euro | AW88: snt
B89: 18. Metsävähennyspohja. 2) | F89: 655 | G89: =Vähennys!C32 -> 33000 | R89: =Vähennys!C36 -> 60046.79 | AD89: 18. Metsävähennyspohja. 2) | AH89: 655
B90: 19. Aikaisemmin käytetty metsävähennys | F90: 656 | G90: =Vähennys!C33 -> 4500 | J90: 23. Verovuoden metsävähennys 3) | R90: =Vähennys!C37 -> 28500 | AD90: 19. Aikaisemmin käytetty metsävähennys | AH90: 656 | AL90: 23. Verovuoden metsävähennys 3)
B91: 20. Luovutusvoittoihin lisättyjen metsä- vähennysten määrä | F91: 657 | G91: =Vähennys!C34 -> 0 | J91: 24. Käytetty metsävähennys yhteensä = 19. + 23. | R91: =Vähennys!C38 -> 33000 | AD91: 20. Luovutusvoittoihin lisättyjen metsä- vähennysten määrä | AH91: 657 | AL91: 24. Käytetty metsävähennys yhteensä = 19. + 23.
B92: 21. Käytettävissä olevan metsävähen- nyksen määrä = 18. - (19. - 20.) | F92: =Vähennys!C35 -> 28500 | AD92: 21. Käytettävissä olevan metsävähen- nyksen määrä = 18. - (19. - 20.)
B94: IV Tulouttamattomat varaukset | AD94: IV Tulouttamattomat varaukset
B95: Vuosina 2011 - 2016 tehtyjen varausten jäljellä oleva määrä vuoden 2016 lopussa | AD95: Vuosina 2011 - 2016 tehtyjen varausten jäljellä oleva määrä vuoden 2016 lopussa
B96: 2011 (Ent. Oulun ja Lapin läänit) | E96: 2012 (Ent. Oulun ja Lapin läänit) | G96: 2013 | J96: =G96+1 -> 2014 | O96: =J96+1 -> 2015 | T96: =O96+1 -> 2016 | AD96: 2011 (Oulun ja Lapin läänit) | AG96: 2012 (Oulun ja Lapin läänit) | AI96: 2013 | AL96: =AI96+1 -> 2014 | AQ96: =AL96+1 -> 2015 | AV96: =AQ96+1 -> 2016
B97: 25. Menovaraus | AD97: 21. Menovaraus
B98: 637 | E98: 638 | G98: 639 | J98: 640 | O98: 641 | AD98: 637 | AG98: 638 | AI98: 639 | AL98: 640 | AQ98: 641
B99: =Varaukset!E24 -> 0 | E99: =Varaukset!E25 -> 0 | G99: =Varaukset!E26 -> 1200 | J99: =Varaukset!E27 -> 6430 | O99: =Varaukset!E28 -> 0 | T99: =Varaukset!E30 -> 4750.77
B100: 26. Tuhovaraus | AD100: 22. Tuhovaraus
B101: =Varaukset!J24 -> 0 | E101: =Varaukset!J25 -> 0 | G101: =Varaukset!J26 -> 0 | J101: =Varaukset!J27 -> 0 | O101: =Varaukset!J28 -> 0 | T101: =Varaukset!J30 -> 1230
B106: Veroilmoitusta täydentäviä tietoja antaa | P106: Puhelin | AD106: Veroilmoitusta täydentäviä tietoja antaa | AR106: Puhelin
B107: =IF(Etusivu!C29="","",Etusivu!C29) -> Nimi | P107: =IF(Etusivu!C31=0,"",Etusivu!C31) -> Puhelinnumero
B108: =IF(Etusivu!C30="","",Etusivu!C30) -> Sähköpostiosoite
B110: Päiväys | F110: Allekirjoitus ja nimen selvennys | AD110: Päiväys | AH110: Allekirjoitus ja nimen selvennys
B112: =Etusivu!$C27 -> 28022017 | AD112: =Etusivu!$C27 -> 28022017
O113: =IF(Etusivu!C32="","",Etusivu!C32) -> Allekirjoittaja | AQ113: =IF(Etusivu!C32="","",Etusivu!C32) -> Allekirjoittaja
B115: Huom! Metsätalouden veroilmoitusta ei tarvitse antaa, jos teillä ei verovuonna 2016 ollut lainkaan metsätalouden harjoittamiseen liittyviä tuloja, vähennettäviä menoja tai metsävähennyksessä ja varauksissa ilmoitettavia seurantatietoja. | AD115: Huom! Metsätalouden veroilmoitusta ei tarvitse antaa, jos teillä ei verovuonna 2016 ollut lainkaan metsätalouden harjoittamiseen liittyviä tuloja, vähennettäviä menoja tai metsävähennyksessä ja varauksissa ilmoitettavia seurantatietoja.
B116: 1) Laskentakaava täyttöohjeessa | AD116: 1) Laskentakaava täyttöohjeessa
B117: 2) Verovuoden lopussa omistettujen metsien metsävähennyspohja yhteensä, ks. Täyttöohje | AD117: 2) Verovuoden lopussa omistettujen metsien metsävähennyspohja yhteensä, ks. täyttöohje
B118: 3) Metsävähennyksen määrä on enintään 60 % pääomatulosta, joka on saatu metsävähennykseen oikeuttavasta metsästä. Metsävähennyksen määrän on kuitenkin oltava vähintään 1 500 euroa ja korkeintaan kohdan 21 mukainen määrä. Siirretään kohtaan 5.1 | AD118: 3) Metsävähennyksen määrä on enintään 60 % pääomatulosta, joka on saatu metsävähennykseen oikeuttavasta metsästä. Metsävähennyksen määrän on kuitenkin oltava vähintään 1 500 euroa ja korkeintaan kohdan 21 mukainen määrä. Siirretään kohtaan 5.1

Sheet ALV-kausivero
B2: =Tulot!A2 -> Metsätalouden kirjanpito | G2: Mette 2016 | L2: S | M2: Kausiveroilmoitustietojen sähköinen ilmoittaminen
B3: Alv-kausiveroilmoitusten koostetiedot | L3: Ä | Q3: Huom! Siirtotiedoston luova makro toimii vain Windows Excelissä
L4: H | N4: Tarkista lomakkeelle kerätyt tiedot sarakkeelta N. Lisää tarvittaessa puuttuva tieto tai korjaa virheellinen tieto. Lopuksi luo siirtotiedosto painamalla "Luo siirtotiedosto" nappia. HUOMAA! Siirtotiedosto luodaan makrolla, joka toimii Excel 2000 ja sitä uudemmassa Excelissä. Makro EI toimi Mac versioissa eikä OpenOffice Calcissa. (Solussa O4 ohje siirtotiedoston manuaaliseen tekemiseen.) | O4: Ohje
B5: =IF(Etusivu!C20="kyllä",Etusivu!C10,"EI ALV-VELVOLLINEN") -> RAJOITETTU TESTIVESIO | L5: K | M5: Tunnus | N5: Tieto | O5: tunnus-tietopari | P5: Kommentit | Q5: Kuvaus
B6: =IF(Etusivu!C20="kyllä",Etusivu!E10,"") -> Testitila 1:45 | L6: Ö | M6: 000 | N6: VSRALVKV | O6: =IF(N6=0,"",CONCATENATE(M6,":",N6)) -> 000:VSRALVKV | P6: Yksilöi verolomakkeen | Q6: VSRALVKV = kausiveroilmoituslomake
B7: Y-tunnus | D7: =IF(Etusivu!C20="kyllä",Etusivu!C14,"") -> 1322222-2 | L7: I | M7: 010 | N7: =Etusivu!C14 -> 1322222-2 | O7: 010:1322222-2 | Q7: Verovelvollisen henkilö- tai Y-tunnus
L8: N | M8: 050 | N8: =Etusivu!H21 -> V | O8: 050:V | P8: K Q tai V | Q8: Ilmoitusjakso (K=kuukausi, Q=4x/vuosi, V=vuosittain)
B9: Ilmoita tiedot verottajalle sähköisesti osoitteessa www.vero.fi/verotili | L9: E | M9: 052 | N9: =IF(Etusivu!H21="V",0,IF(LARGE('ALV-kausivero'!H24:H27,1)>=1,LARGE('ALV-kausivero'!H24:H27,1),IF(LARGE('ALV-kausivero'!H33:H44,1)>=1,LARGE('ALV-kausivero'!H33:H44,1),0))) -> 0 | Q9: Kohdekausi
B10: Tätä lomaketta ei ole tehty alkuperäisen kausiveroilmoituslomakkeen muotoon, | I10: Ohje | L10: N | M10: 053 | N10: 2016 | O10: 053:2016 | Q10: Kohdevuosi
B11: koska veroviranomainen ei vastaanota taloushallinto-ohjelmista tulostettuja lomakkeita. | M11: 301 | N11: =IF(Etusivu!H21="V",D18,IF(Etusivu!H21="Q",SUMIF(H24:H27,N9,D24:D27),IF(Etusivu!H21="K",SUMIF(H33:H44,N9,D33:D44),5)))*100 -> 1642800 | O11: 301:1642800 | P11: (1€=100) | Q11: Suoritettava 24 %:n vero kotimaan myynnistä
L12: I | M12: 307 | N12: =IF(Etusivu!H21="V",E18,IF(Etusivu!H21="Q",SUMIF(H24:H27,N9,E24:E27),IF(Etusivu!H21="K",SUMIF(H33:H44,N9,E33:E44),5)))*100 -> 70446 | O12: 307:70446 | P12: (1€=100) | Q12: Kohdekauden vähennettävä vero
B13: Käytä yhtä alla olevista koostetietoalueista | L13: L | M13: 308 | N13: =+N11-N12 -> 1572354 | O13: 308:1572354 | P13: (1€=100) | Q13: Maksettava vero / Palautukseen oikeuttava vero (-)
C14: Kausiveroilmoitus kerran vuodessa | L14: M | M14: 315 | O14: =IF(N14=0,"",CONCATENATE(M14,":",N14)) ->  | P14: lisää itse (1€=100) | Q14: Alarajahuojennukseen oikeuttava liikevaihto
C15: Kerran vuodessa alv-ilmoitusvelvolliset voivat käyttää arvionvaraiset välilehteä. | H15: =IF(Etusivu!C21="kerran vuodessa", "Käytä näitä tietoja", " ") -> Käytä näitä tietoja | L15: O | M15: 316 | P15: lisää itse (1€=100) | Q15: Alarajahuojennukseen oikeuttava vero
D16: 301 | E16: 307 | F16: 308 | L16: I | M16: 317 | P16: lisää itse (1€=100) | Q16: Alarajahuojennuksen määrä
D17: Vero kotimaan myynnistä alv 24 % | E17: Kohdekuukauden vähennettävä vero | F17: Maksettava vero / palautukseen oikeuttava vero (-) | G17: viimeinen maksu- päivä | H17: ilmoitettu | I17: maksettu | L17: T T A | M17: 054 | P17: lisää itse (1€=100) | Q17: Ei alv-toimintaa kohdekausi-alku
C18: =CONCATENATE("Vuosi ",Etusivu!B7) -> Vuosi 2016 | D18: =SUM(D24:D27) -> 16428 | E18: =Menot!I7 -> 704.46 | F18: =D18-E18 -> 15723.54 | G18: 2017-02-28 | L18: M | M18: 055 | P18: lisää itse (1€=100) | Q18: Ei alv-toimintaa kohdevuosi-alku vvvv
L19: I | M19: 056 | P19: lisää itse (1€=100) | Q19: Ei alv-toimintaa kohdekausi-loppu
C20: Kausiveroilmoitus 4 kertaa vuodessa | L20: N | M20: 057 | P20: lisää itse (1€=100) | Q20: Ei alv-toimintaa kohdevuosi-loppu vvvv
C21: Älä käytä arvionvaraiset välilehteä, jos olet alv-kausiveroilmoitusvelvollinen 4 kertaa vuodessa. | H21: =IF(Etusivu!C21="4 kertaa vuodessa", "Käytä näitä tietoja", " ") ->  | L21: E | M21: 042 | N21: =Etusivu!C31 -> Puhelinnumero | O21: 042:Puhelinnumero | Q21: Yhteyshenkilön puhelinnumero
D22: 301 | E22: 307 | F22: 308 | L22: N | M22: 999 | N22: 1 | O22: =IF(N22=0,"",CONCATENATE(M22,":",N22)) -> 999:1 | Q22: Lomakkeen loppumerkki
D23: Vero kotimaan myynnistä alv 24 % | E23: Kohdekuukauden vähennettävä vero | F23: Maksettava vero / palautukseen oikeuttava vero (-) | G23: viimeinen maksu- päivä | H23: ilmoitettu | I23: maksettu
B24: 1 | C24: tammi-maaliskuu | D24: =SUM(D33:D35) -> 0 | E24: =SUM(E33:E35) -> 9.68 | F24: =SUM(F33:F35) -> -9.68 | G24: 2016-05-12 | H24: 0
B25: 2 | C25: Huhti-kesäkuu | D25: =SUM(D36:D38) -> 13584 | E25: =SUM(E36:E38) -> 615.49 | F25: =SUM(F36:F38) -> 12968.51 | G25: 2016-08-12 | H25: 0
B26: 3 | C26: Heinä-syyskuu | D26: =SUM(D39:D41) -> 2016 | E26: =SUM(E39:E41) -> 63.66 | F26: =SUM(F39:F41) -> 1952.34 | G26: 2016-11-12 | H26: 0
B27: 4 | C27: Loka-Joulukuu | D27: =SUM(D42:D44) -> 828 | E27: =SUM(E42:E44) -> 0 | F27: =SUM(F42:F44) -> 828 | G27: 2017-02-12 | H27: 0
C29: Kausiveroilmoitus kuukausittain
C30: Älä käytä arvionvaraiset välilehteä, jos olet alv-kausiveroilmoitusvelvollinen 12 kertaa vuodessa. | H30: =IF(Etusivu!C21="kuukausittain", "Käytä näitä tietoja", " ") -> 
D31: 301 | E31: 307 | F31: 308
D32: Vero kotimaan myynnistä alv 24 % | E32: Kohdekuukauden vähennettävä vero | F32: Maksettava vero / palautukseen oikeuttava vero (-) | G32: viimeinen maksu- päivä | H32: ilmoitettu | I32: maksettu
B33: 1 | C33: Tammikuu | D33: =SUMIF(Tulot!C$9:C$163,B33,Tulot!L$9:L$163)+SUMIF(Luovutusv.!D$8:D$15,B33,Luovutusv.!I$8:I$15) -> 0 | E33: =SUMIF(Menot!C$12:C$232,B33,Menot!I$12:I$232) -> 0 | F33: =D33-E33 -> 0 | G33: 2016-03-12 | H33: 0
B34: 2 | C34: Helmikuu | D34: =SUMIF(Tulot!C$9:C$163,B34,Tulot!L$9:L$163)+SUMIF(Luovutusv.!D$8:D$15,B34,Luovutusv.!I$8:I$15) -> 0 | E34: =SUMIF(Menot!C$12:C$232,B34,Menot!I$12:I$232) -> 0 | F34: =D34-E34 -> 0 | G34: 2016-04-12 | H34: 0
B35: 3 | C35: Maaliskuu | D35: =SUMIF(Tulot!C$9:C$163,B35,Tulot!L$9:L$163)+SUMIF(Luovutusv.!D$8:D$15,B35,Luovutusv.!I$8:I$15) -> 0 | E35: =SUMIF(Menot!C$12:C$232,B35,Menot!I$12:I$232) -> 9.68 | F35: -9.68 | G35: 2016-05-12 | H35: 0
B36: 4 | C36: Huhtikuu | D36: =SUMIF(Tulot!C$9:C$163,B36,Tulot!L$9:L$163)+SUMIF(Luovutusv.!D$8:D$15,B36,Luovutusv.!I$8:I$15) -> 0 | E36: =SUMIF(Menot!C$12:C$232,B36,Menot!I$12:I$232) -> 464.52 | F36: -464.52 | G36: 2016-06-12 | H36: 0
B37: 5 | C37: Toukokuu | D37: =SUMIF(Tulot!C$9:C$163,B37,Tulot!L$9:L$163)+SUMIF(Luovutusv.!D$8:D$15,B37,Luovutusv.!I$8:I$15) -> 0 | E37: =SUMIF(Menot!C$12:C$232,B37,Menot!I$12:I$232) -> 150.97 | F37: -150.97 | G37: 2016-07-12 | H37: 0
B38: 6 | C38: Kesäkuu | D38: =SUMIF(Tulot!C$9:C$163,B38,Tulot!L$9:L$163)+SUMIF(Luovutusv.!D$8:D$15,B38,Luovutusv.!I$8:I$15) -> 13584 | E38: =SUMIF(Menot!C$12:C$232,B38,Menot!I$12:I$232) -> 0 | F38: 13584 | G38: 2016-08-12 | H38: 0
B39: 7 | C39: Heinäkuu | D39: =SUMIF(Tulot!C$9:C$163,B39,Tulot!L$9:L$163)+SUMIF(Luovutusv.!D$8:D$15,B39,Luovutusv.!I$8:I$15) -> 0 | E39: =SUMIF(Menot!C$12:C$232,B39,Menot!I$12:I$232) -> 1.94 | F39: -1.94 | G39: 2016-09-12 | H39: 7
B40: 8 | C40: Elokuu | D40: =SUMIF(Tulot!C$9:C$163,B40,Tulot!L$9:L$163)+SUMIF(Luovutusv.!D$8:D$15,B40,Luovutusv.!I$8:I$15) -> 0 | E40: =SUMIF(Menot!C$12:C$232,B40,Menot!I$12:I$232) -> 0 | F40: 0 | G40: 2016-10-12 | H40: 0
B41: 9 | C41: Syyskuu | D41: =SUMIF(Tulot!C$9:C$163,B41,Tulot!L$9:L$163)+SUMIF(Luovutusv.!D$8:D$15,B41,Luovutusv.!I$8:I$15) -> 2016 | E41: =SUMIF(Menot!C$12:C$232,B41,Menot!I$12:I$232) -> 61.72 | F41: 1954.28 | G41: 2016-11-12 | H41: 0
B42: 10 | C42: Lokakuu | D42: =SUMIF(Tulot!C$9:C$163,B42,Tulot!L$9:L$163)+SUMIF(Luovutusv.!D$8:D$15,B42,Luovutusv.!I$8:I$15) -> 0 | E42: =SUMIF(Menot!C$12:C$232,B42,Menot!I$12:I$232) -> 0 | F42: 0 | G42: 2016-12-12 | H42: 0
B43: 11 | C43: Marraskuu | D43: =SUMIF(Tulot!C$9:C$163,B43,Tulot!L$9:L$163)+SUMIF(Luovutusv.!D$8:D$15,B43,Luovutusv.!I$8:I$15) -> 828 | E43: =SUMIF(Menot!C$12:C$232,B43,Menot!I$12:I$232) -> 0 | F43: 828 | G43: 2017-01-12 | H43: 0
B44: 12 | C44: Joulukuu | D44: =SUMIF(Tulot!C$9:C$163,B44,Tulot!L$9:L$163)+SUMIF(Luovutusv.!D$8:D$15,B44,Luovutusv.!I$8:I$15) -> 0 | E44: =SUMIF(Menot!C$12:C$232,B44,Menot!I$12:I$232) -> 0 | F44: 0 | G44: 2017-02-12 | H44: 0
B47: Lomake hakee alv-tulot lomakkeista "Tulot" ja "Luovutusvoitot"
B48: Lomake hakee alv-menot lomakkeista "Menot" ja "Arvionvaraiset" (Arvionvaraisista haetaan vain vuosi-ilmoitusosaan)

Sheet Metsätalouden Tulos
B1: Mette 2016
B2: =Tulot!A2 -> Metsätalouden kirjanpito
B3: =Etusivu!C10 -> RAJOITETTU TESTIVESIO
B4: =Etusivu!E10 -> Testitila 1:45
B5: Tilikauden tulos
B6: Pääomatulot
A7: + | B7: Puunmyyntitulot | C7: =Tulot!H8-SUM('Hank.työ 1'!C15:G15)-SUM('Hank.työ 2'!C15:G15) -> 59731.79
A8: + | B8: Tuloutetut varaukset | C8: =Varaukset!E16+Varaukset!J16 -> 3500
A9: + | B9: Metsätalouden muut tulot, tuet ja korvaukset | C9: =Tulot!R7+Tulot!P7+Tulot!N7+Tulot!O7++SUM(Tulot!E171:J171) -> 1985
A10: + | B10: Luovutusvoitot | C10: =Luovutusv.!H16 -> 8400
B11: Menot
A12: - | B12: Menot | C12: ='2C'!T46 -> 607.12
A13: - | B13: Menovaraukset ja metsävähennys | C13: ='2C'!T38 -> 34480.77
A14: - | B14: Poistot | C14: ='2C'!T56 -> 1072.58
A16: = | B16: Tulos ennen veroja | D16: =C7+C8+C9+C10-C12-C13-C14 -> 37456.32 | E16: =IF(D16<0," -"," +") -> +
B18: Pääomavero-% (alle 30 000 euron tulosta) | C18: 0.3
B19: Pääomavero-% (yli 30 000 euron tulosta) | C19: 0.34
A20: - | B20: Lopullinen vero | C20: =IF(D16>30000,(30000*C18)+((D16-30000)*C19),C18*D16) -> 11535.15
B21: Maksetut ennakot | C21: =Tulot!$M$7 -> 11803
A22: = | B22: Pääomatulot verojen jälkeen | D22: =D16-C20 -> 25921.17 | E22: =IF(D22<0," -"," +") -> +
A24: + | B24: Metsätalouden verovapaa ansiotulo | C24: =SUM('Hank.työ 1'!C15:G15)-SUM('Hank.työ 1'!C16:G16)+SUM('Hank.työ 2'!C15:G15)-SUM('Hank.työ 2'!C16:G16) -> 318.21
A25: + | B25: Metsätalouden verollinen ansiotulo | C25: =SUM('Hank.työ 1'!C16:G16)+SUM('Hank.työ 2'!C16:G16) -> 0
B26: Ansiotulojen vero % | C26: 0.21
A27: - | B27: Verot metsätalouden ansiotöistä | C27: =C25*C26 -> 0
A28: = | B28: Ansiotulot verojen jälkeen | D28: =C25+C24-C27 -> 318.21
A30: = | B30: Tulos ansiotöiden kanssa | D30: =D22+D28 -> 26239.38 | E30: =IF(D30<0," -"," +") -> +
A32: +/- | B32: Alijäämähyvitys (+) tai Lisävero (-) | D32: =C21-C20-C27 -> 267.85 | E32: =IF(D32<0," -"," +") -> +
A34: + | B34: Verovapaat tulot yhteensä | C34: =C24 -> 318.21 | D34: =IF(C34>0," +"," ") -> +
A35: + | B35: Verovapaiden tulojen verohyöty | C35: =+(C24*C26) -> 66.82 | D35: =IF(C35>0," +"," ") -> +
A37: - | B37: Maksettava arvonlisävero | C37: =IF('ALV-kausivero'!F18>0,'ALV-kausivero'!F18,0) -> 15723.54 | D37: =IF(C37>0," -"," ") -> -
A38: + | B38: Palautettava arvonlisävero | C38: =-IF('ALV-kausivero'!F18<0.01,'ALV-kausivero'!F18,0) -> 0 | D38: =IF(C38>0," +"," ") -> 

Sheet Sähköinen ilmoittaminen
L1: Mette 2016
L2: Lomakkeen 2C tietojen sähköinen ilmoittaminen | O2: Huom! Siirtotiedoston luova makro toimii vain Windows Excelissä
L3: Tarkista lomakkeelle kerätyt tiedot sarakkeelta L. Lisää tarvittaessa puuttuva tieto tai korjaa virheellinen tieto. Lopuksi luo siirtotiedosto painamalla "Luo siirtotiedosto" nappia. HUOMAA! Siirtotiedosto luodaan makrolla, joka toimii Excel 2000 ja sitä uudemmassa Excelissä. Makro EI toimi Mac versioissa eikä OpenOffice Calcissa. (Solussa O4 ohje siirtotiedoston manuaaliseen tekemiseen.) | O3: Ohje
A4: Tunnus | L4: Tieto | M4: Kommentit | N4: Kuvaus | O4: tunnus-tietopari
A5: OTS | N5: Otsikko
A6: OT2 | N6: Otsikko
A7: 000 | L7: VSY02C16 | M7: Yksilöi verolomakkeen | N7: VSY02C16 = metsätalouden veroilmoituslomake 2016 | O7: =IF(L7=0,"",CONCATENATE(A7,":",L7)) -> 000:VSY02C16
A8: 014 | N8: Henkilönumero
A9: 198 | M9: Operaattori täyttää | N9: Lähetyspäivä ja -aika, ilmoittaja täyttää, PPKKVVVVHHMMSS
A10: 197 | M10: Verohallinto täyttää | N10: Ilmoituksen saapumispäivä ja -aika sekunnin tarkkuudella, Verohallinto täyttää. Tieto saadaan lähetystiedoston nimestä, jonka lähettävä paketti tai Tyvi-operaattori on muodostanut
A11: 045 | M11: Operaattori täyttää | N11: Tieto lähettävästä paketista ja Tyvi-operaattorista (Tyvi-operaattori täyttää)
A12: 046 | M12: Operaattori täyttää | N12: Tieto lähettävän paketin versiosta (Tyvi-operaattori täyttää)
A13: 048 | L13: =Etusivu!B4 -> Mette 16.10 Forwood | N13: Tieto lähettävästä ohjelmistosta | O13: 048:Mette 16.10 Forwood
A14: 047 | M14: Operaattori täyttää | N14: Valtuutustieto (Tyvi-operaattori täyttää)
A15: 195 | N15: Viimeinen palautuspäivä
A16: 988 | N16: Valmisteluryhmä
A17: 989 | N17: Esitäytön kieli, 1=suomi, 2=ruotsi
A18: 980 | N18: Verohallinnon pääyksikkö
A19: 981 | N19: Verohallinnon pääyksikön alayksikkö
A20: 982 | N20: Palautuspaikan osoite, palautuspaikka on alayksikkö jos sellainen on muuten pääyksikkö
A21: 983 | N21: Palautuspaikan postinumero
A22: 984 | N22: Palautuspaikan postitoimipaikka
A23: 020 | L23: =Etusivu!C10 -> RAJOITETTU TESTIVESIO | N23: Verovelvollisen nimi | O23: 020:RAJOITETTU TESTIVESIO
A24: 031 | L24: =Etusivu!C11 -> Osoite | N24: Verovelvollisen katuosoite tai postilokero | O24: 031:Osoite
A25: 032 | L25: =Etusivu!C12 -> 38210 | N25: Verovelvollisen postinumero | O25: 032:38210
A26: 033 | L26: =Etusivu!C13 -> Sastamala | N26: Verovelvollisen postitoimipaikka | O26: 033:Sastamala
A27: 010 | L27: =Etusivu!C14 -> 1322222-2 | N27: Verovelvollisen henkilö- tai Y-tunnus | O27: 010:1322222-2
A28: 601 | L28: =IF(Etusivu!C$23="kyllä",0,'2C'!N16) -> 1 | N28: Verovelvollisen osuus metsäomaisuudesta (%) (jos verotusyhtymä, tulostuu nolla, tunnus tietopari tyhjä) | O28: 601:1
A29: 602 | L29: =IF(Etusivu!C$23="kyllä",0,'2C'!N17) -> 0 | N29: Puolison osuus metsäomaisuudesta (%) (jos verotusyhtymä, tulostuu nolla, tunnus tietopari tyhjä)
A30: 600 | L30: =IF(COUNTBLANK('2C'!U16)=0,1,0) -> 0 | N30: Oma erillinen ilmoitus (1=kyllä) | O30: =IF(L30=0,"",CONCATENATE(A30,":",L30)) -> 
A31: OTS | N31: Otsikko
A32: OT2 | N32: Otsikko
A33: 603 | L33: ='2C'!C23 -> 56600 | N33: Puun myyntitulot, pystykaupat | O33: =IF(L33=0,"",CONCATENATE(A33,":",L33)) -> 603:56600
A34: 604 | L34: ='2C'!G23 -> 3450 | N34: Puun myyntitulot, hankintakaupat | O34: 604:3450
A35: 613 | L35: ='2C'!M23 -> 0 | N35: Puun myyntitulot, poltto- ja joulupuukaupat
A36: 690 | L36: ='2C'!T23 -> 60050 | N36: Puun myyntitulot yhteensä (603+604+613) | O36: 690:60050
A37: 605 | L37: ='2C'!G27 -> 318.21 | N37: Hankintatyön arvo, hankintakaupat | O37: 605:318,21
A38: 625 | L38: ='2C'!M27 -> 0 | N38: Hankintatyön arvo, poltto- ja joulupuukaupat
A39: 691 | L39: ='2C'!T27 -> 318.21 | N39: Hankintatyön arvo yhteensä (606+625) | O39: 691:318,21
A40: OT2 | N40: Otsikko
A41: 607 | L41: ='2C'!C31 -> 1230 | N41: Vakuutuskorvaukset | O41: =IF(L41=0,"",CONCATENATE(A41,":",L41)) -> 607:1230
A42: 608 | L42: ='2C'!G31 -> 0 | N42: Hirvivahinkokorvaukset | O42: =IF(L42=0,"",CONCATENATE(A42,":",L42)) -> 
A43: 609 | L43: ='2C'!M31 -> 440 | N43: Metsätalouden tuet | O43: =IF(L43=0,"",CONCATENATE(A43,":",L43)) -> 609:440
A44: 610 | L44: ='2C'!T31 -> 1670 | N44: Vakuutus- ja hirvivahinkokorvaukset, metsätalouden tuet yhteensä (607+608+609) | O44: =IF(L44=0,"",CONCATENATE(A44,":",L44)) -> 610:1670
A45: OT2 | N45: Otsikko
A46: 611 | L46: ='2C'!D34 -> 0 | N46: Maatalouskäyttö | O46: =IF(L46=0,"",CONCATENATE(A46,":",L46)) -> 
A47: 612 | L47: ='2C'!G34 -> 0 | N47: Elinkeinokäyttö | O47: =IF(L47=0,"",CONCATENATE(A47,":",L47)) -> 
A48: 692 | L48: ='2C'!M34 -> 315 | N48: Yksityiskäyttö | O48: =IF(L48=0,"",CONCATENATE(A48,":",L48)) -> 692:315
A49: 614 | L49: ='2C'!T34 -> 315 | N49: Omasta metsästä otettu puutavara yhteensä (611+612+613) | O49: =IF(L49=0,"",CONCATENATE(A49,":",L49)) -> 614:315
A50: OT2 | N50: Otsikko
A51: 615 | L51: ='2C'!C38 -> 28500 | N51: Metsävähennys | O51: =IF(L51=0,"",CONCATENATE(A51,":",L51)) -> 615:28500
A52: 616 | L52: ='2C'!G38 -> 4750.77 | N52: Menovaraus | O52: =IF(L52=0,"",CONCATENATE(A52,":",L52)) -> 616:4750,77
A53: 617 | L53: ='2C'!M38 -> 1230 | N53: Tuhovaraus | O53: =IF(L53=0,"",CONCATENATE(A53,":",L53)) -> 617:1230
A54: 618 | L54: ='2C'!T38 -> 34480.77 | N54: Metsävähennys ja varaukset yhteensä (615+616+617) | O54: =IF(L54=0,"",CONCATENATE(A54,":",L54)) -> 618:34480,77
A55: OT2 | N55: Otsikko
A56: 619 | L56: ='2C'!G42 -> 3500 | N56: Varausten tuloutus | O56: =IF(L56=0,"",CONCATENATE(A56,":",L56)) -> 619:3500
A57: 620 | L57: ='2C'!M42 -> 0 | N57: Muut pääomatuloksi luettavat erät | O57: =IF(L57=0,"",CONCATENATE(A57,":",L57)) -> 
A58: 651 | L58: ='2C'!T42 -> 3500 | N58: Muut pääomatuloksi luettavat erät yhteensä (619+621+620) | O58: =IF(L58=0,"",CONCATENATE(A58,":",L58)) -> 651:3500
A59: OT2 | N59: Otsikko
A60: 622 | L60: ='2C'!C46 -> 0 | N60: Palkkausmenot | O60: =IF(L60=0,"",CONCATENATE(A60,":",L60)) -> 
A61: 623 | L61: ='2C'!G46 -> 31.44 | N61: Matkakulut | O61: =IF(L61=0,"",CONCATENATE(A61,":",L61)) -> 623:31,44
A62: 624 | L62: ='2C'!M46 -> 575.68 | N62: Muut vuosimenot | O62: =IF(L62=0,"",CONCATENATE(A62,":",L62)) -> 624:575,68
A63: 693 | L63: ='2C'!T46 -> 607.12 | N63: Vuosimenot yhteensä (622+623+624) | O63: =IF(L63=0,"",CONCATENATE(A63,":",L63)) -> 693:607,12
A64: OT2 | N64: Otsikko
A65: 660 | L65: ='2C'!F50 -> 2500 | N65: Menojäännös 1.1.2016 Koneet ja kalusto | O65: =IF(L65=0,"",CONCATENATE(A65,":",L65)) -> 660:2500
A66: 670 | L66: ='2C'!I50 -> 0 | N66: Menojäännös 1.1.2016 Rakennukset
A67: 680 | L67: ='2C'!N50 -> 0 | N67: Menojäännös 1.1.2016 Ojat ja tiet
A68: 661 | L68: ='2C'!F52 -> 629.03 | N68: Lisäykset verovuonna: Koneet ja kalusto | O68: 661:629,03
A69: 671 | L69: ='2C'!I52 -> 0 | N69: Lisäykset verovuonna: Rakennukset
A70: 681 | L70: ='2C'!N52 -> 1935.48 | N70: Lisäykset verovuonna: Ojat ja tiet | O70: 681:1935,48
A71: 645 | L71: ='2C'!F54 -> 0 | N71: Luovutukset verovuonna: Koneet ja kalusto
A72: 646 | L72: ='2C'!I54 -> 0 | N72: Luovutukset verovuonna: Rakennukset
A73: 682 | L73: ='2C'!N54 -> 0 | N73: Luovutukset verovuonna: Ojat ja tiet
A74: 642 | L74: ='2C'!F56 -> 782.26 | N74: Poistot: Koneet ja kalusto | O74: 642:782,26
A75: 643 | L75: ='2C'!I56 -> 0 | N75: Poistot: Rakennukset
A76: 644 | L76: ='2C'!N56 -> 290.32 | N76: Poistot: Ojat ja tiet | O76: 644:290,32
A77: 694 | L77: ='2C'!T56 -> 1072.58 | N77: Poistot yhteensä (642+643+644) | O77: =IF(L77=0,"",CONCATENATE(A77,":",L77)) -> 694:1072,58
A78: 626 | L78: ='2C'!F58 -> 2346.77 | N78: Menojäännös 31.12.2016: Koneet ja kalusto | O78: 626:2346,77
A79: 627 | L79: ='2C'!I58 -> 0 | N79: Menojäännös 31.12.2016: Rakennukset
A80: 628 | L80: ='2C'!N58 -> 1645.16 | N80: Menojäännös 31.12.2016: Ojat ja tiet | O80: 628:1645,16
A81: 630 | L81: ='2C'!T60 -> 0 | N81: Toisesta tulolähteestä siirrettävät menot
A82: 631 | L82: ='2C'!C63 -> 0 | N82: Maatalouden menot
A83: 632 | L83: ='2C'!G63 -> 0 | N83: Elinkeinotoiminnan menot
A84: 633 | L84: ='2C'!M63 -> 0 | N84: Yksityismenot
A85: 634 | L85: ='2C'!T62 -> 0 | N85: Metsätalouden muistiinpanoihin sisältyneet muun toiminnan menot yhteensä (631+632+633)
A86: 635 | L86: ='2C'!T65 -> 29056.32 | N86: 15. Metsätalouden puhdas pääomatulo (690+691+610+614-618+651-693-694-630+634) | O86: =IF(L86="","",CONCATENATE(A86,":",L86)) -> 635:29056,32
A87: 636 | L87: =IF('2C'!T67<0,ABS('2C'!T67),0) -> 0 | N87: 16. Metsätalouden tappiollinen pääomatulo -(690+691+610+614-618+651-693-694-630+634) | O87: =IF(L87=0,"",CONCATENATE(A87,":",L87)) -> 
A88: OTS | N88: Otsikko
A89: 001 | L89: =8-(COUNTBLANK('2C'!B76)+COUNTBLANK('2C'!B78)+COUNTBLANK('2C'!B80)+COUNTBLANK('2C'!B82)+COUNTBLANK('2C'!AD76)+COUNTBLANK('2C'!AD78)+COUNTBLANK('2C'!AD80)+COUNTBLANK('2C'!AD82)) -> 1 | N89: Osatietoryhmä 700-705 alkaa | O89: =IF(L89=0,"",CONCATENATE(A89,":",L89)) -> 001:1
A90: 700 | L90: ='2C'!B76 -> Matti testimetsänomistaja | N90: Hankintatyön tekijän nimi | O90: 700:Matti testimetsänomistaja
A91: 701 | L91: ='2C'!G76 -> 060660-0606 | N91: Hankintatyön tekijän henkilötunnus | O91: 701:060660-0606
A92: 702 | L92: ='2C'!J76 -> 21 | N92: Valmistettu määrä m3 | O92: 702:21
A93: 703 | L93: ='2C'!M76 -> 21 | N93: Kuljetettu määrä m3 | O93: 703:21
A94: 704 | L94: ='2C'!O76 -> 318.21 | N94: Hankintatyön arvo | O94: 704:318,21
A95: 705 | L95: ='2C'!S77 -> 0 | N95: Hankintatyön veronalainen arvo
A96: OHJ
A97: 009 | L97: =IF(L$89>0,1,"") -> 1 | M97: Juokseva numero osatietoryhmien määrän mukaan | N97: Osatietoryhmä 700-705 loppuu | O97: =IF(L97="","",CONCATENATE(A97,":",L97)) -> 009:1
A98: 700 | L98: ='2C'!B78 -> 0 | N98: Hankintatyön tekijän nimi | O98: =IF(L98=0,"",CONCATENATE(A98,":",L98)) -> 
A99: 701 | L99: ='2C'!G78 -> 0 | N99: Hankintatyön tekijän henkilötunnus
A100: 702 | L100: ='2C'!J78 -> 0 | N100: Valmistettu määrä m3
A101: 703 | L101: ='2C'!M78 -> 0 | N101: Kuljetettu määrä m3
A102: 704 | L102: ='2C'!O78 -> 0 | N102: Hankintatyön arvo
A103: 705 | L103: ='2C'!S79 -> 0 | N103: Hankintatyön veronalainen arvo
A104: OHJ
A105: 009 | L105: =IF(L$89>1,2,"") ->  | M105: Juokseva numero osatietoryhmien määrän mukaan | N105: Osatietoryhmä 700-705 loppuu | O105: =IF(L105="","",CONCATENATE(A105,":",L105)) -> 
A106: 700 | L106: ='2C'!B80 -> 0 | N106: Hankintatyön tekijän nimi | O106: =IF(L106=0,"",CONCATENATE(A106,":",L106)) -> 
A107: 701 | L107: ='2C'!G80 -> 0 | N107: Hankintatyön tekijän henkilötunnus
A108: 702 | L108: ='2C'!J80 -> 0 | N108: Valmistettu määrä m3
A109: 703 | L109: ='2C'!M80 -> 0 | N109: Kuljetettu määrä m3
A110: 704 | L110: ='2C'!O80 -> 0 | N110: Hankintatyön arvo
A111: 705 | L111: ='2C'!S81 -> 0 | N111: Hankintatyön veronalainen arvo
A112: OHJ
A113: 009 | L113: =IF(L$89>2,3,"") ->  | M113: Juokseva numero osatietoryhmien määrän mukaan | N113: Osatietoryhmä 700-705 loppuu | O113: =IF(L113="","",CONCATENATE(A113,":",L113)) -> 
A114: 700 | L114: ='2C'!B82 -> 0 | N114: Hankintatyön tekijän nimi | O114: =IF(L114=0,"",CONCATENATE(A114,":",L114)) -> 
A115: 701 | L115: ='2C'!G82 -> 0 | N115: Hankintatyön tekijän henkilötunnus
A116: 702 | L116: ='2C'!J82 -> 0 | N116: Valmistettu määrä m3
A117: 703 | L117: ='2C'!M82 -> 0 | N117: Kuljetettu määrä m3
A118: 704 | L118: ='2C'!O82 -> 0 | N118: Hankintatyön arvo
A119: 705 | L119: ='2C'!S83 -> 0 | N119: Hankintatyön veronalainen arvo
A120: OHJ
A121: 009 | L121: =IF(L$89>3,4,"") ->  | M121: Juokseva numero osatietoryhmien määrän mukaan | N121: Osatietoryhmä 700-705 loppuu | O121: =IF(L121="","",CONCATENATE(A121,":",L121)) -> 
A122: 700 | L122: ='2C'!AD76 -> 0 | N122: Hankintatyön tekijän nimi | O122: =IF(L122=0,"",CONCATENATE(A122,":",L122)) -> 
A123: 701 | L123: ='2C'!AI76 -> 0 | N123: Hankintatyön tekijän henkilötunnus
A124: 702 | L124: ='2C'!AL76 -> 0 | N124: Valmistettu määrä m3
A125: 703 | L125: ='2C'!AO76 -> 0 | N125: Kuljetettu määrä m3
A126: 704 | L126: ='2C'!AQ76 -> 0 | N126: Hankintatyön arvo
A127: 705 | L127: ='2C'!AU77 -> 0 | N127: Hankintatyön veronalainen arvo
A128: OHJ
A129: 009 | L129: =IF(L$89>4,5,"") ->  | M129: Juokseva numero osatietoryhmien määrän mukaan | N129: Osatietoryhmä 700-705 loppuu | O129: =IF(L129="","",CONCATENATE(A129,":",L129)) -> 
A130: 700 | L130: ='2C'!AD78 -> 0 | N130: Hankintatyön tekijän nimi | O130: =IF(L130=0,"",CONCATENATE(A130,":",L130)) -> 
A131: 701 | L131: ='2C'!AI78 -> 0 | N131: Hankintatyön tekijän henkilötunnus
A132: 702 | L132: ='2C'!AL78 -> 0 | N132: Valmistettu määrä m3
A133: 703 | L133: ='2C'!AO78 -> 0 | N133: Kuljetettu määrä m3
A134: 704 | L134: ='2C'!AQ78 -> 0 | N134: Hankintatyön arvo
A135: 705 | L135: ='2C'!AU79 -> 0 | N135: Hankintatyön veronalainen arvo
A136: OHJ
A137: 009 | L137: =IF(L$89>5,6,"") ->  | M137: Juokseva numero osatietoryhmien määrän mukaan | N137: Osatietoryhmä 700-705 loppuu | O137: =IF(L137="","",CONCATENATE(A137,":",L137)) -> 
A138: 700 | L138: ='2C'!AD80 -> 0 | N138: Hankintatyön tekijän nimi | O138: =IF(L138=0,"",CONCATENATE(A138,":",L138)) -> 
A139: 701 | L139: ='2C'!AI80 -> 0 | N139: Hankintatyön tekijän henkilötunnus
A140: 702 | L140: ='2C'!AL80 -> 0 | N140: Valmistettu määrä m3
A141: 703 | L141: ='2C'!AO80 -> 0 | N141: Kuljetettu määrä m3
A142: 704 | L142: ='2C'!AQ80 -> 0 | N142: Hankintatyön arvo
A143: 705 | L143: ='2C'!AU81 -> 0 | N143: Hankintatyön veronalainen arvo
A144: OHJ
A145: 009 | L145: =IF(L$89>6,7,"") ->  | M145: Juokseva numero osatietoryhmien määrän mukaan | N145: Osatietoryhmä 700-705 loppuu | O145: =IF(L145="","",CONCATENATE(A145,":",L145)) -> 
A146: 700 | L146: ='2C'!AD82 -> 0 | N146: Hankintatyön tekijän nimi | O146: =IF(L146=0,"",CONCATENATE(A146,":",L146)) -> 
A147: 701 | L147: ='2C'!AI82 -> 0 | N147: Hankintatyön tekijän henkilötunnus
A148: 702 | L148: ='2C'!AL82 -> 0 | N148: Valmistettu määrä m3
A149: 703 | L149: ='2C'!AO82 -> 0 | N149: Kuljetettu määrä m3
A150: 704 | L150: ='2C'!AQ82 -> 0 | N150: Hankintatyön arvo
A151: 705 | L151: ='2C'!AU83 -> 0 | N151: Hankintatyön veronalainen arvo
A152: OHJ
A153: 009 | L153: =IF(L$89>7,8,"") ->  | M153: Juokseva numero osatietoryhmien määrän mukaan | N153: Osatietoryhmä 700-705 loppuu | O153: =IF(L153="","",CONCATENATE(A153,":",L153)) -> 
A154: 706 | L154: ='2C'!O84+'2C'!AQ84 -> 318.21 | N154: Hankintatyön arvot yhteensä | O154: =IF(L154=0,"",CONCATENATE(A154,":",L154)) -> 706:318,21
A155: OTS | N155: Otsikko
A156: OT2 | N156: Otsikko
A157: 655 | L157: ='2C'!G89 -> 33000 | N157: Metsävähennyspohja, ks. täyttöohje | O157: =IF(L157=0,"",CONCATENATE(A157,":",L157)) -> 655:33000
A158: 656 | L158: ='2C'!G90 -> 4500 | N158: Aikaisemmin käytetty metsävähennys | O158: 656:4500
A159: 657 | L159: ='2C'!G91 -> 0 | N159: Luovutusvoittoihin lisättyjen metsävähennysten määrä
A160: 715 | L160: ='2C'!F92 -> 28500 | N160: Käytettävissä olevan metsävähennyksen määrä = 655 - (656 - 657) | O160: 715:28500
A161: 716 | L161: ='2C'!R89 -> 60046.79 | N161: Metsätalouden veronalainen pääomatulo metsävähennyskiinteistöiltä verovuonna | O161: 716:60046,79
A162: 717 | L162: ='2C'!R90 -> 28500 | N162: Verovuoden metsävähennys | O162: 717:28500
A163: OHJ
A164: 720 | L164: ='2C'!R91 -> 33000 | N164: Käytetty metsävähennys yhteensä = 656+717 | O164: =IF(L164=0,"",CONCATENATE(A164,":",L164)) -> 720:33000
A165: OTS | N165: otsikko
A166: OT2 | N166: otsikko
A167: 637 | L167: ='2C'!B99 -> 0 | N167: Vuonna 2011 tehtyjen menovarausten jäljellä oleva määrä vuoden 2016 lopussa | O167: =IF(L167=0,"",CONCATENATE(A167,":",L167)) -> 
A168: 638 | L168: ='2C'!E99 -> 0 | N168: Vuonna 2012 tehtyjen menovarausten jäljellä oleva määrä vuoden 2016 lopussa
A169: 639 | L169: ='2C'!G99 -> 1200 | N169: Vuonna 2013 tehtyjen menovarausten jäljellä oleva määrä vuoden 2016 lopussa | O169: 639:1200
A170: 640 | L170: ='2C'!J99 -> 6430 | N170: Vuonna 204 tehtyjen menovarausten jäljellä oleva määrä vuoden 2016 lopussa | O170: 640:6430
A171: 641 | L171: ='2C'!O99 -> 0 | N171: Vuonna 2015 tehtyjen menovarausten jäljellä oleva määrä vuoden 2016 lopussa
A172: 650 | L172: ='2C'!T99 -> 4750.77 | N172: Vuonna 2016 tehtyjen menovarausten jäljellä oleva määrä vuoden 2016 lopussa | O172: 650:4750,77
A173: 842 | L173: ='2C'!B101 -> 0 | N173: Vuonna 2011 tehtyjen tuhovarausten jäljellä oleva määrä vuoden 2016 lopussa
A174: 843 | L174: ='2C'!E101 -> 0 | N174: Vuonna 2012 tehtyjen tuhovarausten jäljellä oleva määrä vuoden 2016 lopussa
A175: 844 | L175: ='2C'!G101 -> 0 | N175: Vuonna 2013 tehtyjen tuhovarausten jäljellä oleva määrä vuoden 2016 lopussa
A176: 845 | L176: ='2C'!J101 -> 0 | N176: Vuonna 2014 tehtyjen tuhovarausten jäljellä oleva määrä vuoden 2016 lopussa
A177: 846 | L177: ='2C'!O101 -> 0 | N177: Vuonna 2015 tehtyjen tuhovarausten jäljellä oleva määrä vuoden 2016 lopussa
A178: 851 | L178: ='2C'!T101 -> 1230 | N178: Vuonna 2016 tehtyjen tuhovarausten jäljellä oleva määrä vuoden 2016 lopussa | O178: 851:1230
A179: OTS | N179: otsikko
A180: OT2 | N180: otsikko
A181: 041 | L181: ='2C'!B107 -> Nimi | N181: Veroilmoitusta täydentäviä tietoja antaa, nimi | O181: =IF(L181=0,"",CONCATENATE(A181,":",L181)) -> 041:Nimi
A182: 044 | L182: ='2C'!B108 -> Sähköpostiosoite | N182: Veroilmoitusta täydentävien tietojen antajan sähköpostiosoite | O182: =IF(L182=0,"",CONCATENATE(A182,":",L182)) -> 044:Sähköpostiosoite
A183: 042 | L183: =Etusivu!C31 -> Puhelinnumero | N183: Veroilmoitusta täydentäviä tietoja antavan puhelinnumero | O183: =IF(L183=0,"",CONCATENATE(A183,":",L183)) -> 042:Puhelinnumero
A184: 928 | L184: =IF(COUNTBLANK('2C'!B111)=0,1,0) -> 0 | N184: Vapaamuotoisia liitteitä (1=kyllä) | O184: =IF(L184=0,"",CONCATENATE(A184,":",L184)) -> 
A185: 999 | L185: 1 | N185: Lomakkeen 2C loppumerkki | O185: =IF(L185=0,"",CONCATENATE(A185,":",L185)) -> 999:1

Sheet OHJE Sähk.ilm.
B1: Mette 2016
B2: =Tulot!A2 -> Metsätalouden kirjanpito
B3: Ohje sähköisen ilmoittamisen käyttöön
B6: Verottaja vastaanottaa veroilmoituksia sähköisesti. Ilmoittaminen tapahtuu lähettämällä kirjanpito-ohjelman sitä varten tuottama tiedosto Ilmoitin-palvelun kautta (siirtotiedosto tehdään välilehdellä "Sähköinen ilmoittaminen). Sähköisen tiedoston lähetys on mahdollista kaikille, joilla on Y-tunnus hankkimalla Katso-tunnukset ja lähettämällä tiedosto Ilmoitin-palvelun kautta. Katso-tunnuksia myönnetään myös yhtymille ja lähitulevaisuudessa myös kuolinpesille, kaikille, joilla on y-tunnus. Katso-tunnukset palvelun käyttämiseksi hankitaan osoitteesta https://yritys.tunnistus.fi/main Ilmoitin löytyy osoitteesta https://www.ilmoitin.fi/ Täytettävä metsätalouden verkkoveroilmoituslomake 2C löytyy osoitteesta suomi.fi/asiointi. Hakusana 2C
B7: Lomake Sähköinen ilmoittaminen Ohjelma hakee verotiedot lomakkeelle "Sähköinen ilmoittaminen", jossa sarakkeella C on veroilmoituksen kohdan tunnus ja kyseisen lomakekohdan arvo on sarakkeella L. Tunnus liitetään sarakkeen (L) arvoon sarakkeessa O, joka lähetetään siirtotiedostona verottajalle ilmoitin palvelun kautta. Tiettyjä tietoja tulee tarkistaa tai lisätä vielä lomakkeella "Sähköinen ilmoittamien". Pakolliset kentät ovat vihreällä pohjalla. Vapaaehtoiset keltaisella.
B9: Siirtotiedoston tekeminen 2C ja ALV kausi-ilmoitus Tarkista vielä tiedot sarakkeella L (samat tiedot on sarakkeella L yhdistettynä tunnukseen). Älä mielellään koske Sarakkeella O olevaan arvoon. Siirtotiedosto tehdään klikkaamalla painiketta "Luo siirtotiedosto". Ohjelma kysyy siirtotiedoston tallennuskansiota ja nimeä. Voit nimetä tiedoston vapaasti. Tiedoston tallennusmuodoksi tulee valita txt.
B11: Sähköisen ilmoitusaineiston tarkastus Siirry osoitteeseen https://www.ilmoitin.fi/. Valitse sieltä kohta aineiston tarkastus. Voit tarkistaa, että Metten tekemä aineisto, eli siirtotiedosto on muodollisesti oikein. Korjaa tarvittaessa kirjanpitoasi, kunnes siirtotiedosto läpäisee oikeellisuustarkistuksen.
B12: Sähköisen ilmoituksen lähettäminen Osoitteessa https://www.ilmoitin.fi/. Valitse sieltä kohta "kirjaudu Katso-tunnisteella" tai Kirjaudu henkilötunnisteella. Seuraa sivulla olevia ohjeita. Onnistuneen siirron jälkeen saat kuittauksen vastaanotetusta aineistosta verottajalta.
